Body Name,Trans.date,Department Code,Department,Expense Area Code,Expense Area,Expense type code,Expense type,Amount Paid (�),Supplier name,Extended description,TransNo,Period
Rother District Council,14/05/2019,081ACQUISIT,"Acquisitions, Transformation and Regeneration",20146,West Trading Estate,B2202,Gas,314.95,Gazprom Marketing & Trading Retail Ltd,Gas - Gas Charges,2016628,202001
Rother District Council,14/06/2019,081ACQUISIT,"Acquisitions, Transformation and Regeneration",20146,West Trading Estate,B2202,Gas,73.78,Gazprom Marketing & Trading Retail Ltd,Gas - Gas Charges,2016590,202001
Rother District Council,08/07/2019,081ACQUISIT,"Acquisitions, Transformation and Regeneration",20267,Property Investment Strategy - 18-40 Beeching Road ( Land and Buildings),B2202,Gas,73.78,Gazprom Marketing & Trading Retail Ltd,Gas - Gas Charges,2016676,202001
Rother District Council,08/07/2019,081ACQUISIT,"Acquisitions, Transformation and Regeneration",20146,West Trading Estate,B2202,Gas,71.4,Gazprom Marketing & Trading Retail Ltd,Gas - Gas Charges,2016591,202001
Rother District Council,08/08/2019,081ACQUISIT,"Acquisitions, Transformation and Regeneration",20267,Property Investment Strategy - 18-40 Beeching Road ( Land and Buildings),B2202,Gas,73.78,Gazprom Marketing & Trading Retail Ltd,Gas - Gas Charges,2016677,202001
Rother District Council,10/09/2019,081ACQUISIT,"Acquisitions, Transformation and Regeneration",20267,Property Investment Strategy - 18-40 Beeching Road ( Land and Buildings),B2202,Gas,73.78,Gazprom Marketing & Trading Retail Ltd,Gas - Gas Charges,2016724,202001
Rother District Council,30/09/2019,999NOREPORT,Not included in reporting,70735,Capital - Wainwright Road Development,N1004,Architects & Consultant Fees,"17,500.00",The Lawson Partnership Ltd t/a Lawson Queay,Architects & Consultant Fees Capital-Architect and Conslt Fees,2017699,202003
Rother District Council,10/10/2019,081ACQUISIT,"Acquisitions, Transformation and Regeneration",20267,Property Investment Strategy - 18-40 Beeching Road ( Land and Buildings),B2202,Gas,71.4,Gazprom Marketing & Trading Retail Ltd,Gas - Gas Charges,2016678,202001
Rother District Council,31/10/2019,091HOUSING,Housing and Community Services,20114,Bexhill Parks & Open Spaces,B2422,Sewerage,235,CountyClean Environmental Services Ltd,Sewerage Parks- Emptying of Cesspit,2017140,202002
Rother District Council,12/11/2019,081ACQUISIT,"Acquisitions, Transformation and Regeneration",20267,Property Investment Strategy - 18-40 Beeching Road ( Land and Buildings),B2202,Gas,73.78,Gazprom Marketing & Trading Retail Ltd,Gas - Gas Charges,2016679,202001
Rother District Council,30/11/2019,031RESOURCES,Executive Directors & Corporate Core,20173,Administrative Offices - Town Hall,D2513,Hired and Contracted services,52.3,Data Shredding Services Ltd,Hired and contracted services - Charges-Confidential Office Waste,2016428,202001
Rother District Council,09/12/2019,081ACQUISIT,"Acquisitions, Transformation and Regeneration",20267,Property Investment Strategy - 18-40 Beeching Road ( Land and Buildings),B2202,Gas,71.4,Gazprom Marketing & Trading Retail Ltd,Gas - Gas Charges,2016680,202001
Rother District Council,19/12/2019,031RESOURCES,Executive Directors & Corporate Core,20182,Legal Services,D2513,Hired and Contracted services,"1,500.00",Bevan Brittan LLP,,2016078,202001
Rother District Council,03/01/2020,999NOREPORT,Not included in reporting,70737,Capital � Barnhorn Green,N1004,Architects & Consultant Fees,150,Hunt Commercial Property Ltd,Architects & Consultant Fees Capital-Architect and Conslt Fees,2016944,202002
Rother District Council,10/01/2020,081ACQUISIT,"Acquisitions, Transformation and Regeneration",20267,Property Investment Strategy - 18-40 Beeching Road ( Land and Buildings),B2202,Gas,49.29,Gazprom Marketing & Trading Retail Ltd,Gas - Gas Charges,2016681,202001
Rother District Council,17/01/2020,041ENVIRON,Environmental Services,32143,EH Licenses and Registration R + W Partnership,D2513,Hired and Contracted services,725.3,Nic Masters,Hired and contracted services - EnvH-Veterinary Services for Licens,2017952,202003
Rother District Council,17/01/2020,091HOUSING,Housing and Community Services,20128,Public Conveniences,B1100,Repairs to Premises,180,B and G Environmental Services Limited,Repairs to Premises - Drainage Clearance,2016707,202001
Rother District Council,22/01/2020,031RESOURCES,Executive Directors & Corporate Core,20171,Human Resources,D2922,Subscriptions,136,Indicator - FL Memo Ltd,Subscriptions - Subscription to Organisations,2017962,202003
Rother District Council,22/01/2020,031RESOURCES,Executive Directors & Corporate Core,20171,Human Resources,D2922,Subscriptions,11.9,Indicator - FL Memo Ltd,Subscriptions - Subscription to Organisations,2017962,202003
Rother District Council,24/01/2020,041ENVIRON,Environmental Services,32133,EH Food Hyg / Idc / Water Purity R + W Partnership,D1201,Equipment & Materials,9.86,Brady Corporation Ltd (T/A Seton),Equipment & Materials - Carriage/Handling Charge,2016071,202002
Rother District Council,24/01/2020,041ENVIRON,Environmental Services,32133,EH Food Hyg / Idc / Water Purity R + W Partnership,D2513,Hired and Contracted services,59.99,Brady Corporation Ltd (T/A Seton),Hired and contracted services - Service fee paid,2016071,202002
Rother District Council,27/01/2020,101RESOURCES,Resources,20241,Stationery,D2420,General office supplies (Stationery purchased from ext suppliers),33.72,Office Depot UK Ltd,General office supplies - Stationery (Stationery Services to buy ONLY),2016509,202001
Rother District Council,28/01/2020,999NOREPORT,Not included in reporting,70725,Capital - Blackfriars,N1004,Architects & Consultant Fees,100,Optivo (South East Consortium),Architects & Consultant Fees Capital-Architect and Conslt Fees,2017533,202003
Rother District Council,30/01/2020,031RESOURCES,Executive Directors & Corporate Core,20162,Electoral Registration,D2415,Printing by external suppliers,215.83,Civica Election Services Ltd,Printing by external suppliers - Printing (Not from RDC Print Room),2016340,202001
Rother District Council,31/01/2020,031RESOURCES,Executive Directors & Corporate Core,20175,Administrative Offices - T.H. Annex (NOT CHP),D2513,Hired and Contracted services,200,Jamie Ballan Associates Ltd,Hired and contracted services - Fire Risk Assessments,2016887,202002
Rother District Council,31/01/2020,031RESOURCES,Executive Directors & Corporate Core,20173,Administrative Offices - Town Hall,D2513,Hired and Contracted services,600,Jamie Ballan Associates Ltd,Hired and contracted services - Fire Risk Assessments,2016887,202002
Rother District Council,31/01/2020,031RESOURCES,Executive Directors & Corporate Core,20173,Administrative Offices - Town Hall,D2513,Hired and Contracted services,200,Jamie Ballan Associates Ltd,Hired and contracted services - Fire Risk Assessments,2016887,202002
Rother District Council,31/01/2020,091HOUSING,Housing and Community Services,20107,Camber Beach & Foreshore,D2513,Hired and Contracted services,200,Jamie Ballan Associates Ltd,Hired and contracted services - Fire Risk Assessments,2016887,202002
Rother District Council,04/02/2020,091HOUSING,Housing and Community Services,20145,Maintenance Services,A2203,Training,860,GT Access Ltd,Training,2016746,202002
Rother District Council,04/02/2020,101RESOURCES,Resources,20241,Stationery,D2420,General office supplies (Stationery purchased from ext suppliers),49.67,Office Depot UK Ltd,General office supplies - Stationery (Stationery Services to buy ONLY),2016508,202001
Rother District Council,04/02/2020,081ACQUISIT,"Acquisitions, Transformation and Regeneration",20118,Tourism,D2923,Grants made,"2,500.00",De La Warr Pavilion Charitable Trust,Grants made - Bexhill Jobs and apprenticeship fair,2017179,202002
Rother District Council,10/02/2020,101RESOURCES,Resources,20222,Accountancy,C2335,Public transport,65.07,Lloyds Bank,,2017775,202003
Rother District Council,10/02/2020,101RESOURCES,Resources,20222,Accountancy,C2335,Public transport,65.07,Lloyds Bank,,2017775,202003
Rother District Council,10/02/2020,101RESOURCES,Resources,20222,Accountancy,C2335,Public transport,14.1,Lloyds Bank,,2017775,202003
Rother District Council,10/02/2020,101RESOURCES,Resources,20222,Accountancy,C2335,Public transport,57.23,Lloyds Bank,,2017775,202003
Rother District Council,10/02/2020,091HOUSING,Housing and Community Services,20114,Bexhill Parks & Open Spaces,D1201,Equipment & Materials,91.58,Lloyds Bank,Equipment & Materials - Parks - Horticultural Sundries,2017776,202003
Rother District Council,10/02/2020,031RESOURCES,Executive Directors & Corporate Core,20171,Human Resources,D1201,Equipment & Materials,445.87,Posturite (UK) Ltd,Equipment & Materials - Health and Safety Act Equipment,2016785,202001
Rother District Council,10/02/2020,031RESOURCES,Executive Directors & Corporate Core,20156,Representing Local Interest,D2734,Members Training and Seminars,50,Lloyds Bank,Members Training and Seminars,2017775,202003
Rother District Council,10/02/2020,091HOUSING,Housing and Community Services,20206,Syrians,D2513,Hired and Contracted services,"2,737.21",Lloyds Bank,Hired and contracted services - Syrian Misc,2017774,202003
Rother District Council,10/02/2020,081ACQUISIT,"Acquisitions, Transformation and Regeneration",20146,West Trading Estate,B2201,Electricity,9.67,EDF Energy Customers plc,Electricity - Electricity Charges,2017623,202003
Rother District Council,11/02/2020,101RESOURCES,Resources,20241,Stationery,D2420,General office supplies (Stationery purchased from ext suppliers),169.5,Office Depot UK Ltd,General office supplies - Stationery (Stationery Services to buy ONLY),2016510,202001
Rother District Council,12/02/2020,081ACQUISIT,"Acquisitions, Transformation and Regeneration",20267,Property Investment Strategy - 18-40 Beeching Road ( Land and Buildings),B2202,Gas,49.29,Gazprom Marketing & Trading Retail Ltd,Gas - Gas Charges,2016683,202001
Rother District Council,12/02/2020,081ACQUISIT,"Acquisitions, Transformation and Regeneration",20146,West Trading Estate,B2202,Gas,49.29,Gazprom Marketing & Trading Retail Ltd,Gas - Gas Charges,2016682,202001
Rother District Council,13/02/2020,101RESOURCES,Resources,20222,Accountancy,D2622,Mobile Phones,10,O2 (UK) Ltd,,2016891,202002
Rother District Council,13/02/2020,101RESOURCES,Resources,20222,Accountancy,D2622,Mobile Phones,10,O2 (UK) Ltd,,2016891,202002
Rother District Council,13/02/2020,081ACQUISIT,"Acquisitions, Transformation and Regeneration",20243,Business Improvement,D2622,Mobile Phones,10,O2 (UK) Ltd,,2016895,202002
Rother District Council,13/02/2020,081ACQUISIT,"Acquisitions, Transformation and Regeneration",20243,Business Improvement,D2622,Mobile Phones,10,O2 (UK) Ltd,,2016895,202002
Rother District Council,13/02/2020,031RESOURCES,Executive Directors & Corporate Core,20158,Committee Service General Exp,D2622,Mobile Phones,10,O2 (UK) Ltd,,2016894,202002
Rother District Council,13/02/2020,031RESOURCES,Executive Directors & Corporate Core,20179,Communications,D2622,Mobile Phones,10,O2 (UK) Ltd,,2016894,202002
Rother District Council,13/02/2020,071STRAT,Strategy and Planning,20248,"Complaints,Compliance,Enforce",D2622,Mobile Phones,10,O2 (UK) Ltd,,2016876,202002
Rother District Council,13/02/2020,071STRAT,Strategy and Planning,20248,"Complaints,Compliance,Enforce",D2622,Mobile Phones,10,O2 (UK) Ltd,,2016876,202002
Rother District Council,13/02/2020,071STRAT,Strategy and Planning,20248,"Complaints,Compliance,Enforce",D2622,Mobile Phones,10,O2 (UK) Ltd,,2016876,202002
Rother District Council,13/02/2020,101RESOURCES,Resources,20239,Computer Services,D2622,Mobile Phones,10,O2 (UK) Ltd,,2016891,202002
Rother District Council,13/02/2020,101RESOURCES,Resources,20239,Computer Services,D2622,Mobile Phones,10,O2 (UK) Ltd,,2016891,202002
Rother District Council,13/02/2020,101RESOURCES,Resources,20239,Computer Services,D2622,Mobile Phones,10,O2 (UK) Ltd,,2016891,202002
Rother District Council,13/02/2020,101RESOURCES,Resources,20239,Computer Services,D2622,Mobile Phones,10.44,O2 (UK) Ltd,,2016891,202002
Rother District Council,13/02/2020,101RESOURCES,Resources,20239,Computer Services,D2622,Mobile Phones,10,O2 (UK) Ltd,,2016891,202002
Rother District Council,13/02/2020,101RESOURCES,Resources,20239,Computer Services,D2622,Mobile Phones,10,O2 (UK) Ltd,,2016891,202002
Rother District Council,13/02/2020,091HOUSING,Housing and Community Services,20236,Customer Services and Development,D2622,Mobile Phones,15,O2 (UK) Ltd,,2016892,202002
Rother District Council,13/02/2020,081ACQUISIT,"Acquisitions, Transformation and Regeneration",20122,Economic Development,D2622,Mobile Phones,10,O2 (UK) Ltd,,2016895,202002
Rother District Council,13/02/2020,081ACQUISIT,"Acquisitions, Transformation and Regeneration",20122,Economic Development,D2622,Mobile Phones,10,O2 (UK) Ltd,,2016895,202002
Rother District Council,13/02/2020,081ACQUISIT,"Acquisitions, Transformation and Regeneration",20122,Economic Development,D2622,Mobile Phones,10,O2 (UK) Ltd,,2016895,202002
Rother District Council,13/02/2020,081ACQUISIT,"Acquisitions, Transformation and Regeneration",20122,Economic Development,D2622,Mobile Phones,10,O2 (UK) Ltd,,2016895,202002
Rother District Council,13/02/2020,081ACQUISIT,"Acquisitions, Transformation and Regeneration",20122,Economic Development,D2622,Mobile Phones,10,O2 (UK) Ltd,,2016895,202002
Rother District Council,13/02/2020,081ACQUISIT,"Acquisitions, Transformation and Regeneration",20122,Economic Development,D2622,Mobile Phones,10,O2 (UK) Ltd,,2016895,202002
Rother District Council,13/02/2020,031RESOURCES,Executive Directors & Corporate Core,20162,Electoral Registration,D2622,Mobile Phones,10,O2 (UK) Ltd,,2016894,202002
Rother District Council,13/02/2020,031RESOURCES,Executive Directors & Corporate Core,20180,Emergency Planning,D2622,Mobile Phones,10,O2 (UK) Ltd,,2016894,202002
Rother District Council,13/02/2020,031RESOURCES,Executive Directors & Corporate Core,20180,Emergency Planning,D2622,Mobile Phones,10,O2 (UK) Ltd,,2016894,202002
Rother District Council,13/02/2020,031RESOURCES,Executive Directors & Corporate Core,20180,Emergency Planning,D2622,Mobile Phones,4.5,O2 (UK) Ltd,,2016894,202002
Rother District Council,13/02/2020,031RESOURCES,Executive Directors & Corporate Core,20183,Executive Directors,D2622,Mobile Phones,30,O2 (UK) Ltd,,2016894,202002
Rother District Council,13/02/2020,031RESOURCES,Executive Directors & Corporate Core,20183,Executive Directors,D2622,Mobile Phones,12.58,O2 (UK) Ltd,,2016894,202002
Rother District Council,13/02/2020,031RESOURCES,Executive Directors & Corporate Core,20183,Executive Directors,D2622,Mobile Phones,15.26,O2 (UK) Ltd,,2016894,202002
Rother District Council,13/02/2020,041ENVIRON,Environmental Services,20199,Food and Safety Team,D2622,Mobile Phones,10,O2 (UK) Ltd,,2016893,202002
Rother District Council,13/02/2020,041ENVIRON,Environmental Services,20199,Food and Safety Team,D2622,Mobile Phones,10,O2 (UK) Ltd,,2016893,202002
Rother District Council,13/02/2020,041ENVIRON,Environmental Services,20199,Food and Safety Team,D2622,Mobile Phones,82.5,O2 (UK) Ltd,,2016893,202002
Rother District Council,13/02/2020,041ENVIRON,Environmental Services,20199,Food and Safety Team,D2622,Mobile Phones,10,O2 (UK) Ltd,,2016893,202002
Rother District Council,13/02/2020,041ENVIRON,Environmental Services,20199,Food and Safety Team,D2622,Mobile Phones,10,O2 (UK) Ltd,,2016893,202002
Rother District Council,13/02/2020,041ENVIRON,Environmental Services,20199,Food and Safety Team,D2622,Mobile Phones,10,O2 (UK) Ltd,,2016893,202002
Rother District Council,13/02/2020,041ENVIRON,Environmental Services,20199,Food and Safety Team,D2622,Mobile Phones,10,O2 (UK) Ltd,,2016893,202002
Rother District Council,13/02/2020,041ENVIRON,Environmental Services,20199,Food and Safety Team,D2622,Mobile Phones,10,O2 (UK) Ltd,,2016893,202002
Rother District Council,13/02/2020,041ENVIRON,Environmental Services,20199,Food and Safety Team,D2622,Mobile Phones,10,O2 (UK) Ltd,,2016893,202002
Rother District Council,13/02/2020,041ENVIRON,Environmental Services,20199,Food and Safety Team,D2622,Mobile Phones,10,O2 (UK) Ltd,,2016893,202002
Rother District Council,13/02/2020,041ENVIRON,Environmental Services,20199,Food and Safety Team,D2622,Mobile Phones,15.26,O2 (UK) Ltd,,2016893,202002
Rother District Council,13/02/2020,041ENVIRON,Environmental Services,20199,Food and Safety Team,D2622,Mobile Phones,10,O2 (UK) Ltd,,2016893,202002
Rother District Council,13/02/2020,041ENVIRON,Environmental Services,20199,Food and Safety Team,D2622,Mobile Phones,10,O2 (UK) Ltd,,2016893,202002
Rother District Council,13/02/2020,041ENVIRON,Environmental Services,20199,Food and Safety Team,D2622,Mobile Phones,10,O2 (UK) Ltd,,2016893,202002
Rother District Council,13/02/2020,041ENVIRON,Environmental Services,20199,Food and Safety Team,D2622,Mobile Phones,10,O2 (UK) Ltd,,2016893,202002
Rother District Council,13/02/2020,081ACQUISIT,"Acquisitions, Transformation and Regeneration",20263,"Head of Service Acquisitions, Transformation and Regeneration",D2622,Mobile Phones,10,O2 (UK) Ltd,,2016895,202002
Rother District Council,13/02/2020,091HOUSING,Housing and Community Services,20262,Head of Service Housing and Community Services,D2622,Mobile Phones,10,O2 (UK) Ltd,,2016892,202002
Rother District Council,13/02/2020,091HOUSING,Housing and Community Services,20204,Housing Administration Account,D2622,Mobile Phones,10,O2 (UK) Ltd,,2016892,202002
Rother District Council,13/02/2020,091HOUSING,Housing and Community Services,20204,Housing Administration Account,D2622,Mobile Phones,10,O2 (UK) Ltd,,2016892,202002
Rother District Council,13/02/2020,091HOUSING,Housing and Community Services,20204,Housing Administration Account,D2622,Mobile Phones,10,O2 (UK) Ltd,,2016892,202002
Rother District Council,13/02/2020,091HOUSING,Housing and Community Services,20204,Housing Administration Account,D2622,Mobile Phones,10,O2 (UK) Ltd,,2016892,202002
Rother District Council,13/02/2020,091HOUSING,Housing and Community Services,20204,Housing Administration Account,D2622,Mobile Phones,10,O2 (UK) Ltd,,2016892,202002
Rother District Council,13/02/2020,091HOUSING,Housing and Community Services,20204,Housing Administration Account,D2622,Mobile Phones,10,O2 (UK) Ltd,,2016892,202002
Rother District Council,13/02/2020,091HOUSING,Housing and Community Services,20204,Housing Administration Account,D2622,Mobile Phones,10,O2 (UK) Ltd,,2016892,202002
Rother District Council,13/02/2020,091HOUSING,Housing and Community Services,20204,Housing Administration Account,D2622,Mobile Phones,10,O2 (UK) Ltd,,2016892,202002
Rother District Council,13/02/2020,091HOUSING,Housing and Community Services,20204,Housing Administration Account,D2622,Mobile Phones,10,O2 (UK) Ltd,,2016892,202002
Rother District Council,13/02/2020,091HOUSING,Housing and Community Services,20204,Housing Administration Account,D2622,Mobile Phones,10,O2 (UK) Ltd,,2016892,202002
Rother District Council,13/02/2020,091HOUSING,Housing and Community Services,20204,Housing Administration Account,D2622,Mobile Phones,10,O2 (UK) Ltd,,2016892,202002
Rother District Council,13/02/2020,091HOUSING,Housing and Community Services,20204,Housing Administration Account,D2622,Mobile Phones,10,O2 (UK) Ltd,,2016892,202002
Rother District Council,13/02/2020,091HOUSING,Housing and Community Services,20204,Housing Administration Account,D2622,Mobile Phones,11.82,O2 (UK) Ltd,,2016892,202002
Rother District Council,13/02/2020,091HOUSING,Housing and Community Services,20204,Housing Administration Account,D2622,Mobile Phones,10,O2 (UK) Ltd,,2016892,202002
Rother District Council,13/02/2020,091HOUSING,Housing and Community Services,20204,Housing Administration Account,D2622,Mobile Phones,10,O2 (UK) Ltd,,2016892,202002
Rother District Council,13/02/2020,091HOUSING,Housing and Community Services,20204,Housing Administration Account,D2622,Mobile Phones,10,O2 (UK) Ltd,,2016892,202002
Rother District Council,13/02/2020,031RESOURCES,Executive Directors & Corporate Core,20171,Human Resources,D2622,Mobile Phones,10,O2 (UK) Ltd,,2016894,202002
Rother District Council,13/02/2020,031RESOURCES,Executive Directors & Corporate Core,20171,Human Resources,D2622,Mobile Phones,10,O2 (UK) Ltd,,2016894,202002
Rother District Council,13/02/2020,031RESOURCES,Executive Directors & Corporate Core,32132,Joint Waste Contract Client Unit,D2622,Mobile Phones,10,O2 (UK) Ltd,,2016894,202002
Rother District Council,13/02/2020,031RESOURCES,Executive Directors & Corporate Core,32132,Joint Waste Contract Client Unit,D2622,Mobile Phones,10,O2 (UK) Ltd,,2016894,202002
Rother District Council,13/02/2020,041ENVIRON,Environmental Services,20198,Licensing Team,D2622,Mobile Phones,10,O2 (UK) Ltd,,2016893,202002
Rother District Council,13/02/2020,041ENVIRON,Environmental Services,20198,Licensing Team,D2622,Mobile Phones,10,O2 (UK) Ltd,,2016893,202002
Rother District Council,13/02/2020,041ENVIRON,Environmental Services,20198,Licensing Team,D2622,Mobile Phones,10,O2 (UK) Ltd,,2016893,202002
Rother District Council,13/02/2020,041ENVIRON,Environmental Services,20198,Licensing Team,D2622,Mobile Phones,10,O2 (UK) Ltd,,2016893,202002
Rother District Council,13/02/2020,041ENVIRON,Environmental Services,20198,Licensing Team,D2622,Mobile Phones,10,O2 (UK) Ltd,,2016893,202002
Rother District Council,13/02/2020,041ENVIRON,Environmental Services,20198,Licensing Team,D2622,Mobile Phones,10,O2 (UK) Ltd,,2016893,202002
Rother District Council,13/02/2020,041ENVIRON,Environmental Services,20198,Licensing Team,D2622,Mobile Phones,10,O2 (UK) Ltd,,2016893,202002
Rother District Council,13/02/2020,081ACQUISIT,"Acquisitions, Transformation and Regeneration",20272,Major Projects unit,D2622,Mobile Phones,10,O2 (UK) Ltd,,2016895,202002
Rother District Council,13/02/2020,091HOUSING,Housing and Community Services,20120,Neighbourhood Services,D2622,Mobile Phones,10,O2 (UK) Ltd,,2016892,202002
Rother District Council,13/02/2020,091HOUSING,Housing and Community Services,20120,Neighbourhood Services,D2622,Mobile Phones,10,O2 (UK) Ltd,,2016892,202002
Rother District Council,13/02/2020,091HOUSING,Housing and Community Services,20120,Neighbourhood Services,D2622,Mobile Phones,10,O2 (UK) Ltd,,2016892,202002
Rother District Council,13/02/2020,091HOUSING,Housing and Community Services,20120,Neighbourhood Services,D2622,Mobile Phones,10,O2 (UK) Ltd,,2016892,202002
Rother District Council,13/02/2020,091HOUSING,Housing and Community Services,20120,Neighbourhood Services,D2622,Mobile Phones,10,O2 (UK) Ltd,,2016892,202002
Rother District Council,13/02/2020,091HOUSING,Housing and Community Services,20120,Neighbourhood Services,D2622,Mobile Phones,10,O2 (UK) Ltd,,2016892,202002
Rother District Council,13/02/2020,091HOUSING,Housing and Community Services,20120,Neighbourhood Services,D2622,Mobile Phones,10,O2 (UK) Ltd,,2016892,202002
Rother District Council,13/02/2020,091HOUSING,Housing and Community Services,20120,Neighbourhood Services,D2622,Mobile Phones,10,O2 (UK) Ltd,,2016892,202002
Rother District Council,13/02/2020,091HOUSING,Housing and Community Services,20120,Neighbourhood Services,D2622,Mobile Phones,10,O2 (UK) Ltd,,2016892,202002
Rother District Council,13/02/2020,091HOUSING,Housing and Community Services,20120,Neighbourhood Services,D2622,Mobile Phones,10,O2 (UK) Ltd,,2016892,202002
Rother District Council,13/02/2020,091HOUSING,Housing and Community Services,20120,Neighbourhood Services,D2622,Mobile Phones,10,O2 (UK) Ltd,,2016892,202002
Rother District Council,13/02/2020,091HOUSING,Housing and Community Services,20120,Neighbourhood Services,D2622,Mobile Phones,10,O2 (UK) Ltd,,2016892,202002
Rother District Council,13/02/2020,091HOUSING,Housing and Community Services,20120,Neighbourhood Services,D2622,Mobile Phones,10,O2 (UK) Ltd,,2016892,202002
Rother District Council,13/02/2020,091HOUSING,Housing and Community Services,20120,Neighbourhood Services,D2622,Mobile Phones,10,O2 (UK) Ltd,,2016892,202002
Rother District Council,13/02/2020,091HOUSING,Housing and Community Services,20120,Neighbourhood Services,D2622,Mobile Phones,33.84,O2 (UK) Ltd,,2016892,202002
Rother District Council,13/02/2020,091HOUSING,Housing and Community Services,20120,Neighbourhood Services,D2622,Mobile Phones,10,O2 (UK) Ltd,,2016892,202002
Rother District Council,13/02/2020,091HOUSING,Housing and Community Services,20120,Neighbourhood Services,D2622,Mobile Phones,10,O2 (UK) Ltd,,2016892,202002
Rother District Council,13/02/2020,091HOUSING,Housing and Community Services,20120,Neighbourhood Services,D2622,Mobile Phones,10,O2 (UK) Ltd,,2016892,202002
Rother District Council,13/02/2020,091HOUSING,Housing and Community Services,20120,Neighbourhood Services,D2622,Mobile Phones,10.23,O2 (UK) Ltd,,2016892,202002
Rother District Council,13/02/2020,091HOUSING,Housing and Community Services,20120,Neighbourhood Services,D2622,Mobile Phones,10,O2 (UK) Ltd,,2016892,202002
Rother District Council,13/02/2020,091HOUSING,Housing and Community Services,20120,Neighbourhood Services,D2622,Mobile Phones,10,O2 (UK) Ltd,,2016892,202002
Rother District Council,13/02/2020,091HOUSING,Housing and Community Services,20120,Neighbourhood Services,D2622,Mobile Phones,10,O2 (UK) Ltd,,2016892,202002
Rother District Council,13/02/2020,091HOUSING,Housing and Community Services,20120,Neighbourhood Services,D2622,Mobile Phones,10,O2 (UK) Ltd,,2016892,202002
Rother District Council,13/02/2020,091HOUSING,Housing and Community Services,20120,Neighbourhood Services,D2622,Mobile Phones,10,O2 (UK) Ltd,,2016892,202002
Rother District Council,13/02/2020,091HOUSING,Housing and Community Services,20120,Neighbourhood Services,D2622,Mobile Phones,10,O2 (UK) Ltd,,2016892,202002
Rother District Council,13/02/2020,091HOUSING,Housing and Community Services,20120,Neighbourhood Services,D2622,Mobile Phones,10,O2 (UK) Ltd,,2016892,202002
Rother District Council,13/02/2020,091HOUSING,Housing and Community Services,20120,Neighbourhood Services,D2622,Mobile Phones,14.14,O2 (UK) Ltd,,2016892,202002
Rother District Council,13/02/2020,091HOUSING,Housing and Community Services,20120,Neighbourhood Services,D2622,Mobile Phones,10,O2 (UK) Ltd,,2016892,202002
Rother District Council,13/02/2020,091HOUSING,Housing and Community Services,20120,Neighbourhood Services,D2622,Mobile Phones,10.1,O2 (UK) Ltd,,2016892,202002
Rother District Council,13/02/2020,091HOUSING,Housing and Community Services,20120,Neighbourhood Services,D2622,Mobile Phones,10,O2 (UK) Ltd,,2016892,202002
Rother District Council,13/02/2020,071STRAT,Strategy and Planning,20246,Planning Applications,D2622,Mobile Phones,10,O2 (UK) Ltd,,2016876,202002
Rother District Council,13/02/2020,071STRAT,Strategy and Planning,20246,Planning Applications,D2622,Mobile Phones,10,O2 (UK) Ltd,,2016876,202002
Rother District Council,13/02/2020,041ENVIRON,Environmental Services,20265,Pollution Team,D2622,Mobile Phones,10,O2 (UK) Ltd,,2016893,202002
Rother District Council,13/02/2020,041ENVIRON,Environmental Services,20265,Pollution Team,D2622,Mobile Phones,10,O2 (UK) Ltd,,2016893,202002
Rother District Council,13/02/2020,041ENVIRON,Environmental Services,20265,Pollution Team,D2622,Mobile Phones,10,O2 (UK) Ltd,,2016893,202002
Rother District Council,13/02/2020,041ENVIRON,Environmental Services,20265,Pollution Team,D2622,Mobile Phones,10,O2 (UK) Ltd,,2016893,202002
Rother District Council,13/02/2020,041ENVIRON,Environmental Services,20265,Pollution Team,D2622,Mobile Phones,10,O2 (UK) Ltd,,2016893,202002
Rother District Council,13/02/2020,041ENVIRON,Environmental Services,20265,Pollution Team,D2622,Mobile Phones,10,O2 (UK) Ltd,,2016893,202002
Rother District Council,13/02/2020,041ENVIRON,Environmental Services,20265,Pollution Team,D2622,Mobile Phones,15.26,O2 (UK) Ltd,,2016893,202002
Rother District Council,13/02/2020,041ENVIRON,Environmental Services,20265,Pollution Team,D2622,Mobile Phones,10,O2 (UK) Ltd,,2016893,202002
Rother District Council,13/02/2020,041ENVIRON,Environmental Services,20265,Pollution Team,D2622,Mobile Phones,10,O2 (UK) Ltd,,2016893,202002
Rother District Council,13/02/2020,041ENVIRON,Environmental Services,20265,Pollution Team,D2622,Mobile Phones,10,O2 (UK) Ltd,,2016893,202002
Rother District Council,13/02/2020,041ENVIRON,Environmental Services,20265,Pollution Team,D2622,Mobile Phones,10,O2 (UK) Ltd,,2016893,202002
Rother District Council,13/02/2020,041ENVIRON,Environmental Services,20265,Pollution Team,D2622,Mobile Phones,10,O2 (UK) Ltd,,2016893,202002
Rother District Council,13/02/2020,041ENVIRON,Environmental Services,20265,Pollution Team,D2622,Mobile Phones,10,O2 (UK) Ltd,,2016893,202002
Rother District Council,13/02/2020,041ENVIRON,Environmental Services,20265,Pollution Team,D2622,Mobile Phones,10,O2 (UK) Ltd,,2016893,202002
Rother District Council,13/02/2020,081ACQUISIT,"Acquisitions, Transformation and Regeneration",20121,Programme and Policy Office,D2622,Mobile Phones,10,O2 (UK) Ltd,,2016895,202002
Rother District Council,13/02/2020,091HOUSING,Housing and Community Services,20264,Property Maintenance Team,D2622,Mobile Phones,10,O2 (UK) Ltd,,2016892,202002
Rother District Council,13/02/2020,091HOUSING,Housing and Community Services,20264,Property Maintenance Team,D2622,Mobile Phones,10,O2 (UK) Ltd,,2016892,202002
Rother District Council,13/02/2020,091HOUSING,Housing and Community Services,20264,Property Maintenance Team,D2622,Mobile Phones,10,O2 (UK) Ltd,,2016892,202002
Rother District Council,13/02/2020,091HOUSING,Housing and Community Services,20264,Property Maintenance Team,D2622,Mobile Phones,10.92,O2 (UK) Ltd,,2016892,202002
Rother District Council,13/02/2020,091HOUSING,Housing and Community Services,20264,Property Maintenance Team,D2622,Mobile Phones,10,O2 (UK) Ltd,,2016892,202002
Rother District Council,13/02/2020,091HOUSING,Housing and Community Services,20264,Property Maintenance Team,D2622,Mobile Phones,10,O2 (UK) Ltd,,2016892,202002
Rother District Council,13/02/2020,091HOUSING,Housing and Community Services,20264,Property Maintenance Team,D2622,Mobile Phones,10,O2 (UK) Ltd,,2016892,202002
Rother District Council,13/02/2020,091HOUSING,Housing and Community Services,20264,Property Maintenance Team,D2622,Mobile Phones,10,O2 (UK) Ltd,,2016892,202002
Rother District Council,13/02/2020,101RESOURCES,Resources,20215,Revenue and Benefits,D2622,Mobile Phones,10,O2 (UK) Ltd,,2016891,202002
Rother District Council,13/02/2020,101RESOURCES,Resources,20215,Revenue and Benefits,D2622,Mobile Phones,10,O2 (UK) Ltd,,2016891,202002
Rother District Council,13/02/2020,101RESOURCES,Resources,20215,Revenue and Benefits,D2622,Mobile Phones,10,O2 (UK) Ltd,,2016891,202002
Rother District Council,13/02/2020,101RESOURCES,Resources,20215,Revenue and Benefits,D2622,Mobile Phones,10,O2 (UK) Ltd,,2016891,202002
Rother District Council,13/02/2020,101RESOURCES,Resources,20215,Revenue and Benefits,D2622,Mobile Phones,10,O2 (UK) Ltd,,2016891,202002
Rother District Council,13/02/2020,101RESOURCES,Resources,20215,Revenue and Benefits,D2622,Mobile Phones,10,O2 (UK) Ltd,,2016891,202002
Rother District Council,13/02/2020,041ENVIRON,Environmental Services,20197,Service Manager Env Serv,D2622,Mobile Phones,10,O2 (UK) Ltd,,2016893,202002
Rother District Council,13/02/2020,101RESOURCES,Resources,20226,Service Manager Finance and Welfare,D2622,Mobile Phones,10,O2 (UK) Ltd,,2016894,202002
Rother District Council,13/02/2020,071STRAT,Strategy and Planning,20247,Service Manager Strategy and Planning,D2622,Mobile Phones,10,O2 (UK) Ltd,,2016876,202002
Rother District Council,13/02/2020,091HOUSING,Housing and Community Services,20109,Sports Development,D2622,Mobile Phones,10,O2 (UK) Ltd,,2016892,202002
Rother District Council,15/02/2020,091HOUSING,Housing and Community Services,20107,Camber Beach & Foreshore,C1104,Derv,21.86,Allstar Business Solutions,,2016862,202002
Rother District Council,15/02/2020,091HOUSING,Housing and Community Services,20107,Camber Beach & Foreshore,C1104,Derv,1.9,Allstar Business Solutions,Derv - Fuel Service fee payable on fuel cards,2016862,202002
Rother District Council,15/02/2020,031RESOURCES,Executive Directors & Corporate Core,20170,Communications-Postages,C1104,Derv,40.08,Allstar Business Solutions,,2016862,202002
Rother District Council,15/02/2020,041ENVIRON,Environmental Services,32136,EH Pest Control R + W Partnership,C1104,Derv,3.8,Allstar Business Solutions,Derv - Fuel Service fee payable on fuel cards,2016862,202002
Rother District Council,15/02/2020,041ENVIRON,Environmental Services,32136,EH Pest Control R + W Partnership,C1104,Derv,48.33,Allstar Business Solutions,,2016862,202002
Rother District Council,15/02/2020,041ENVIRON,Environmental Services,32136,EH Pest Control R + W Partnership,C1104,Derv,48.33,Allstar Business Solutions,,2016862,202002
Rother District Council,15/02/2020,041ENVIRON,Environmental Services,32136,EH Pest Control R + W Partnership,C1104,Derv,26.67,Allstar Business Solutions,,2016862,202002
Rother District Council,15/02/2020,091HOUSING,Housing and Community Services,20145,Maintenance Services,C1104,Derv,55,Allstar Business Solutions,,2016862,202002
Rother District Council,15/02/2020,091HOUSING,Housing and Community Services,20145,Maintenance Services,C1104,Derv,73.68,Allstar Business Solutions,,2016862,202002
Rother District Council,15/02/2020,091HOUSING,Housing and Community Services,20145,Maintenance Services,C1104,Derv,38.1,Allstar Business Solutions,,2016862,202002
Rother District Council,15/02/2020,091HOUSING,Housing and Community Services,20145,Maintenance Services,C1104,Derv,1.9,Allstar Business Solutions,Derv - Fuel Service fee payable on fuel cards,2016862,202002
Rother District Council,19/02/2020,031RESOURCES,Executive Directors & Corporate Core,20171,Human Resources,D1201,Equipment & Materials,179,Office Furniture Online,Equipment & Materials - Health and Safety Act Equipment,2017149,202002
Rother District Council,20/02/2020,041ENVIRON,Environmental Services,32144,EH Environmental Services Admin R + W Partnership,D2513,Hired and Contracted services,242.08,Skyguard Ltd,Hired and contracted services - Service fee paid,2016998,202002
Rother District Council,21/02/2020,071STRAT,Strategy and Planning,20246,Planning Applications,D2519,Statutory Advertising,366,JPIMedia Publishing Ltd,Statutory Advertising - Planadv - Rye+Battle Observer,2015588,202001
Rother District Council,21/02/2020,071STRAT,Strategy and Planning,20246,Planning Applications,D2519,Statutory Advertising,457.5,JPIMedia Publishing Ltd,Statutory Advertising - Planadv - Rye+Battle Observer,2015589,202001
Rother District Council,24/02/2020,031RESOURCES,Executive Directors & Corporate Core,20176,Administrative Offices - Print Room,B2201,Electricity,196.22,Laser Energy Buying Group (Kent County Council Commercial Services),Gas - Gas Charges,2016890,202002
Rother District Council,24/02/2020,031RESOURCES,Executive Directors & Corporate Core,20175,Administrative Offices - T.H. Annex (NOT CHP),B2201,Electricity,"1,237.44",Laser Energy Buying Group (Kent County Council Commercial Services),Electricity - Electricity Charges,2016889,202002
Rother District Council,24/02/2020,031RESOURCES,Executive Directors & Corporate Core,20175,Administrative Offices - T.H. Annex (NOT CHP),B2201,Electricity,321.36,Laser Energy Buying Group (Kent County Council Commercial Services),Gas - Gas Charges,2016890,202002
Rother District Council,24/02/2020,031RESOURCES,Executive Directors & Corporate Core,20173,Administrative Offices - Town Hall,B2201,Electricity,"3,512.60",Laser Energy Buying Group (Kent County Council Commercial Services),Electricity - Electricity Charges,2016889,202002
Rother District Council,24/02/2020,031RESOURCES,Executive Directors & Corporate Core,20173,Administrative Offices - Town Hall,B2201,Electricity,996.39,Laser Energy Buying Group (Kent County Council Commercial Services),Gas - Gas Charges,2016890,202002
Rother District Council,24/02/2020,091HOUSING,Housing and Community Services,20114,Bexhill Parks & Open Spaces,B2201,Electricity,52.41,Laser Energy Buying Group (Kent County Council Commercial Services),Electricity - Electricity Charges,2016889,202002
Rother District Council,24/02/2020,091HOUSING,Housing and Community Services,20108,Bexhill Promenade & Foreshore,B2201,Electricity,40.11,Laser Energy Buying Group (Kent County Council Commercial Services),Electricity - Electricity Charges,2016889,202002
Rother District Council,24/02/2020,091HOUSING,Housing and Community Services,20125,Coast Protection,B2201,Electricity,891.83,Laser Energy Buying Group (Kent County Council Commercial Services),Electricity - Electricity Charges,2016889,202002
Rother District Council,24/02/2020,081ACQUISIT,"Acquisitions, Transformation and Regeneration",20154,Committee Property Account,B2201,Electricity,10.23,Laser Energy Buying Group (Kent County Council Commercial Services),Gas - Gas Charges,2016890,202002
Rother District Council,24/02/2020,081ACQUISIT,"Acquisitions, Transformation and Regeneration",20153,"Elva Business Centre, Bexhill",B2201,Electricity,"1,129.90",Laser Energy Buying Group (Kent County Council Commercial Services),Electricity - Electricity Charges,2016889,202002
Rother District Council,24/02/2020,081ACQUISIT,"Acquisitions, Transformation and Regeneration",20155,Investment properties,B2201,Electricity,16.71,Laser Energy Buying Group (Kent County Council Commercial Services),Gas - Gas Charges,2016890,202002
Rother District Council,24/02/2020,101RESOURCES,Resources,20240,Printing Services,D1201,Equipment & Materials,236,The Warehouse.com Ltd,Equipment & Materials - Platemaking Materials,2016418,202001
Rother District Council,24/02/2020,091HOUSING,Housing and Community Services,20128,Public Conveniences,B2201,Electricity,157.24,Laser Energy Buying Group (Kent County Council Commercial Services),Electricity - Electricity Charges,2016889,202002
Rother District Council,24/02/2020,091HOUSING,Housing and Community Services,20128,Public Conveniences,B2201,Electricity,30.61,Laser Energy Buying Group (Kent County Council Commercial Services),Electricity - Electricity Charges,2016889,202002
Rother District Council,24/02/2020,091HOUSING,Housing and Community Services,20102,Rother Museum Services,B2201,Electricity,"1,537.41",Laser Energy Buying Group (Kent County Council Commercial Services),Electricity - Electricity Charges,2016889,202002
Rother District Council,24/02/2020,091HOUSING,Housing and Community Services,20115,Rye Area Parks & Gardens,B2201,Electricity,29.6,Laser Energy Buying Group (Kent County Council Commercial Services),Electricity - Electricity Charges,2016889,202002
Rother District Council,26/02/2020,091HOUSING,Housing and Community Services,20114,Bexhill Parks & Open Spaces,B1100,Repairs to Premises,989.16,CMJ Joinery (Southern) Ltd,Repairs to Premises - Repairs Doors,2016173,202002
Rother District Council,26/02/2020,101RESOURCES,Resources,20209,Corporate management,D2516,Audit fees,"12,750.00",Grant Thornton UK LLP,Audit Fees - External Audit,2017194,202002
Rother District Council,26/02/2020,081ACQUISIT,"Acquisitions, Transformation and Regeneration",20266,Property Investment Strategy,B2202,Gas,426.01,Crown Oil Ltd t/a Crown Gas & Power,Gas - Gas Charges,2016467,202001
Rother District Council,27/02/2020,071STRAT,Strategy and Planning,20246,Planning Applications,D2519,Statutory Advertising,"1,319.94",JPIMedia Publishing Ltd,Statutory Advertising - Planadv - Rye+Battle Observer,2015686,202001
Rother District Council,27/02/2020,081ACQUISIT,"Acquisitions, Transformation and Regeneration",20144,Property Management,D2519,Statutory Advertising,"1,368.27",JPIMedia Publishing Ltd,Statutory Advertising - Planadv - Rye+Battle Observer,2015685,202001
Rother District Council,28/02/2020,091HOUSING,Housing and Community Services,20200,Housing Needs - HB (Housing Benefit),D2509,Consultants and Other Services,850,Meridian Surveyors,Consultants and other services - Consultants Fees,2016629,202001
Rother District Council,29/02/2020,101RESOURCES,Resources,20222,Accountancy,D2635,Computer Licences,"1,133.21",Integra Associates Ltd,Computer Licences - New Computer Software,2016289,202001
Rother District Council,29/02/2020,101RESOURCES,Resources,20209,Corporate management,D2513,Hired and Contracted services,614.41,allpay.net Ltd,Hired and contracted services - Allpay Card/Rep/Let Chrg - Vatable,2016856,202001
Rother District Council,29/02/2020,101RESOURCES,Resources,20209,Corporate management,D2513,Hired and Contracted services,12.72,allpay.net Ltd,Hired and contracted services - Allpay Card/Rep/Let Chrg - Vatable,2016857,202001
Rother District Council,29/02/2020,101RESOURCES,Resources,20209,Corporate management,D2513,Hired and Contracted services,26.36,allpay.net Ltd,Hired and contracted services - Allpay Card/Rep/Let Chrg - Vatable,2016858,202001
Rother District Council,29/02/2020,101RESOURCES,Resources,20209,Corporate management,D2513,Hired and Contracted services,27.13,allpay.net Ltd,Hired and contracted services - Allpay Card/Rep/Let Chrg - Vatable,2016859,202001
Rother District Council,29/02/2020,041ENVIRON,Environmental Services,32136,EH Pest Control R + W Partnership,C1104,Derv,46.67,Allstar Business Solutions,,2016860,202002
Rother District Council,29/02/2020,041ENVIRON,Environmental Services,32136,EH Pest Control R + W Partnership,C1104,Derv,46.25,Allstar Business Solutions,,2016860,202002
Rother District Council,29/02/2020,041ENVIRON,Environmental Services,32136,EH Pest Control R + W Partnership,C1104,Derv,47.51,Allstar Business Solutions,,2016860,202002
Rother District Council,29/02/2020,041ENVIRON,Environmental Services,32136,EH Pest Control R + W Partnership,C1104,Derv,3.8,Allstar Business Solutions,Derv - Fuel Service fee payable on fuel cards,2016860,202002
Rother District Council,29/02/2020,031RESOURCES,Executive Directors & Corporate Core,20162,Electoral Registration,D2415,Printing by external suppliers,290.28,Civica Election Services Ltd,Printing by external suppliers - Printing (Not from RDC Print Room),2016298,202001
Rother District Council,29/02/2020,091HOUSING,Housing and Community Services,20145,Maintenance Services,C1104,Derv,52.25,Allstar Business Solutions,,2016860,202002
Rother District Council,29/02/2020,091HOUSING,Housing and Community Services,20145,Maintenance Services,C1104,Derv,74.59,Allstar Business Solutions,,2016860,202002
Rother District Council,29/02/2020,091HOUSING,Housing and Community Services,20145,Maintenance Services,C1104,Derv,36.68,Allstar Business Solutions,,2016860,202002
Rother District Council,29/02/2020,091HOUSING,Housing and Community Services,20145,Maintenance Services,C1104,Derv,3.8,Allstar Business Solutions,Derv - Fuel Service fee payable on fuel cards,2016860,202002
Rother District Council,29/02/2020,091HOUSING,Housing and Community Services,20145,Maintenance Services,C1104,Derv,68.68,Allstar Business Solutions,,2016860,202002
Rother District Council,29/02/2020,071STRAT,Strategy and Planning,20246,Planning Applications,D2519,Statutory Advertising,273.6,Reach Publishing Services Ltd,Statutory Advertising - Planadv-Kent+East Sussex Courier,2015710,202001
Rother District Council,01/03/2020,101RESOURCES,Resources,20216,Cost Of Collection,D2513,Hired and Contracted services,20,Lloyds Bank,Bank Charges,2016866,202001
Rother District Council,01/03/2020,101RESOURCES,Resources,20216,Cost Of Collection,D2513,Hired and Contracted services,20,Lloyds Bank,Bank Charges,2016867,202001
Rother District Council,01/03/2020,101RESOURCES,Resources,20216,Cost Of Collection,D2513,Hired and Contracted services,20,Lloyds Bank,Bank Charges,2016868,202001
Rother District Council,01/03/2020,101RESOURCES,Resources,20216,Cost Of Collection,D2513,Hired and Contracted services,597.34,Lloyds Bank,Bank Charges,2016869,202001
Rother District Council,01/03/2020,101RESOURCES,Resources,20216,Cost Of Collection,D2513,Hired and Contracted services,20,Lloyds Bank,Bank Charges,2016870,202001
Rother District Council,01/03/2020,101RESOURCES,Resources,20216,Cost Of Collection,D2513,Hired and Contracted services,20.02,Lloyds Bank,Bank Charges,2016871,202001
Rother District Council,01/03/2020,101RESOURCES,Resources,20216,Cost Of Collection,D2513,Hired and Contracted services,20.33,Lloyds Bank,Bank Charges,2016872,202001
Rother District Council,01/03/2020,101RESOURCES,Resources,20216,Cost Of Collection,D2513,Hired and Contracted services,"1,105.16",Lloyds Bank,Bank Charges,2016873,202001
Rother District Council,01/03/2020,101RESOURCES,Resources,20216,Cost Of Collection,D2513,Hired and Contracted services,152.87,Lloyds Bank,Bank Charges,2016874,202001
Rother District Council,01/03/2020,101RESOURCES,Resources,20216,Cost Of Collection,D2513,Hired and Contracted services,20,Lloyds Bank,Bank Charges,2016875,202001
Rother District Council,01/03/2020,091HOUSING,Housing and Community Services,20235,Rye Community Help Point,D2621,Telephones,50.95,Beaming Ltd,Telephones - Broadband Connection,2016900,202002
Rother District Council,02/03/2020,999NOREPORT,Not included in reporting,70726,Capital - Bexhill Cemetery Entrance/Driveway,D2513,Hired and Contracted services,"7,996.25",The Lawson Partnership Ltd t/a Lawson Queay,,2017007,202003
Rother District Council,02/03/2020,091HOUSING,Housing and Community Services,20137,Car Parks,D1201,Equipment & Materials,181.2,Brady Corporation Ltd (T/A Seton),Equipment & Materials - Car Parks various,2017859,202003
Rother District Council,03/03/2020,091HOUSING,Housing and Community Services,20137,Car Parks,B1100,Repairs to Premises,14.15,Trade Paints Ltd,Repairs to Premises - Purchase of Materials - Build Maint,2016917,202002
Rother District Council,03/03/2020,081ACQUISIT,"Acquisitions, Transformation and Regeneration",20146,West Trading Estate,B2201,Electricity,30.66,EDF Energy Customers plc,,2017622,202003
Rother District Council,04/03/2020,091HOUSING,Housing and Community Services,20137,Car Parks,D1201,Equipment & Materials,56,Brady Corporation Ltd (T/A Seton),Equipment & Materials - Car Parks various,2017860,202003
Rother District Council,04/03/2020,091HOUSING,Housing and Community Services,20137,Car Parks,D1201,Equipment & Materials,400,Flowbird Smart City UK Ltd,Equipment & Materials - Car Parks various,2016490,202001
Rother District Council,04/03/2020,091HOUSING,Housing and Community Services,20137,Car Parks,D1201,Equipment & Materials,25,Flowbird Smart City UK Ltd,Equipment & Materials - Carriage/Handling Charge,2016490,202001
Rother District Council,04/03/2020,091HOUSING,Housing and Community Services,20137,Car Parks,B1100,Repairs to Premises,37.36,Trade Paints Ltd,Repairs to Premises - Purchase of Materials - Build Maint,2016918,202002
Rother District Council,04/03/2020,081ACQUISIT,"Acquisitions, Transformation and Regeneration",20101,Cultural Development,D2923,Grants made,"1,000.00",REDACTED PERSONAL DATA,Grants made - Arts Development Projects,2016430,202001
Rother District Council,04/03/2020,081ACQUISIT,"Acquisitions, Transformation and Regeneration",20146,West Trading Estate,B2202,Gas,9.8,Crown Oil Ltd t/a Crown Gas & Power,Gas - Gas Charges,2016851,202002
Rother District Council,04/03/2020,081ACQUISIT,"Acquisitions, Transformation and Regeneration",20146,West Trading Estate,B2201,Electricity,213.3,Southern Electric (SSE),Electricity - Electricity Charges,2016576,202001
Rother District Council,04/03/2020,081ACQUISIT,"Acquisitions, Transformation and Regeneration",20146,West Trading Estate,B2202,Gas,284.73,Southern Electric (SSE),Gas - Gas Charges,2016575,202001
Rother District Council,05/03/2020,101RESOURCES,Resources,20209,Corporate management,D2513,Hired and Contracted services,115,Lloyds Bank,Bank Charges,2016897,202002
Rother District Council,05/03/2020,101RESOURCES,Resources,20216,Cost Of Collection,D2509,Consultants and Other Services,88.63,Lloyds Bank,Bank Charges,2016865,202001
Rother District Council,05/03/2020,041ENVIRON,Environmental Services,32142,EH Taxi and Private Hire Licenses R + W Partnership,D2513,Hired and Contracted services,40,uCheck,Hired and contracted services - Service fee paid,2016254,202001
Rother District Council,05/03/2020,041ENVIRON,Environmental Services,32142,EH Taxi and Private Hire Licenses R + W Partnership,D2513,Hired and Contracted services,8.67,uCheck,Hired and contracted services - Service fee paid,2016254,202001
Rother District Council,06/03/2020,999NOREPORT,Not included in reporting,70742,Capital - New Website Development,N1010,Software Purchase,"1,007.00",Apple Retail UK Ltd,Software Purchase,2017162,202003
Rother District Council,06/03/2020,101RESOURCES,Resources,20209,Corporate management,D2516,Audit fees,"9,264.00",Grant Thornton UK LLP,Audit Fees - External Audit,2017195,202002
Rother District Council,06/03/2020,041ENVIRON,Environmental Services,32144,EH Environmental Services Admin R + W Partnership,A2203,Training,290.4,Institute of Licensing (Events) Ltd,Training,2017382,202002
Rother District Council,09/03/2020,031RESOURCES,Executive Directors & Corporate Core,20173,Administrative Offices - Town Hall,B1100,Repairs to Premises,11.4,Autolec Motor Factors,Repairs to Premises - Purchase of Materials - Build Maint,2016747,202001
Rother District Council,09/03/2020,031RESOURCES,Executive Directors & Corporate Core,20173,Administrative Offices - Town Hall,B1100,Repairs to Premises,40.88,Trade Paints Ltd,Repairs to Premises - Purchase of Materials - Build Maint,2016920,202002
Rother District Council,09/03/2020,031RESOURCES,Executive Directors & Corporate Core,20173,Administrative Offices - Town Hall,B1100,Repairs to Premises,53.04,Trade Paints Ltd,Repairs to Premises - Purchase of Materials - Build Maint,2016919,202002
Rother District Council,09/03/2020,999NOREPORT,Not included in reporting,70725,Capital - Blackfriars,N1004,Architects & Consultant Fees,"2,020.00",Natural England,Architects & Consultant Fees Capital-Architect and Conslt Fees,2016748,202001
Rother District Council,09/03/2020,101RESOURCES,Resources,20239,Computer Services,D2513,Hired and Contracted services,11.99,UK Computer Group Ltd T/A  Misco,Hired and contracted services - Delivery and/or Packaging of Equipm,2016652,202001
Rother District Council,09/03/2020,101RESOURCES,Resources,20239,Computer Services,D2632,Additional Computer Equipment,"11,459.80",UK Computer Group Ltd T/A  Misco,Additional Computer Equipment - New PC/Computer,2016652,202001
Rother District Council,09/03/2020,101RESOURCES,Resources,20239,Computer Services,D2633,Computer Equipment,"3,970.00",UK Computer Group Ltd T/A  Misco,Computer Equipment - Computer peripherals,2016652,202001
Rother District Council,09/03/2020,101RESOURCES,Resources,20240,Printing Services,D2417,Photocopy Paper by external suppliers,174.05,Ovenden Papers Ltd,Photocopy Paper by external suppliers - Colour Paper,2016441,202001
Rother District Council,09/03/2020,081ACQUISIT,"Acquisitions, Transformation and Regeneration",20146,West Trading Estate,B1100,Repairs to Premises,70.41,Trade Paints Ltd,Repairs to Premises - Purchase of Materials - Build Maint,2016921,202002
Rother District Council,10/03/2020,031RESOURCES,Executive Directors & Corporate Core,20173,Administrative Offices - Town Hall,B1100,Repairs to Premises,6.13,Trade Paints Ltd,Repairs to Premises - Purchase of Materials - Build Maint,2016922,202002
Rother District Council,10/03/2020,101RESOURCES,Resources,20209,Corporate management,D2513,Hired and Contracted services,173.85,Lloyds Bank,Bank Charges,2016898,202002
Rother District Council,10/03/2020,031RESOURCES,Executive Directors & Corporate Core,20162,Electoral Registration,D2626,Postages,0.55,Royal Mail Group Ltd,Postages - Response Service-Royal Mail Chg,2016080,202001
Rother District Council,10/03/2020,081ACQUISIT,"Acquisitions, Transformation and Regeneration",20146,West Trading Estate,B1100,Repairs to Premises,47.65,Trade Paints Ltd,Repairs to Premises - Purchase of Materials - Build Maint,2016923,202002
Rother District Council,11/03/2020,071STRAT,Strategy and Planning,20258,BC Dangerous Structures H+R Partnership,D2513,Hired and Contracted services,9,H M Land Registry,Hired and contracted services - Env H-Land Registry,2016863,202002
Rother District Council,11/03/2020,101RESOURCES,Resources,20216,Cost Of Collection,D2513,Hired and Contracted services,9,H M Land Registry,Hired and contracted services - Council Tax-Land Registry Enquiries,2016863,202002
Rother District Council,11/03/2020,041ENVIRON,Environmental Services,32134,EH Pollution R + W Partnership,D2513,Hired and Contracted services,12,H M Land Registry,Hired and contracted services - Env H-Land Registry,2016863,202002
Rother District Council,11/03/2020,031RESOURCES,Executive Directors & Corporate Core,20180,Emergency Planning,D2352,Clothing and Uniforms,62.95,Booker Ltd,Clothing and Uniforms - Mens Protective-Other,2016899,202002
Rother District Council,11/03/2020,091HOUSING,Housing and Community Services,20200,Housing Needs - HB (Housing Benefit),D2513,Hired and Contracted services,"1,143.20",Bexhill & Rother Homelessness Unity Group (HUG) CIO,Hired and contracted services - Service fee paid,2016518,202001
Rother District Council,11/03/2020,071STRAT,Strategy and Planning,20246,Planning Applications,D2513,Hired and Contracted services,33,H M Land Registry,Hired and contracted services - Land Registry-Planning,2016863,202002
Rother District Council,11/03/2020,081ACQUISIT,"Acquisitions, Transformation and Regeneration",20267,Property Investment Strategy - 18-40 Beeching Road ( Land and Buildings),B2202,Gas,46.11,Crown Oil Ltd t/a Crown Gas & Power,Gas - Gas Charges,2016852,202002
Rother District Council,11/03/2020,081ACQUISIT,"Acquisitions, Transformation and Regeneration",20267,Property Investment Strategy - 18-40 Beeching Road ( Land and Buildings),B2202,Gas,46.11,Gazprom Marketing & Trading Retail Ltd,Gas - Gas Charges,2016684,202001
Rother District Council,11/03/2020,091HOUSING,Housing and Community Services,20206,Syrians,D2513,Hired and Contracted services,67.2,REDACTED PERSONAL DATA,Hired and contracted services - Syrian Resettlement Programme-Travel,2016341,202001
Rother District Council,12/03/2020,101RESOURCES,Resources,20222,Accountancy,D2922,Subscriptions,"2,950.00",LAVAT Consulting Ltd (PSTAX),Subscriptions - Subscription to Organisations,2016357,202001
Rother District Council,12/03/2020,101RESOURCES,Resources,20222,Accountancy,A1110,Agency Staff,"3,350.00",Law Morgan Limited,Agency Staff,2017870,202003
Rother District Council,12/03/2020,031RESOURCES,Executive Directors & Corporate Core,20173,Administrative Offices - Town Hall,B1100,Repairs to Premises,-11.23,Trade Paints Ltd,Repairs to Premises - Purchase of Materials - Build Maint,2016925,202002
Rother District Council,12/03/2020,031RESOURCES,Executive Directors & Corporate Core,20173,Administrative Offices - Town Hall,B1100,Repairs to Premises,14.61,Trade Paints Ltd,Repairs to Premises - Purchase of Materials - Build Maint,2016924,202002
Rother District Council,12/03/2020,999NOREPORT,Not included in reporting,70725,Capital - Blackfriars,D2513,Hired and Contracted services,"24,740.00",REDACTED PERSONAL DATA,Hired and contracted services - ecology work-blackfriars,2016395,202001
Rother District Council,12/03/2020,999NOREPORT,Not included in reporting,70725,Capital - Blackfriars,D2513,Hired and Contracted services,"3,135.00",REDACTED PERSONAL DATA,Hired and contracted services - ecology work-blackfriars,2016396,202001
Rother District Council,12/03/2020,999NOREPORT,Not included in reporting,70725,Capital - Blackfriars,D2513,Hired and Contracted services,"1,700.00",REDACTED PERSONAL DATA,Hired and contracted services - ecology work-blackfriars,2016392,202001
Rother District Council,12/03/2020,999NOREPORT,Not included in reporting,70725,Capital - Blackfriars,D2513,Hired and Contracted services,"7,578.50",REDACTED PERSONAL DATA,Hired and contracted services - ecology work-blackfriars,2016393,202001
Rother District Council,12/03/2020,999NOREPORT,Not included in reporting,70725,Capital - Blackfriars,D2513,Hired and Contracted services,"5,100.00",REDACTED PERSONAL DATA,Hired and contracted services - ecology work-blackfriars,2016394,202001
Rother District Council,12/03/2020,999NOREPORT,Not included in reporting,70725,Capital - Blackfriars,D2513,Hired and Contracted services,"8,010.40",REDACTED PERSONAL DATA,Hired and contracted services - ecology work-blackfriars,2016397,202001
Rother District Council,12/03/2020,091HOUSING,Housing and Community Services,20137,Car Parks,D1201,Equipment & Materials,175.5,Flowbird Smart City UK Ltd,Equipment & Materials - Car Parks various,2016727,202001
Rother District Council,12/03/2020,091HOUSING,Housing and Community Services,20137,Car Parks,D1201,Equipment & Materials,20,Flowbird Smart City UK Ltd,Equipment & Materials - Carriage/Handling Charge,2016727,202001
Rother District Council,12/03/2020,031RESOURCES,Executive Directors & Corporate Core,20158,Committee Service General Exp,A2203,Training,75,Civica UK Ltd,Training,2016047,202001
Rother District Council,13/03/2020,101RESOURCES,Resources,20222,Accountancy,D2622,Mobile Phones,10,O2 (UK) Ltd,,2017171,202002
Rother District Council,13/03/2020,101RESOURCES,Resources,20222,Accountancy,D2622,Mobile Phones,10,O2 (UK) Ltd,,2017171,202002
Rother District Council,13/03/2020,081ACQUISIT,"Acquisitions, Transformation and Regeneration",20243,Business Improvement,D2622,Mobile Phones,10,O2 (UK) Ltd,,2017170,202002
Rother District Council,13/03/2020,081ACQUISIT,"Acquisitions, Transformation and Regeneration",20243,Business Improvement,D2622,Mobile Phones,10,O2 (UK) Ltd,,2017170,202002
Rother District Council,13/03/2020,031RESOURCES,Executive Directors & Corporate Core,20158,Committee Service General Exp,D2622,Mobile Phones,10,O2 (UK) Ltd,,2017296,202002
Rother District Council,13/03/2020,031RESOURCES,Executive Directors & Corporate Core,20179,Communications,D2622,Mobile Phones,10,O2 (UK) Ltd,,2017296,202002
Rother District Council,13/03/2020,071STRAT,Strategy and Planning,20248,"Complaints,Compliance,Enforce",D2622,Mobile Phones,10,O2 (UK) Ltd,,2017297,202002
Rother District Council,13/03/2020,071STRAT,Strategy and Planning,20248,"Complaints,Compliance,Enforce",D2622,Mobile Phones,10,O2 (UK) Ltd,,2017297,202002
Rother District Council,13/03/2020,071STRAT,Strategy and Planning,20248,"Complaints,Compliance,Enforce",D2622,Mobile Phones,10,O2 (UK) Ltd,,2017297,202002
Rother District Council,13/03/2020,101RESOURCES,Resources,20239,Computer Services,D2631,Computer Equip Maintenance,135.96,Alfa Electric Ltd,Computer Equip Maintenance - IT EQUIP MAINT-Air Conditioning,2016090,202001
Rother District Council,13/03/2020,101RESOURCES,Resources,20239,Computer Services,D2622,Mobile Phones,10,O2 (UK) Ltd,,2017171,202002
Rother District Council,13/03/2020,101RESOURCES,Resources,20239,Computer Services,D2622,Mobile Phones,10,O2 (UK) Ltd,,2017171,202002
Rother District Council,13/03/2020,101RESOURCES,Resources,20239,Computer Services,D2622,Mobile Phones,10,O2 (UK) Ltd,,2017171,202002
Rother District Council,13/03/2020,101RESOURCES,Resources,20239,Computer Services,D2622,Mobile Phones,10,O2 (UK) Ltd,,2017171,202002
Rother District Council,13/03/2020,101RESOURCES,Resources,20239,Computer Services,D2622,Mobile Phones,10,O2 (UK) Ltd,,2017171,202002
Rother District Council,13/03/2020,101RESOURCES,Resources,20239,Computer Services,D2622,Mobile Phones,10,O2 (UK) Ltd,,2017171,202002
Rother District Council,13/03/2020,101RESOURCES,Resources,20209,Corporate management,D2513,Hired and Contracted services,126.56,Capita Business Services Ltd,Bank Charges,2016896,202002
Rother District Council,13/03/2020,101RESOURCES,Resources,20216,Cost Of Collection,D2513,Hired and Contracted services,18,H M Land Registry,Hired and contracted services - Council Tax-Land Registry Enquiries,2017050,202002
Rother District Council,13/03/2020,101RESOURCES,Resources,20216,Cost Of Collection,D2513,Hired and Contracted services,12,H M Land Registry,Hired and contracted services - Land Registry-Planning,2017050,202002
Rother District Council,13/03/2020,091HOUSING,Housing and Community Services,20236,Customer Services and Development,D2622,Mobile Phones,15,O2 (UK) Ltd,,2017398,202003
Rother District Council,13/03/2020,081ACQUISIT,"Acquisitions, Transformation and Regeneration",20122,Economic Development,D2622,Mobile Phones,10,O2 (UK) Ltd,,2017170,202002
Rother District Council,13/03/2020,081ACQUISIT,"Acquisitions, Transformation and Regeneration",20122,Economic Development,D2622,Mobile Phones,10,O2 (UK) Ltd,,2017170,202002
Rother District Council,13/03/2020,081ACQUISIT,"Acquisitions, Transformation and Regeneration",20122,Economic Development,D2622,Mobile Phones,10,O2 (UK) Ltd,,2017170,202002
Rother District Council,13/03/2020,081ACQUISIT,"Acquisitions, Transformation and Regeneration",20122,Economic Development,D2622,Mobile Phones,10,O2 (UK) Ltd,,2017170,202002
Rother District Council,13/03/2020,081ACQUISIT,"Acquisitions, Transformation and Regeneration",20122,Economic Development,D2622,Mobile Phones,10,O2 (UK) Ltd,,2017170,202002
Rother District Council,13/03/2020,081ACQUISIT,"Acquisitions, Transformation and Regeneration",20122,Economic Development,D2622,Mobile Phones,10,O2 (UK) Ltd,,2017170,202002
Rother District Council,13/03/2020,031RESOURCES,Executive Directors & Corporate Core,20162,Electoral Registration,D2622,Mobile Phones,10,O2 (UK) Ltd,,2017296,202002
Rother District Council,13/03/2020,031RESOURCES,Executive Directors & Corporate Core,20180,Emergency Planning,D2622,Mobile Phones,10,O2 (UK) Ltd,,2017296,202002
Rother District Council,13/03/2020,031RESOURCES,Executive Directors & Corporate Core,20180,Emergency Planning,D2622,Mobile Phones,10,O2 (UK) Ltd,,2017296,202002
Rother District Council,13/03/2020,031RESOURCES,Executive Directors & Corporate Core,20180,Emergency Planning,D2622,Mobile Phones,4.5,O2 (UK) Ltd,,2017296,202002
Rother District Council,13/03/2020,031RESOURCES,Executive Directors & Corporate Core,20183,Executive Directors,D2622,Mobile Phones,10.7,O2 (UK) Ltd,,2017296,202002
Rother District Council,13/03/2020,031RESOURCES,Executive Directors & Corporate Core,20183,Executive Directors,D2622,Mobile Phones,30,O2 (UK) Ltd,,2017296,202002
Rother District Council,13/03/2020,031RESOURCES,Executive Directors & Corporate Core,20183,Executive Directors,D2622,Mobile Phones,10,O2 (UK) Ltd,,2017296,202002
Rother District Council,13/03/2020,041ENVIRON,Environmental Services,20199,Food and Safety Team,D2622,Mobile Phones,10,O2 (UK) Ltd,,2017155,202002
Rother District Council,13/03/2020,041ENVIRON,Environmental Services,20199,Food and Safety Team,D2622,Mobile Phones,10.11,O2 (UK) Ltd,,2017155,202002
Rother District Council,13/03/2020,041ENVIRON,Environmental Services,20199,Food and Safety Team,D2622,Mobile Phones,22.5,O2 (UK) Ltd,,2017155,202002
Rother District Council,13/03/2020,041ENVIRON,Environmental Services,20199,Food and Safety Team,D2622,Mobile Phones,10,O2 (UK) Ltd,,2017155,202002
Rother District Council,13/03/2020,041ENVIRON,Environmental Services,20199,Food and Safety Team,D2622,Mobile Phones,10,O2 (UK) Ltd,,2017155,202002
Rother District Council,13/03/2020,041ENVIRON,Environmental Services,20199,Food and Safety Team,D2622,Mobile Phones,10,O2 (UK) Ltd,,2017155,202002
Rother District Council,13/03/2020,041ENVIRON,Environmental Services,20199,Food and Safety Team,D2622,Mobile Phones,10,O2 (UK) Ltd,,2017155,202002
Rother District Council,13/03/2020,041ENVIRON,Environmental Services,20199,Food and Safety Team,D2622,Mobile Phones,10,O2 (UK) Ltd,,2017155,202002
Rother District Council,13/03/2020,041ENVIRON,Environmental Services,20199,Food and Safety Team,D2622,Mobile Phones,10,O2 (UK) Ltd,,2017155,202002
Rother District Council,13/03/2020,041ENVIRON,Environmental Services,20199,Food and Safety Team,D2622,Mobile Phones,10,O2 (UK) Ltd,,2017155,202002
Rother District Council,13/03/2020,041ENVIRON,Environmental Services,20199,Food and Safety Team,D2622,Mobile Phones,10,O2 (UK) Ltd,,2017155,202002
Rother District Council,13/03/2020,041ENVIRON,Environmental Services,20199,Food and Safety Team,D2622,Mobile Phones,10,O2 (UK) Ltd,,2017155,202002
Rother District Council,13/03/2020,041ENVIRON,Environmental Services,20199,Food and Safety Team,D2622,Mobile Phones,10.58,O2 (UK) Ltd,,2017155,202002
Rother District Council,13/03/2020,041ENVIRON,Environmental Services,20199,Food and Safety Team,D2622,Mobile Phones,10,O2 (UK) Ltd,,2017155,202002
Rother District Council,13/03/2020,041ENVIRON,Environmental Services,20199,Food and Safety Team,D2622,Mobile Phones,10,O2 (UK) Ltd,,2017155,202002
Rother District Council,13/03/2020,081ACQUISIT,"Acquisitions, Transformation and Regeneration",20263,"Head of Service Acquisitions, Transformation and Regeneration",D2622,Mobile Phones,10,O2 (UK) Ltd,,2017170,202002
Rother District Council,13/03/2020,091HOUSING,Housing and Community Services,20262,Head of Service Housing and Community Services,D2622,Mobile Phones,10,O2 (UK) Ltd,,2017398,202003
Rother District Council,13/03/2020,091HOUSING,Housing and Community Services,20204,Housing Administration Account,D2622,Mobile Phones,10,O2 (UK) Ltd,,2017398,202003
Rother District Council,13/03/2020,091HOUSING,Housing and Community Services,20204,Housing Administration Account,D2622,Mobile Phones,10,O2 (UK) Ltd,,2017398,202003
Rother District Council,13/03/2020,091HOUSING,Housing and Community Services,20204,Housing Administration Account,D2622,Mobile Phones,10,O2 (UK) Ltd,,2017398,202003
Rother District Council,13/03/2020,091HOUSING,Housing and Community Services,20204,Housing Administration Account,D2622,Mobile Phones,10,O2 (UK) Ltd,,2017398,202003
Rother District Council,13/03/2020,091HOUSING,Housing and Community Services,20204,Housing Administration Account,D2622,Mobile Phones,10.24,O2 (UK) Ltd,,2017398,202003
Rother District Council,13/03/2020,091HOUSING,Housing and Community Services,20204,Housing Administration Account,D2622,Mobile Phones,10,O2 (UK) Ltd,,2017398,202003
Rother District Council,13/03/2020,091HOUSING,Housing and Community Services,20204,Housing Administration Account,D2622,Mobile Phones,10,O2 (UK) Ltd,,2017398,202003
Rother District Council,13/03/2020,091HOUSING,Housing and Community Services,20204,Housing Administration Account,D2622,Mobile Phones,10,O2 (UK) Ltd,,2017398,202003
Rother District Council,13/03/2020,091HOUSING,Housing and Community Services,20204,Housing Administration Account,D2622,Mobile Phones,10,O2 (UK) Ltd,,2017398,202003
Rother District Council,13/03/2020,091HOUSING,Housing and Community Services,20204,Housing Administration Account,D2622,Mobile Phones,10,O2 (UK) Ltd,,2017398,202003
Rother District Council,13/03/2020,091HOUSING,Housing and Community Services,20204,Housing Administration Account,D2622,Mobile Phones,10,O2 (UK) Ltd,,2017398,202003
Rother District Council,13/03/2020,091HOUSING,Housing and Community Services,20204,Housing Administration Account,D2622,Mobile Phones,10,O2 (UK) Ltd,,2017398,202003
Rother District Council,13/03/2020,091HOUSING,Housing and Community Services,20204,Housing Administration Account,D2622,Mobile Phones,-4.93,O2 (UK) Ltd,,2017398,202003
Rother District Council,13/03/2020,091HOUSING,Housing and Community Services,20204,Housing Administration Account,D2622,Mobile Phones,11.04,O2 (UK) Ltd,,2017398,202003
Rother District Council,13/03/2020,091HOUSING,Housing and Community Services,20204,Housing Administration Account,D2622,Mobile Phones,10,O2 (UK) Ltd,,2017398,202003
Rother District Council,13/03/2020,091HOUSING,Housing and Community Services,20204,Housing Administration Account,D2622,Mobile Phones,10,O2 (UK) Ltd,,2017398,202003
Rother District Council,13/03/2020,091HOUSING,Housing and Community Services,20204,Housing Administration Account,D2622,Mobile Phones,10,O2 (UK) Ltd,,2017398,202003
Rother District Council,13/03/2020,031RESOURCES,Executive Directors & Corporate Core,20171,Human Resources,D2622,Mobile Phones,10,O2 (UK) Ltd,,2017296,202002
Rother District Council,13/03/2020,031RESOURCES,Executive Directors & Corporate Core,20171,Human Resources,D2622,Mobile Phones,10,O2 (UK) Ltd,,2017296,202002
Rother District Council,13/03/2020,031RESOURCES,Executive Directors & Corporate Core,32132,Joint Waste Contract Client Unit,D2622,Mobile Phones,10,O2 (UK) Ltd,,2017296,202002
Rother District Council,13/03/2020,031RESOURCES,Executive Directors & Corporate Core,32132,Joint Waste Contract Client Unit,D2622,Mobile Phones,10,O2 (UK) Ltd,,2017296,202002
Rother District Council,13/03/2020,041ENVIRON,Environmental Services,20198,Licensing Team,D2622,Mobile Phones,18.9,O2 (UK) Ltd,,2017155,202002
Rother District Council,13/03/2020,041ENVIRON,Environmental Services,20198,Licensing Team,D2622,Mobile Phones,10,O2 (UK) Ltd,,2017155,202002
Rother District Council,13/03/2020,041ENVIRON,Environmental Services,20198,Licensing Team,D2622,Mobile Phones,10,O2 (UK) Ltd,,2017155,202002
Rother District Council,13/03/2020,041ENVIRON,Environmental Services,20198,Licensing Team,D2622,Mobile Phones,10,O2 (UK) Ltd,,2017155,202002
Rother District Council,13/03/2020,041ENVIRON,Environmental Services,20198,Licensing Team,D2622,Mobile Phones,10,O2 (UK) Ltd,,2017155,202002
Rother District Council,13/03/2020,041ENVIRON,Environmental Services,20198,Licensing Team,D2622,Mobile Phones,10,O2 (UK) Ltd,,2017155,202002
Rother District Council,13/03/2020,041ENVIRON,Environmental Services,20198,Licensing Team,D2622,Mobile Phones,10,O2 (UK) Ltd,,2017155,202002
Rother District Council,13/03/2020,081ACQUISIT,"Acquisitions, Transformation and Regeneration",20272,Major Projects unit,D2622,Mobile Phones,10,O2 (UK) Ltd,,2017170,202002
Rother District Council,13/03/2020,091HOUSING,Housing and Community Services,20120,Neighbourhood Services,D2622,Mobile Phones,10,O2 (UK) Ltd,,2017398,202003
Rother District Council,13/03/2020,091HOUSING,Housing and Community Services,20120,Neighbourhood Services,D2622,Mobile Phones,10,O2 (UK) Ltd,,2017398,202003
Rother District Council,13/03/2020,091HOUSING,Housing and Community Services,20120,Neighbourhood Services,D2622,Mobile Phones,10,O2 (UK) Ltd,,2017398,202003
Rother District Council,13/03/2020,091HOUSING,Housing and Community Services,20120,Neighbourhood Services,D2622,Mobile Phones,10,O2 (UK) Ltd,,2017398,202003
Rother District Council,13/03/2020,091HOUSING,Housing and Community Services,20120,Neighbourhood Services,D2622,Mobile Phones,68.85,O2 (UK) Ltd,,2017398,202003
Rother District Council,13/03/2020,091HOUSING,Housing and Community Services,20120,Neighbourhood Services,D2622,Mobile Phones,10,O2 (UK) Ltd,,2017398,202003
Rother District Council,13/03/2020,091HOUSING,Housing and Community Services,20120,Neighbourhood Services,D2622,Mobile Phones,10,O2 (UK) Ltd,,2017398,202003
Rother District Council,13/03/2020,091HOUSING,Housing and Community Services,20120,Neighbourhood Services,D2622,Mobile Phones,10.34,O2 (UK) Ltd,,2017398,202003
Rother District Council,13/03/2020,091HOUSING,Housing and Community Services,20120,Neighbourhood Services,D2622,Mobile Phones,10,O2 (UK) Ltd,,2017398,202003
Rother District Council,13/03/2020,091HOUSING,Housing and Community Services,20120,Neighbourhood Services,D2622,Mobile Phones,10,O2 (UK) Ltd,,2017398,202003
Rother District Council,13/03/2020,091HOUSING,Housing and Community Services,20120,Neighbourhood Services,D2622,Mobile Phones,10,O2 (UK) Ltd,,2017398,202003
Rother District Council,13/03/2020,091HOUSING,Housing and Community Services,20120,Neighbourhood Services,D2622,Mobile Phones,10,O2 (UK) Ltd,,2017398,202003
Rother District Council,13/03/2020,091HOUSING,Housing and Community Services,20120,Neighbourhood Services,D2622,Mobile Phones,10,O2 (UK) Ltd,,2017398,202003
Rother District Council,13/03/2020,091HOUSING,Housing and Community Services,20120,Neighbourhood Services,D2622,Mobile Phones,10,O2 (UK) Ltd,,2017398,202003
Rother District Council,13/03/2020,091HOUSING,Housing and Community Services,20120,Neighbourhood Services,D2622,Mobile Phones,10,O2 (UK) Ltd,,2017398,202003
Rother District Council,13/03/2020,091HOUSING,Housing and Community Services,20120,Neighbourhood Services,D2622,Mobile Phones,10,O2 (UK) Ltd,,2017398,202003
Rother District Council,13/03/2020,091HOUSING,Housing and Community Services,20120,Neighbourhood Services,D2622,Mobile Phones,10.11,O2 (UK) Ltd,,2017398,202003
Rother District Council,13/03/2020,091HOUSING,Housing and Community Services,20120,Neighbourhood Services,D2622,Mobile Phones,10,O2 (UK) Ltd,,2017398,202003
Rother District Council,13/03/2020,091HOUSING,Housing and Community Services,20120,Neighbourhood Services,D2622,Mobile Phones,10,O2 (UK) Ltd,,2017398,202003
Rother District Council,13/03/2020,091HOUSING,Housing and Community Services,20120,Neighbourhood Services,D2622,Mobile Phones,10,O2 (UK) Ltd,,2017398,202003
Rother District Council,13/03/2020,091HOUSING,Housing and Community Services,20120,Neighbourhood Services,D2622,Mobile Phones,10,O2 (UK) Ltd,,2017398,202003
Rother District Council,13/03/2020,091HOUSING,Housing and Community Services,20120,Neighbourhood Services,D2622,Mobile Phones,10,O2 (UK) Ltd,,2017398,202003
Rother District Council,13/03/2020,091HOUSING,Housing and Community Services,20120,Neighbourhood Services,D2622,Mobile Phones,10,O2 (UK) Ltd,,2017398,202003
Rother District Council,13/03/2020,091HOUSING,Housing and Community Services,20120,Neighbourhood Services,D2622,Mobile Phones,10,O2 (UK) Ltd,,2017398,202003
Rother District Council,13/03/2020,091HOUSING,Housing and Community Services,20120,Neighbourhood Services,D2622,Mobile Phones,10,O2 (UK) Ltd,,2017398,202003
Rother District Council,13/03/2020,091HOUSING,Housing and Community Services,20120,Neighbourhood Services,D2622,Mobile Phones,10,O2 (UK) Ltd,,2017398,202003
Rother District Council,13/03/2020,091HOUSING,Housing and Community Services,20120,Neighbourhood Services,D2622,Mobile Phones,10,O2 (UK) Ltd,,2017398,202003
Rother District Council,13/03/2020,091HOUSING,Housing and Community Services,20120,Neighbourhood Services,D2622,Mobile Phones,10,O2 (UK) Ltd,,2017398,202003
Rother District Council,13/03/2020,091HOUSING,Housing and Community Services,20120,Neighbourhood Services,D2622,Mobile Phones,10,O2 (UK) Ltd,,2017398,202003
Rother District Council,13/03/2020,091HOUSING,Housing and Community Services,20120,Neighbourhood Services,D2622,Mobile Phones,10,O2 (UK) Ltd,,2017398,202003
Rother District Council,13/03/2020,071STRAT,Strategy and Planning,20246,Planning Applications,D2622,Mobile Phones,10,O2 (UK) Ltd,,2017297,202002
Rother District Council,13/03/2020,071STRAT,Strategy and Planning,20246,Planning Applications,D2622,Mobile Phones,10,O2 (UK) Ltd,,2017297,202002
Rother District Council,13/03/2020,041ENVIRON,Environmental Services,20265,Pollution Team,D2622,Mobile Phones,10,O2 (UK) Ltd,,2017155,202002
Rother District Council,13/03/2020,041ENVIRON,Environmental Services,20265,Pollution Team,D2622,Mobile Phones,10,O2 (UK) Ltd,,2017155,202002
Rother District Council,13/03/2020,041ENVIRON,Environmental Services,20265,Pollution Team,D2622,Mobile Phones,10,O2 (UK) Ltd,,2017155,202002
Rother District Council,13/03/2020,041ENVIRON,Environmental Services,20265,Pollution Team,D2622,Mobile Phones,10,O2 (UK) Ltd,,2017155,202002
Rother District Council,13/03/2020,041ENVIRON,Environmental Services,20265,Pollution Team,D2622,Mobile Phones,10,O2 (UK) Ltd,,2017155,202002
Rother District Council,13/03/2020,041ENVIRON,Environmental Services,20265,Pollution Team,D2622,Mobile Phones,10,O2 (UK) Ltd,,2017155,202002
Rother District Council,13/03/2020,041ENVIRON,Environmental Services,20265,Pollution Team,D2622,Mobile Phones,-4.93,O2 (UK) Ltd,,2017155,202002
Rother District Council,13/03/2020,041ENVIRON,Environmental Services,20265,Pollution Team,D2622,Mobile Phones,10,O2 (UK) Ltd,,2017155,202002
Rother District Council,13/03/2020,041ENVIRON,Environmental Services,20265,Pollution Team,D2622,Mobile Phones,10,O2 (UK) Ltd,,2017155,202002
Rother District Council,13/03/2020,041ENVIRON,Environmental Services,20265,Pollution Team,D2622,Mobile Phones,10,O2 (UK) Ltd,,2017155,202002
Rother District Council,13/03/2020,041ENVIRON,Environmental Services,20265,Pollution Team,D2622,Mobile Phones,10,O2 (UK) Ltd,,2017155,202002
Rother District Council,13/03/2020,041ENVIRON,Environmental Services,20265,Pollution Team,D2622,Mobile Phones,10,O2 (UK) Ltd,,2017155,202002
Rother District Council,13/03/2020,041ENVIRON,Environmental Services,20265,Pollution Team,D2622,Mobile Phones,10,O2 (UK) Ltd,,2017155,202002
Rother District Council,13/03/2020,041ENVIRON,Environmental Services,20265,Pollution Team,D2622,Mobile Phones,10,O2 (UK) Ltd,,2017155,202002
Rother District Council,13/03/2020,041ENVIRON,Environmental Services,20265,Pollution Team,D2622,Mobile Phones,10,O2 (UK) Ltd,,2017155,202002
Rother District Council,13/03/2020,081ACQUISIT,"Acquisitions, Transformation and Regeneration",20121,Programme and Policy Office,D2513,Hired and Contracted services,3,H M Land Registry,Hired and contracted services - Land Registry-Property Management,2017050,202002
Rother District Council,13/03/2020,081ACQUISIT,"Acquisitions, Transformation and Regeneration",20121,Programme and Policy Office,D2622,Mobile Phones,10,O2 (UK) Ltd,,2017170,202002
Rother District Council,13/03/2020,091HOUSING,Housing and Community Services,20264,Property Maintenance Team,D2622,Mobile Phones,10,O2 (UK) Ltd,,2017398,202003
Rother District Council,13/03/2020,091HOUSING,Housing and Community Services,20264,Property Maintenance Team,D2622,Mobile Phones,10,O2 (UK) Ltd,,2017398,202003
Rother District Council,13/03/2020,091HOUSING,Housing and Community Services,20264,Property Maintenance Team,D2622,Mobile Phones,10,O2 (UK) Ltd,,2017398,202003
Rother District Council,13/03/2020,091HOUSING,Housing and Community Services,20264,Property Maintenance Team,D2622,Mobile Phones,42.45,O2 (UK) Ltd,,2017398,202003
Rother District Council,13/03/2020,091HOUSING,Housing and Community Services,20264,Property Maintenance Team,D2622,Mobile Phones,10.87,O2 (UK) Ltd,,2017398,202003
Rother District Council,13/03/2020,091HOUSING,Housing and Community Services,20264,Property Maintenance Team,D2622,Mobile Phones,10,O2 (UK) Ltd,,2017398,202003
Rother District Council,13/03/2020,091HOUSING,Housing and Community Services,20264,Property Maintenance Team,D2622,Mobile Phones,10,O2 (UK) Ltd,,2017398,202003
Rother District Council,13/03/2020,091HOUSING,Housing and Community Services,20264,Property Maintenance Team,D2622,Mobile Phones,10,O2 (UK) Ltd,,2017398,202003
Rother District Council,13/03/2020,101RESOURCES,Resources,20215,Revenue and Benefits,D2622,Mobile Phones,10,O2 (UK) Ltd,,2017171,202002
Rother District Council,13/03/2020,101RESOURCES,Resources,20215,Revenue and Benefits,D2622,Mobile Phones,10,O2 (UK) Ltd,,2017171,202002
Rother District Council,13/03/2020,101RESOURCES,Resources,20215,Revenue and Benefits,D2622,Mobile Phones,10,O2 (UK) Ltd,,2017171,202002
Rother District Council,13/03/2020,101RESOURCES,Resources,20215,Revenue and Benefits,D2622,Mobile Phones,10,O2 (UK) Ltd,,2017171,202002
Rother District Council,13/03/2020,101RESOURCES,Resources,20215,Revenue and Benefits,D2622,Mobile Phones,10,O2 (UK) Ltd,,2017171,202002
Rother District Council,13/03/2020,101RESOURCES,Resources,20215,Revenue and Benefits,D2622,Mobile Phones,10,O2 (UK) Ltd,,2017171,202002
Rother District Council,13/03/2020,041ENVIRON,Environmental Services,20197,Service Manager Env Serv,D2622,Mobile Phones,10,O2 (UK) Ltd,,2017155,202002
Rother District Council,13/03/2020,101RESOURCES,Resources,20226,Service Manager Finance and Welfare,D2622,Mobile Phones,10,O2 (UK) Ltd,,2017296,202002
Rother District Council,13/03/2020,071STRAT,Strategy and Planning,20247,Service Manager Strategy and Planning,D2622,Mobile Phones,10,O2 (UK) Ltd,,2017297,202002
Rother District Council,13/03/2020,091HOUSING,Housing and Community Services,20109,Sports Development,D2622,Mobile Phones,10,O2 (UK) Ltd,,2017398,202003
Rother District Council,14/03/2020,091HOUSING,Housing and Community Services,20108,Bexhill Promenade & Foreshore,E2302,Third party payment private contractors,325,Sussex Waste Management Ltd,Third party payment private contractors - Waste Management Services Contract,2016532,202001
Rother District Council,14/03/2020,091HOUSING,Housing and Community Services,20108,Bexhill Promenade & Foreshore,E2302,Third party payment private contractors,105,Sussex Waste Management Ltd,Third party payment private contractors - Waste Management Services Contract,2016533,202001
Rother District Council,15/03/2020,091HOUSING,Housing and Community Services,20107,Camber Beach & Foreshore,C1104,Derv,39.82,Allstar Business Solutions,,2017163,202002
Rother District Council,15/03/2020,091HOUSING,Housing and Community Services,20107,Camber Beach & Foreshore,C1104,Derv,1.9,Allstar Business Solutions,Derv - Fuel Service fee payable on fuel cards,2017163,202002
Rother District Council,15/03/2020,101RESOURCES,Resources,20216,Cost Of Collection,D2626,Postages,25.16,DSI Billing Services Ltd,Postages - DSI Billing,2016356,202001
Rother District Council,15/03/2020,041ENVIRON,Environmental Services,32136,EH Pest Control R + W Partnership,C1104,Derv,39.18,Allstar Business Solutions,,2017163,202002
Rother District Council,15/03/2020,041ENVIRON,Environmental Services,32136,EH Pest Control R + W Partnership,C1104,Derv,40,Allstar Business Solutions,,2017163,202002
Rother District Council,15/03/2020,041ENVIRON,Environmental Services,32136,EH Pest Control R + W Partnership,C1104,Derv,3.8,Allstar Business Solutions,Derv - Fuel Service fee payable on fuel cards,2017163,202002
Rother District Council,15/03/2020,091HOUSING,Housing and Community Services,20200,Housing Needs - HB (Housing Benefit),D2514,Accommodation Costs,"1,550.00",Specialist Care UK Group Ltd,Accommodation Costs - Homelessness services Temp Accom-plus VAT,2016781,202002
Rother District Council,15/03/2020,091HOUSING,Housing and Community Services,20145,Maintenance Services,C1104,Derv,44.17,Allstar Business Solutions,,2017163,202002
Rother District Council,16/03/2020,091HOUSING,Housing and Community Services,20114,Bexhill Parks & Open Spaces,B1100,Repairs to Premises,-74,Palmstead Nurseries Ltd,CLOSED Repairs to Premises - Parks - Purchase of Plants,2017530,202003
Rother District Council,16/03/2020,091HOUSING,Housing and Community Services,20107,Camber Beach & Foreshore,D2513,Hired and Contracted services,200,Jamie Ballan Associates Ltd,Hired and contracted services - Fire Risk Assessments,2017729,202003
Rother District Council,16/03/2020,091HOUSING,Housing and Community Services,20137,Car Parks,B1100,Repairs to Premises,3.8,Saint-Gobain Building Distribution Ltd t/a Jewson,Repairs to Premises - Purchase of Materials - Build Maint,2016403,202001
Rother District Council,16/03/2020,031RESOURCES,Executive Directors & Corporate Core,32132,Joint Waste Contract Client Unit,D1201,Equipment & Materials,20.55,Safetec Direct Ltd,Equipment & Materials - Health and Safety Act Equipment,2016351,202001
Rother District Council,16/03/2020,071STRAT,Strategy and Planning,20246,Planning Applications,A2203,Training,40,IHBC South East,Training,2016423,202001
Rother District Council,16/03/2020,071STRAT,Strategy and Planning,20246,Planning Applications,A2203,Training,"1,028.75",RTPI Royal Town Planning Institute South East,Training,2016065,202001
Rother District Council,16/03/2020,081ACQUISIT,"Acquisitions, Transformation and Regeneration",20146,West Trading Estate,B2201,Electricity,59.53,EDF Energy Customers plc,Electricity - Electricity Charges,2017624,202003
Rother District Council,17/03/2020,091HOUSING,Housing and Community Services,20114,Bexhill Parks & Open Spaces,D1201,Equipment & Materials,"2,125.00",Sussex Ornamental Iron Ltd,Equipment & Materials - Parks - Horticultural Sundries,2016368,202001
Rother District Council,17/03/2020,091HOUSING,Housing and Community Services,20123,Cemeteries,B1100,Repairs to Premises,92.16,Saint-Gobain Building Distribution Ltd t/a Jewson,Repairs to Premises - Purchase of Materials - Build Maint,2016404,202001
Rother District Council,17/03/2020,031RESOURCES,Executive Directors & Corporate Core,20158,Committee Service General Exp,D2635,Computer Licences,"13,296.22",Civica UK Ltd,Computer Licences - Maintenance/Upgrading of Software,2016082,202001
Rother District Council,17/03/2020,091HOUSING,Housing and Community Services,20128,Public Conveniences,B1100,Repairs to Premises,40.56,Sussex Plumbing Supplies Ltd,Repairs to Premises - Purchase of Materials - Build Maint,2016406,202001
Rother District Council,18/03/2020,091HOUSING,Housing and Community Services,20112,Bexhill Leisure Centre,B1100,Repairs to Premises,44.9,Saint-Gobain Building Distribution Ltd t/a Jewson,Repairs to Premises - Purchase of Materials - Build Maint,2016405,202001
Rother District Council,18/03/2020,091HOUSING,Housing and Community Services,20108,Bexhill Promenade & Foreshore,B1100,Repairs to Premises,701.23,Trade Paints Ltd,Repairs to Premises - Purchase of Materials - Build Maint,2016926,202002
Rother District Council,18/03/2020,999NOREPORT,Not included in reporting,70725,Capital - Blackfriars,N1004,Architects & Consultant Fees,"2,584.00",Baily Garner LLP,Architects & Consultant Fees Capital-Architect and Conslt Fees,2016421,202001
Rother District Council,18/03/2020,091HOUSING,Housing and Community Services,20236,Customer Services and Development,A2202,Recruitment expenses,659.15,JPIMedia Publishing Ltd,Recruitment expenses Advertising Vacant Post,2016778,202001
Rother District Council,18/03/2020,101RESOURCES,Resources,20240,Printing Services,D2417,Photocopy Paper by external suppliers,85.8,Premier Paper Group Ltd,Photocopy Paper by external suppliers - White,2016255,202001
Rother District Council,19/03/2020,031RESOURCES,Executive Directors & Corporate Core,20173,Administrative Offices - Town Hall,D1201,Equipment & Materials,560,Public-i Group Ltd,Equipment & materials - Miscellaneous,2016261,202001
Rother District Council,19/03/2020,071STRAT,Strategy and Planning,20258,BC Dangerous Structures H+R Partnership,D2513,Hired and Contracted services,12,H M Land Registry,Hired and contracted services - Env H-Land Registry,2017052,202002
Rother District Council,19/03/2020,091HOUSING,Housing and Community Services,20114,Bexhill Parks & Open Spaces,D1201,Equipment & Materials,232.08,Skyguard Ltd,Equipment & materials - Miscellaneous,2016999,202002
Rother District Council,19/03/2020,091HOUSING,Housing and Community Services,20137,Car Parks,D1201,Equipment & Materials,309.44,Skyguard Ltd,Equipment & materials - Miscellaneous,2016999,202002
Rother District Council,19/03/2020,091HOUSING,Housing and Community Services,20123,Cemeteries,D1201,Equipment & Materials,77.36,Skyguard Ltd,Equipment & materials - Miscellaneous,2016999,202002
Rother District Council,19/03/2020,091HOUSING,Housing and Community Services,20125,Coast Protection,D1201,Equipment & Materials,171.39,Skyguard Ltd,Equipment & materials - Miscellaneous,2016999,202002
Rother District Council,19/03/2020,101RESOURCES,Resources,20216,Cost Of Collection,D2513,Hired and Contracted services,21,H M Land Registry,Hired and contracted services - Council Tax-Land Registry Enquiries,2017052,202002
Rother District Council,19/03/2020,041ENVIRON,Environmental Services,32134,EH Pollution R + W Partnership,D2513,Hired and Contracted services,"2,268.00",Enviro Technology Services Ltd,Hired and contracted services - Service fee paid,2016191,202001
Rother District Council,19/03/2020,041ENVIRON,Environmental Services,32134,EH Pollution R + W Partnership,D2513,Hired and Contracted services,15,H M Land Registry,Hired and contracted services - Env H-Land Registry,2017052,202002
Rother District Council,19/03/2020,091HOUSING,Housing and Community Services,20200,Housing Needs - HB (Housing Benefit),D2513,Hired and Contracted services,12,H M Land Registry,Hired and contracted services - Housing-Land Registry,2017052,202002
Rother District Council,19/03/2020,031RESOURCES,Executive Directors & Corporate Core,20171,Human Resources,A2202,Recruitment expenses,700,Prepared Media Ltd,Recruitment expenses Advertising Vacant Post,2016489,202001
Rother District Council,19/03/2020,091HOUSING,Housing and Community Services,20145,Maintenance Services,D1201,Equipment & Materials,42.48,Saint-Gobain Building Distribution Ltd t/a Jewson,Equipment & Materials - Purchase of Tools,2016401,202001
Rother District Council,19/03/2020,071STRAT,Strategy and Planning,20246,Planning Applications,D2513,Hired and Contracted services,3,H M Land Registry,Hired and contracted services - Land Registry-Planning,2017052,202002
Rother District Council,19/03/2020,081ACQUISIT,"Acquisitions, Transformation and Regeneration",20146,West Trading Estate,B1100,Repairs to Premises,132.35,Saint-Gobain Building Distribution Ltd t/a Jewson,Repairs to Premises - Purchase of Materials - Build Maint,2016402,202001
Rother District Council,20/03/2020,071STRAT,Strategy and Planning,20258,BC Dangerous Structures H+R Partnership,D2513,Hired and Contracted services,6,H M Land Registry,Hired and contracted services - Env H-Land Registry,2017053,202002
Rother District Council,20/03/2020,091HOUSING,Housing and Community Services,20114,Bexhill Parks & Open Spaces,D1201,Equipment & Materials,750,AJL Roadmarking Ltd,Equipment & Materials - Car Parks various,2017181,202002
Rother District Council,20/03/2020,999NOREPORT,Not included in reporting,70725,Capital - Blackfriars,D2513,Hired and Contracted services,"1,479.54",REDACTED PERSONAL DATA,Hired and contracted services - ecology work-blackfriars,2016391,202001
Rother District Council,20/03/2020,091HOUSING,Housing and Community Services,20137,Car Parks,B1100,Repairs to Premises,"2,100.00",AJL Roadmarking Ltd,Repairs to Premises - Car Park Maintenance,2017182,202002
Rother District Council,20/03/2020,091HOUSING,Housing and Community Services,20236,Customer Services and Development,A2202,Recruitment expenses,247.94,JPIMedia Publishing Ltd,Recruitment expenses Advertising Vacant Post,2016258,202001
Rother District Council,20/03/2020,041ENVIRON,Environmental Services,32142,EH Taxi and Private Hire Licenses R + W Partnership,D2513,Hired and Contracted services,80,uCheck,Hired and contracted services - Service fee paid,2016902,202002
Rother District Council,20/03/2020,041ENVIRON,Environmental Services,32142,EH Taxi and Private Hire Licenses R + W Partnership,D2513,Hired and Contracted services,17.34,uCheck,Hired and contracted services - Service fee paid,2016902,202002
Rother District Council,20/03/2020,091HOUSING,Housing and Community Services,20200,Housing Needs - HB (Housing Benefit),D2513,Hired and Contracted services,3,H M Land Registry,Hired and contracted services - Housing-Land Registry,2017053,202002
Rother District Council,20/03/2020,081ACQUISIT,"Acquisitions, Transformation and Regeneration",20140,"Housing Policy,Strategy & Dev",D2922,Subscriptions,185.4,Inside Housing,Subscriptions - Subscription to Organisations,2016519,202001
Rother District Council,20/03/2020,081ACQUISIT,"Acquisitions, Transformation and Regeneration",20140,"Housing Policy,Strategy & Dev",D2922,Subscriptions,17.17,Inside Housing,Subscriptions - Subscription to Organisations,2016519,202001
Rother District Council,20/03/2020,071STRAT,Strategy and Planning,20246,Planning Applications,D2519,Statutory Advertising,457.5,JPIMedia Publishing Ltd,Statutory Advertising - Planadv - Rye+Battle Observer,2016257,202002
Rother District Council,20/03/2020,071STRAT,Strategy and Planning,20246,Planning Applications,D2922,Subscriptions,300,Planning Jungle Ltd,Subscriptions - Subscription to Organisations,2016964,202002
Rother District Council,20/03/2020,081ACQUISIT,"Acquisitions, Transformation and Regeneration",20118,Tourism,D2513,Hired and Contracted services,963.56,Bexhill Heritage,Hired and contracted services - Service fee paid,2016259,202001
Rother District Council,22/03/2020,091HOUSING,Housing and Community Services,20200,Housing Needs - HB (Housing Benefit),D2514,Accommodation Costs,262.5,Specialist Care UK Group Ltd,,2016263,202001
Rother District Council,22/03/2020,091HOUSING,Housing and Community Services,20200,Housing Needs - HB (Housing Benefit),D2514,Accommodation Costs,175,Specialist Care UK Group Ltd,,2016264,202001
Rother District Council,22/03/2020,091HOUSING,Housing and Community Services,20200,Housing Needs - HB (Housing Benefit),D2514,Accommodation Costs,200,Specialist Care UK Group Ltd,,2016265,202001
Rother District Council,22/03/2020,091HOUSING,Housing and Community Services,20200,Housing Needs - HB (Housing Benefit),D2514,Accommodation Costs,262.5,Specialist Care UK Group Ltd,,2016269,202001
Rother District Council,22/03/2020,091HOUSING,Housing and Community Services,20200,Housing Needs - HB (Housing Benefit),D2514,Accommodation Costs,300,Specialist Care UK Group Ltd,,2016266,202001
Rother District Council,22/03/2020,091HOUSING,Housing and Community Services,20200,Housing Needs - HB (Housing Benefit),D2514,Accommodation Costs,175,Specialist Care UK Group Ltd,,2016267,202001
Rother District Council,22/03/2020,091HOUSING,Housing and Community Services,20200,Housing Needs - HB (Housing Benefit),D2514,Accommodation Costs,262.5,Specialist Care UK Group Ltd,,2016268,202001
Rother District Council,22/03/2020,091HOUSING,Housing and Community Services,20200,Housing Needs - HB (Housing Benefit),D2514,Accommodation Costs,"1,612.50",Specialist Care UK Group Ltd,,2016271,202001
Rother District Council,22/03/2020,091HOUSING,Housing and Community Services,20200,Housing Needs - HB (Housing Benefit),D2514,Accommodation Costs,350,Specialist Care UK Group Ltd,,2016270,202001
Rother District Council,22/03/2020,031RESOURCES,Executive Directors & Corporate Core,20171,Human Resources,A2203,Training,330,Mike J Tucker,Training,2016377,202001
Rother District Council,22/03/2020,071STRAT,Strategy and Planning,20246,Planning Applications,D2519,Statutory Advertising,273.6,Local World Ltd,Statutory Advertising - Planadv-Kent+East Sussex Courier,2016283,202002
Rother District Council,23/03/2020,031RESOURCES,Executive Directors & Corporate Core,20176,Administrative Offices - Print Room,B2201,Electricity,473.93,Laser Energy Buying Group (Kent County Council Commercial Services),Electricity - Electricity Charges,2017249,202002
Rother District Council,23/03/2020,031RESOURCES,Executive Directors & Corporate Core,20175,Administrative Offices - T.H. Annex (NOT CHP),B2201,Electricity,"1,136.41",Laser Energy Buying Group (Kent County Council Commercial Services),Electricity - Electricity Charges,2017249,202002
Rother District Council,23/03/2020,031RESOURCES,Executive Directors & Corporate Core,20173,Administrative Offices - Town Hall,B2201,Electricity,"3,069.30",Laser Energy Buying Group (Kent County Council Commercial Services),Electricity - Electricity Charges,2017249,202002
Rother District Council,23/03/2020,031RESOURCES,Executive Directors & Corporate Core,20173,Administrative Offices - Town Hall,B2612,Cleaning materials,55.8,Wightman and Parrish Ltd,Cleaning materials - Premises,2016280,202001
Rother District Council,23/03/2020,091HOUSING,Housing and Community Services,20114,Bexhill Parks & Open Spaces,B1100,Repairs to Premises,250,Medway Galvanising Company Ltd t/a Joseph Ash Medway,Equipment & Materials - Parks- Playground Equipment,2016475,202001
Rother District Council,23/03/2020,091HOUSING,Housing and Community Services,20108,Bexhill Promenade & Foreshore,B2201,Electricity,52.2,Laser Energy Buying Group (Kent County Council Commercial Services),Electricity - Electricity Charges,2017249,202002
Rother District Council,23/03/2020,091HOUSING,Housing and Community Services,20107,Camber Beach & Foreshore,B1100,Repairs to Premises,448.63,Alfa Electric Ltd,Repairs to Premises - Repairs - Electrical Works,2016297,202001
Rother District Council,23/03/2020,999NOREPORT,Not included in reporting,70706,Capital - Disable Facilities Grant,N1012,Capital Advances,"2,713.96",A and A J Bishop,Capital Advances Disabled Facilities Grant,2016308,202001
Rother District Council,23/03/2020,091HOUSING,Housing and Community Services,20125,Coast Protection,B2201,Electricity,838.99,Laser Energy Buying Group (Kent County Council Commercial Services),Electricity - Electricity Charges,2017249,202002
Rother District Council,23/03/2020,081ACQUISIT,"Acquisitions, Transformation and Regeneration",20154,Committee Property Account,B2201,Electricity,52.2,Laser Energy Buying Group (Kent County Council Commercial Services),Electricity - Electricity Charges,2017249,202002
Rother District Council,23/03/2020,081ACQUISIT,"Acquisitions, Transformation and Regeneration",20154,Committee Property Account,B2201,Electricity,52.2,Laser Energy Buying Group (Kent County Council Commercial Services),Electricity - Electricity Charges,2017249,202002
Rother District Council,23/03/2020,081ACQUISIT,"Acquisitions, Transformation and Regeneration",20154,Committee Property Account,B2201,Electricity,52.2,Laser Energy Buying Group (Kent County Council Commercial Services),Electricity - Electricity Charges,2017249,202002
Rother District Council,23/03/2020,041ENVIRON,Environmental Services,20129,Community Safety,D2513,Hired and Contracted services,674.35,The Police and Crime Commissioner for Sussex,Equipment & Materials - Safer Rother Partnership,2016272,202001
Rother District Council,23/03/2020,081ACQUISIT,"Acquisitions, Transformation and Regeneration",20153,"Elva Business Centre, Bexhill",B2201,Electricity,"1,038.12",Laser Energy Buying Group (Kent County Council Commercial Services),Electricity - Electricity Charges,2017249,202002
Rother District Council,23/03/2020,091HOUSING,Housing and Community Services,20200,Housing Needs - HB (Housing Benefit),D2514,Accommodation Costs,385,Lets 2 Share Limited,,2016274,202001
Rother District Council,23/03/2020,091HOUSING,Housing and Community Services,20200,Housing Needs - HB (Housing Benefit),D2514,Accommodation Costs,385,Lets 2 Share Limited,,2016274,202001
Rother District Council,23/03/2020,091HOUSING,Housing and Community Services,20200,Housing Needs - HB (Housing Benefit),D2514,Accommodation Costs,385,Lets 2 Share Limited,,2016274,202001
Rother District Council,23/03/2020,091HOUSING,Housing and Community Services,20200,Housing Needs - HB (Housing Benefit),D2514,Accommodation Costs,360,Lets 2 Share Limited,,2016275,202001
Rother District Council,23/03/2020,091HOUSING,Housing and Community Services,20200,Housing Needs - HB (Housing Benefit),D2514,Accommodation Costs,385,Lets 2 Share Limited,,2016276,202001
Rother District Council,23/03/2020,091HOUSING,Housing and Community Services,20200,Housing Needs - HB (Housing Benefit),D2514,Accommodation Costs,260,Lets 2 Share Limited,,2016277,202001
Rother District Council,23/03/2020,091HOUSING,Housing and Community Services,20200,Housing Needs - HB (Housing Benefit),D2514,Accommodation Costs,260,Lets 2 Share Limited,,2016277,202001
Rother District Council,23/03/2020,091HOUSING,Housing and Community Services,20200,Housing Needs - HB (Housing Benefit),D2514,Accommodation Costs,360,Lets 2 Share Limited,,2016277,202001
Rother District Council,23/03/2020,091HOUSING,Housing and Community Services,20200,Housing Needs - HB (Housing Benefit),D2514,Accommodation Costs,260,Lets 2 Share Limited,,2016277,202001
Rother District Council,23/03/2020,091HOUSING,Housing and Community Services,20200,Housing Needs - HB (Housing Benefit),D2514,Accommodation Costs,630,High Weald Property Investments,,2016260,202001
Rother District Council,23/03/2020,091HOUSING,Housing and Community Services,20200,Housing Needs - HB (Housing Benefit),D2514,Accommodation Costs,780,PADA Hanlon Ltd,,2016425,202001
Rother District Council,23/03/2020,091HOUSING,Housing and Community Services,20200,Housing Needs - HB (Housing Benefit),D2514,Accommodation Costs,390,Roost People Ltd,,2016447,202001
Rother District Council,23/03/2020,091HOUSING,Housing and Community Services,20200,Housing Needs - HB (Housing Benefit),D2514,Accommodation Costs,780,Roost People Ltd,,2016448,202001
Rother District Council,23/03/2020,091HOUSING,Housing and Community Services,20200,Housing Needs - HB (Housing Benefit),D2514,Accommodation Costs,175,Savoy Court Ltd,,2016278,202001
Rother District Council,23/03/2020,091HOUSING,Housing and Community Services,20200,Housing Needs - HB (Housing Benefit),D2514,Accommodation Costs,194,South Down Residential Ltd,Accommodation Costs - Homelessness services Temp Accom - No VAT,2016251,202001
Rother District Council,23/03/2020,091HOUSING,Housing and Community Services,20200,Housing Needs - HB (Housing Benefit),D2514,Accommodation Costs,48.5,South Down Residential Ltd,Accommodation Costs - Homelessness services Temp Accom-plus VAT,2016251,202001
Rother District Council,23/03/2020,091HOUSING,Housing and Community Services,20200,Housing Needs - HB (Housing Benefit),D2514,Accommodation Costs,336,South Down Residential Ltd,Accommodation Costs - Homelessness services Temp Accom - No VAT,2016251,202001
Rother District Council,23/03/2020,091HOUSING,Housing and Community Services,20200,Housing Needs - HB (Housing Benefit),D2514,Accommodation Costs,84,South Down Residential Ltd,Accommodation Costs - Homelessness services Temp Accom-plus VAT,2016251,202001
Rother District Council,23/03/2020,091HOUSING,Housing and Community Services,20200,Housing Needs - HB (Housing Benefit),D2514,Accommodation Costs,336,South Down Residential Ltd,Accommodation Costs - Homelessness services Temp Accom - No VAT,2016251,202001
Rother District Council,23/03/2020,091HOUSING,Housing and Community Services,20200,Housing Needs - HB (Housing Benefit),D2514,Accommodation Costs,84,South Down Residential Ltd,Accommodation Costs - Homelessness services Temp Accom-plus VAT,2016251,202001
Rother District Council,23/03/2020,091HOUSING,Housing and Community Services,20200,Housing Needs - HB (Housing Benefit),D2514,Accommodation Costs,302.4,South Down Residential Ltd,Accommodation Costs - Homelessness services Temp Accom - No VAT,2016251,202001
Rother District Council,23/03/2020,091HOUSING,Housing and Community Services,20200,Housing Needs - HB (Housing Benefit),D2514,Accommodation Costs,75.6,South Down Residential Ltd,Accommodation Costs - Homelessness services Temp Accom-plus VAT,2016251,202001
Rother District Council,23/03/2020,091HOUSING,Housing and Community Services,20200,Housing Needs - HB (Housing Benefit),D2514,Accommodation Costs,120,South Down Residential Ltd,Accommodation Costs - Homelessness services Temp Accom-plus VAT,2016251,202001
Rother District Council,23/03/2020,091HOUSING,Housing and Community Services,20200,Housing Needs - HB (Housing Benefit),D2514,Accommodation Costs,97,South Down Residential Ltd,Accommodation Costs - Homelessness services Temp Accom-plus VAT,2016251,202001
Rother District Council,23/03/2020,091HOUSING,Housing and Community Services,20200,Housing Needs - HB (Housing Benefit),D2514,Accommodation Costs,300,South Down Residential Ltd,Accommodation Costs - Homelessness services Temp Accom-plus VAT,2016251,202001
Rother District Council,23/03/2020,091HOUSING,Housing and Community Services,20200,Housing Needs - HB (Housing Benefit),D2514,Accommodation Costs,300,South Down Residential Ltd,Accommodation Costs - Homelessness services Temp Accom-plus VAT,2016251,202001
Rother District Council,23/03/2020,091HOUSING,Housing and Community Services,20200,Housing Needs - HB (Housing Benefit),D2514,Accommodation Costs,287.5,South Down Residential Ltd,Accommodation Costs - Homelessness services Temp Accom-plus VAT,2016251,202001
Rother District Council,23/03/2020,091HOUSING,Housing and Community Services,20200,Housing Needs - HB (Housing Benefit),D2514,Accommodation Costs,287.5,South Down Residential Ltd,Accommodation Costs - Homelessness services Temp Accom-plus VAT,2016251,202001
Rother District Council,23/03/2020,091HOUSING,Housing and Community Services,20200,Housing Needs - HB (Housing Benefit),D2514,Accommodation Costs,441,South Down Residential Ltd,Accommodation Costs - Homelessness services Temp Accom-plus VAT,2016251,202001
Rother District Council,23/03/2020,091HOUSING,Housing and Community Services,20200,Housing Needs - HB (Housing Benefit),D2514,Accommodation Costs,411.6,South Down Residential Ltd,Accommodation Costs - Homelessness services Temp Accom - No VAT,2016251,202001
Rother District Council,23/03/2020,091HOUSING,Housing and Community Services,20200,Housing Needs - HB (Housing Benefit),D2514,Accommodation Costs,102.9,South Down Residential Ltd,Accommodation Costs - Homelessness services Temp Accom-plus VAT,2016251,202001
Rother District Council,23/03/2020,091HOUSING,Housing and Community Services,20200,Housing Needs - HB (Housing Benefit),D2514,Accommodation Costs,271.6,South Down Residential Ltd,Accommodation Costs - Homelessness services Temp Accom - No VAT,2016251,202001
Rother District Council,23/03/2020,091HOUSING,Housing and Community Services,20200,Housing Needs - HB (Housing Benefit),D2514,Accommodation Costs,67.9,South Down Residential Ltd,Accommodation Costs - Homelessness services Temp Accom-plus VAT,2016251,202001
Rother District Council,23/03/2020,091HOUSING,Housing and Community Services,20200,Housing Needs - HB (Housing Benefit),D2514,Accommodation Costs,77.6,South Down Residential Ltd,Accommodation Costs - Homelessness services Temp Accom - No VAT,2016251,202001
Rother District Council,23/03/2020,091HOUSING,Housing and Community Services,20200,Housing Needs - HB (Housing Benefit),D2514,Accommodation Costs,19.4,South Down Residential Ltd,Accommodation Costs - Homelessness services Temp Accom-plus VAT,2016251,202001
Rother District Council,23/03/2020,091HOUSING,Housing and Community Services,20200,Housing Needs - HB (Housing Benefit),D2514,Accommodation Costs,41.6,South Down Residential Ltd,Accommodation Costs - Homelessness services Temp Accom - No VAT,2016251,202001
Rother District Council,23/03/2020,091HOUSING,Housing and Community Services,20200,Housing Needs - HB (Housing Benefit),D2514,Accommodation Costs,10.4,South Down Residential Ltd,Accommodation Costs - Homelessness services Temp Accom-plus VAT,2016251,202001
Rother District Council,23/03/2020,091HOUSING,Housing and Community Services,20200,Housing Needs - HB (Housing Benefit),D2514,Accommodation Costs,216,South Down Residential Ltd,Accommodation Costs - Homelessness services Temp Accom - No VAT,2016251,202001
Rother District Council,23/03/2020,091HOUSING,Housing and Community Services,20200,Housing Needs - HB (Housing Benefit),D2514,Accommodation Costs,54,South Down Residential Ltd,Accommodation Costs - Homelessness services Temp Accom-plus VAT,2016251,202001
Rother District Council,23/03/2020,091HOUSING,Housing and Community Services,20200,Housing Needs - HB (Housing Benefit),D2514,Accommodation Costs,302.4,South Down Residential Ltd,Accommodation Costs - Homelessness services Temp Accom - No VAT,2016251,202001
Rother District Council,23/03/2020,091HOUSING,Housing and Community Services,20200,Housing Needs - HB (Housing Benefit),D2514,Accommodation Costs,75.6,South Down Residential Ltd,Accommodation Costs - Homelessness services Temp Accom-plus VAT,2016251,202001
Rother District Council,23/03/2020,091HOUSING,Housing and Community Services,20200,Housing Needs - HB (Housing Benefit),D2514,Accommodation Costs,41.6,South Down Residential Ltd,Accommodation Costs - Homelessness services Temp Accom - No VAT,2016251,202001
Rother District Council,23/03/2020,091HOUSING,Housing and Community Services,20200,Housing Needs - HB (Housing Benefit),D2514,Accommodation Costs,10.4,South Down Residential Ltd,Accommodation Costs - Homelessness services Temp Accom-plus VAT,2016251,202001
Rother District Council,23/03/2020,091HOUSING,Housing and Community Services,20200,Housing Needs - HB (Housing Benefit),D2514,Accommodation Costs,216,South Down Residential Ltd,Accommodation Costs - Homelessness services Temp Accom - No VAT,2016251,202001
Rother District Council,23/03/2020,091HOUSING,Housing and Community Services,20200,Housing Needs - HB (Housing Benefit),D2514,Accommodation Costs,54,South Down Residential Ltd,Accommodation Costs - Homelessness services Temp Accom-plus VAT,2016251,202001
Rother District Council,23/03/2020,091HOUSING,Housing and Community Services,20200,Housing Needs - HB (Housing Benefit),D2508,Removals and Storage,167.9,Stamford Storage Solutions,,2016279,202001
Rother District Council,23/03/2020,081ACQUISIT,"Acquisitions, Transformation and Regeneration",20155,Investment properties,B2201,Electricity,53.71,Laser Energy Buying Group (Kent County Council Commercial Services),Electricity - Electricity Charges,2017249,202002
Rother District Council,23/03/2020,091HOUSING,Housing and Community Services,20145,Maintenance Services,D1201,Equipment & Materials,9.98,Trade UK Account (Screwfix),Equipment & Materials - Purchase of Tools,2016281,202001
Rother District Council,23/03/2020,091HOUSING,Housing and Community Services,20128,Public Conveniences,B2201,Electricity,30.6,Laser Energy Buying Group (Kent County Council Commercial Services),Electricity - Electricity Charges,2017249,202002
Rother District Council,23/03/2020,091HOUSING,Housing and Community Services,20128,Public Conveniences,B2201,Electricity,133.54,Laser Energy Buying Group (Kent County Council Commercial Services),Electricity - Electricity Charges,2017249,202002
Rother District Council,23/03/2020,091HOUSING,Housing and Community Services,20128,Public Conveniences,B1100,Repairs to Premises,56.43,Saint-Gobain Building Distribution Ltd t/a Jewson,Repairs to Premises - Purchase of Materials - Build Maint,2016486,202001
Rother District Council,23/03/2020,091HOUSING,Housing and Community Services,20138,Residual Highway Services,B1100,Repairs to Premises,111.25,Saint-Gobain Building Distribution Ltd t/a Jewson,Repairs to Premises - Purchase of Materials - Build Maint,2016487,202001
Rother District Council,23/03/2020,091HOUSING,Housing and Community Services,20115,Rye Area Parks & Gardens,D1201,Equipment & Materials,"4,797.00",Medway Galvanising Company Ltd t/a Joseph Ash Medway,Equipment & Materials - Parks- Playground Equipment,2017403,202003
Rother District Council,23/03/2020,091HOUSING,Housing and Community Services,20109,Sports Development,D2923,Grants made,450,Bexhill Cricket Club,Grants made - Active Sussex Project workforce dev.,2016273,202001
Rother District Council,23/03/2020,101RESOURCES,Resources,20214,Unapportion Central Overheads,D2513,Hired and Contracted services,"59,396.66",East Sussex Pension Fund,Hired and contracted services - Salary-Pension Fund ERS Unfunded,2016559,202001
Rother District Council,24/03/2020,091HOUSING,Housing and Community Services,20113,Bexhill Leisure Pool,B1100,Repairs to Premises,"1,957.00",GDUK Door Solutions Ltd,Repairs to Premises - Repairs Doors,2017433,202003
Rother District Council,24/03/2020,999NOREPORT,Not included in reporting,70706,Capital - Disable Facilities Grant,N1012,Capital Advances,"3,000.00",Alfa Electric Ltd,Capital Advances Disabled Facilities Grant,2016305,202001
Rother District Council,24/03/2020,999NOREPORT,Not included in reporting,70706,Capital - Disable Facilities Grant,N1012,Capital Advances,"1,587.94",Mr Mark Neale General Building and Plumbing Ltd,Capital Advances Disabled Facilities Grant,2016310,202001
Rother District Council,24/03/2020,999NOREPORT,Not included in reporting,70706,Capital - Disable Facilities Grant,N1012,Capital Advances,"2,702.75",Mr Mark Neale General Building and Plumbing Ltd,Capital Advances Disabled Facilities Grant,2016309,202001
Rother District Council,24/03/2020,999NOREPORT,Not included in reporting,70706,Capital - Disable Facilities Grant,N1012,Capital Advances,"1,005.41",Peabody South East Ltd,Capital Advances Disabled Facilities Grant,2016315,202001
Rother District Council,24/03/2020,041ENVIRON,Environmental Services,20129,Community Safety,D2513,Hired and Contracted services,"1,502.72",The Police and Crime Commissioner for Sussex,Equipment & Materials - Safer Rother Partnership,2016903,202002
Rother District Council,24/03/2020,041ENVIRON,Environmental Services,20129,Community Safety,D2513,Hired and Contracted services,738.6,The Police and Crime Commissioner for Sussex,Equipment & Materials - Safer Rother Partnership,2016903,202002
Rother District Council,24/03/2020,101RESOURCES,Resources,20239,Computer Services,D2513,Hired and Contracted services,11.99,UK Computer Group Ltd T/A  Misco,Hired and contracted services - SLA Delivery,2016288,202001
Rother District Council,24/03/2020,101RESOURCES,Resources,20239,Computer Services,D2621,Telephones,"8,698.50",UK Computer Group Ltd T/A  Misco,Telephones - Headset,2016288,202001
Rother District Council,24/03/2020,041ENVIRON,Environmental Services,32144,EH Environmental Services Admin R + W Partnership,D2513,Hired and Contracted services,515,CIEH-Chartered Institute of Environmental Health,Hired and contracted services - Service fee paid,2016424,202001
Rother District Council,24/03/2020,091HOUSING,Housing and Community Services,20115,Rye Area Parks & Gardens,D1201,Equipment & Materials,"9,235.80",Sutcliffe Play Ltd,Equipment & Materials - Parks- Playground Equipment,2016320,202001
Rother District Council,25/03/2020,999NOREPORT,Not included in reporting,70742,Capital - New Website Development,N1010,Software Purchase,"1,000.00",Tunbridge Wells Borough Council,Software Purchase,2017288,202002
Rother District Council,25/03/2020,091HOUSING,Housing and Community Services,20137,Car Parks,B2311,Rents and service charges,"1,621.43",East Sussex County Council,Rents and service charges - Rent Johnson Field Camber ESCC,2016376,202001
Rother District Council,25/03/2020,101RESOURCES,Resources,20239,Computer Services,D2621,Telephones,267.68,Interoute Networks Ltd,Computer Licences - Computer Licence Renewal,2016282,202002
Rother District Council,25/03/2020,071STRAT,Strategy and Planning,20246,Planning Applications,D2509,Consultants and Other Services,"1,996.98",Carrington West Ltd,Agency Staff,2016296,202001
Rother District Council,25/03/2020,101RESOURCES,Resources,20212,Risk Management/Insurance,D2520,Insurance,"5,000.00",Zurich Insurance plc,Insurance - risk management,2016745,202001
Rother District Council,26/03/2020,031RESOURCES,Executive Directors & Corporate Core,20173,Administrative Offices - Town Hall,B2612,Cleaning materials,24.7,Wightman and Parrish Ltd,Contract cleaning - Office Cleaning,2016285,202001
Rother District Council,26/03/2020,071STRAT,Strategy and Planning,32145,Building Control Applications R+H Partnership,J1243,RDC Support services Building Control (P Codes),"33,810.00",Wealden District Council,Third party payment other LAs - Management fee for Joint Building Control,2016293,202001
Rother District Council,26/03/2020,999NOREPORT,Not included in reporting,70725,Capital - Blackfriars,D2513,Hired and Contracted services,"1,761.50",Bevan Brittan LLP,,2016988,202002
Rother District Council,26/03/2020,999NOREPORT,Not included in reporting,70725,Capital - Blackfriars,D2513,Hired and Contracted services,24,Bevan Brittan LLP,,2016988,202002
Rother District Council,26/03/2020,999NOREPORT,Not included in reporting,70718,Capital - Sidley Recreation Ground,N1004,Architects & Consultant Fees,500,Ashdown Site Investigation Ltd,Architects & Consultant Fees Capital-Architect and Conslt Fees,2016291,202001
Rother District Council,26/03/2020,999NOREPORT,Not included in reporting,70718,Capital - Sidley Recreation Ground,N1004,Architects & Consultant Fees,900,Ashdown Site Investigation Ltd,Architects & Consultant Fees Capital-Architect and Conslt Fees,2016292,202001
Rother District Council,26/03/2020,091HOUSING,Housing and Community Services,20205,Housing Loans Account,D2514,Accommodation Costs,800,REDACTED PERSONAL DATA,Accommodation Costs - Homelessness services Rent in Advance for Homeless,2016302,202001
Rother District Council,26/03/2020,091HOUSING,Housing and Community Services,20205,Housing Loans Account,D2514,Accommodation Costs,800,REDACTED PERSONAL DATA,Accommodation Costs - Homelessness services Deposit for Landlords,2016302,202001
Rother District Council,26/03/2020,101RESOURCES,Resources,20217,Reliefs & Benefits-Council Tax Benefit,D2513,Hired and Contracted services,"6,419.00",Victoria Solutions Ltd t/a Victoria Forms,Hired and contracted services - On-line Forms,2016728,202001
Rother District Council,26/03/2020,091HOUSING,Housing and Community Services,20202,Rother Tenant Finder (prev Rother Letting Service),D2514,Accommodation Costs,"1,000.00",REDACTED PERSONAL DATA,Accommodation Costs - Homelessness services Rent in Advance for Homeless,2016302,202001
Rother District Council,26/03/2020,091HOUSING,Housing and Community Services,20206,Syrians,D2513,Hired and Contracted services,89.4,Vandu Language Services Ltd,Hired and contracted services - Syrian-Translation Services,2016294,202001
Rother District Council,27/03/2020,031RESOURCES,Executive Directors & Corporate Core,20173,Administrative Offices - Town Hall,B1100,Repairs to Premises,349.56,Alfa Electric Ltd,Repairs to Premises - Repairs - Electrical Works,2016373,202001
Rother District Council,27/03/2020,071STRAT,Strategy and Planning,20258,BC Dangerous Structures H+R Partnership,D2513,Hired and Contracted services,9,H M Land Registry,Hired and contracted services - Env H-Land Registry,2017051,202002
Rother District Council,27/03/2020,999NOREPORT,Not included in reporting,70706,Capital - Disable Facilities Grant,N1012,Capital Advances,"5,392.00",A and A J Bishop,Capital Advances Disabled Facilities Grant,2017438,202003
Rother District Council,27/03/2020,999NOREPORT,Not included in reporting,70706,Capital - Disable Facilities Grant,N1012,Capital Advances,"6,856.01",Gregory (Kent) Ltd,Capital Advances Disabled Facilities Grant,2016306,202001
Rother District Council,27/03/2020,999NOREPORT,Not included in reporting,70706,Capital - Disable Facilities Grant,N1012,Capital Advances,"4,500.00",Mark Bishop Ltd,Capital Advances Disabled Facilities Grant,2016307,202001
Rother District Council,27/03/2020,999NOREPORT,Not included in reporting,70706,Capital - Disable Facilities Grant,N1012,Capital Advances,"4,500.00",Mr Mark Neale General Building and Plumbing Ltd,Capital Advances Disabled Facilities Grant,2016685,202001
Rother District Council,27/03/2020,081ACQUISIT,"Acquisitions, Transformation and Regeneration",20154,Committee Property Account,B1100,Repairs to Premises,500,Bexhill Burners BMX Club,Repairs to Premises - Sports Equipment,2016535,202001
Rother District Council,27/03/2020,081ACQUISIT,"Acquisitions, Transformation and Regeneration",20154,Committee Property Account,B2422,Sewerage,"2,635.00",CountyClean Environmental Services Ltd,Sewerage - Sewage/Cesspool Emptying,2016325,202001
Rother District Council,27/03/2020,101RESOURCES,Resources,20242,Communications-Phones,D2621,Telephones,275.25,BT British Telecommunications plc,Telephones - BT-Rental-General,2016474,202002
Rother District Council,27/03/2020,101RESOURCES,Resources,20216,Cost Of Collection,D2513,Hired and Contracted services,6,H M Land Registry,Hired and contracted services - Council Tax-Land Registry Enquiries,2017051,202002
Rother District Council,27/03/2020,041ENVIRON,Environmental Services,32134,EH Pollution R + W Partnership,D2513,Hired and Contracted services,15,H M Land Registry,Hired and contracted services - Env H-Land Registry,2017051,202002
Rother District Council,27/03/2020,091HOUSING,Housing and Community Services,20200,Housing Needs - HB (Housing Benefit),D2513,Hired and Contracted services,6,H M Land Registry,Hired and contracted services - Housing-Land Registry,2017051,202002
Rother District Council,27/03/2020,091HOUSING,Housing and Community Services,20200,Housing Needs - HB (Housing Benefit),D2514,Accommodation Costs,343,Lillybank Homes Ltd,,2016328,202001
Rother District Council,27/03/2020,091HOUSING,Housing and Community Services,20200,Housing Needs - HB (Housing Benefit),D2514,Accommodation Costs,343,Lillybank Homes Ltd,,2016328,202001
Rother District Council,27/03/2020,091HOUSING,Housing and Community Services,20200,Housing Needs - HB (Housing Benefit),D2514,Accommodation Costs,413,Lillybank Homes Ltd,,2016328,202001
Rother District Council,27/03/2020,031RESOURCES,Executive Directors & Corporate Core,20171,Human Resources,D2513,Hired and Contracted services,103.61,Computershare Voucher Services,Hired and contracted services - Child Care Voucher Service Charge,2016901,202002
Rother District Council,27/03/2020,031RESOURCES,Executive Directors & Corporate Core,20171,Human Resources,D2513,Hired and Contracted services,877,DMH Stallard,Hired and contracted services - Legal Advice,2016708,202001
Rother District Council,27/03/2020,031RESOURCES,Executive Directors & Corporate Core,32132,Joint Waste Contract Client Unit,D1201,Equipment & Materials,122.62,Safetec Direct Ltd,Equipment & Materials - Health and Safety Act Equipment,2016352,202001
Rother District Council,27/03/2020,091HOUSING,Housing and Community Services,20329,Rough Sleeping Initiative,D2514,Accommodation Costs,225,Lillybank Homes Ltd,,2016328,202001
Rother District Council,27/03/2020,091HOUSING,Housing and Community Services,20329,Rough Sleeping Initiative,D2514,Accommodation Costs,10.71,Lillybank Homes Ltd,,2016328,202001
Rother District Council,27/03/2020,091HOUSING,Housing and Community Services,20206,Syrians,D2513,Hired and Contracted services,"1,624.74",Kathryn Briscoe,Hired and contracted services - Syrian-Education-Exempt VAT,2016295,202001
Rother District Council,28/03/2020,091HOUSING,Housing and Community Services,20114,Bexhill Parks & Open Spaces,B1100,Repairs to Premises,250,The Old Clock Workshop,Repairs to Premises - Clock Repair/Maintenance,2017090,202002
Rother District Council,28/03/2020,091HOUSING,Housing and Community Services,20108,Bexhill Promenade & Foreshore,B1100,Repairs to Premises,250,The Old Clock Workshop,Repairs to Premises - Clock Repair/Maintenance,2017090,202002
Rother District Council,28/03/2020,031RESOURCES,Executive Directors & Corporate Core,20159,Corporate Policy Making,D1204,Newspapers & Periodicals,12,Pipers News Ltd,Newspapers & Periodicals - Newspapers,2016324,202001
Rother District Council,28/03/2020,071STRAT,Strategy and Planning,20244,General Planning Expenses,D1204,Newspapers & Periodicals,12,Pipers News Ltd,Newspapers & Periodicals - Newspapers,2016322,202001
Rother District Council,28/03/2020,031RESOURCES,Executive Directors & Corporate Core,20156,Representing Local Interest,D1204,Newspapers & Periodicals,12,Pipers News Ltd,Newspapers & Periodicals - Newspapers,2016323,202001
Rother District Council,29/03/2020,101RESOURCES,Resources,20222,Accountancy,D2635,Computer Licences,"1,133.21",Integra Associates Ltd,Computer Licences - New Computer Software,2016687,202001
Rother District Council,29/03/2020,031RESOURCES,Executive Directors & Corporate Core,20179,Communications,E1101,Third party payment other LAs,"3,600.00",East Sussex County Council,Third party payment other LAs - Communications-Officer costs,2016476,202001
Rother District Council,29/03/2020,101RESOURCES,Resources,20216,Cost Of Collection,D2513,Hired and Contracted services,"17,735.61",DSI Billing Services Ltd,Postages - DSI Billing,2016354,202001
Rother District Council,29/03/2020,101RESOURCES,Resources,20216,Cost Of Collection,D2513,Hired and Contracted services,"8,315.86",DSI Billing Services Ltd,Postages - DSI Billing,2016355,202001
Rother District Council,29/03/2020,091HOUSING,Housing and Community Services,20200,Housing Needs - HB (Housing Benefit),D2514,Accommodation Costs,262.5,Specialist Care UK Group Ltd,,2016329,202001
Rother District Council,29/03/2020,091HOUSING,Housing and Community Services,20200,Housing Needs - HB (Housing Benefit),D2514,Accommodation Costs,75,Specialist Care UK Group Ltd,,2016335,202001
Rother District Council,29/03/2020,091HOUSING,Housing and Community Services,20200,Housing Needs - HB (Housing Benefit),D2514,Accommodation Costs,262.5,Specialist Care UK Group Ltd,,2016337,202001
Rother District Council,29/03/2020,091HOUSING,Housing and Community Services,20200,Housing Needs - HB (Housing Benefit),D2514,Accommodation Costs,175,Specialist Care UK Group Ltd,,2016330,202001
Rother District Council,29/03/2020,091HOUSING,Housing and Community Services,20200,Housing Needs - HB (Housing Benefit),D2514,Accommodation Costs,250,Specialist Care UK Group Ltd,,2016331,202001
Rother District Council,29/03/2020,091HOUSING,Housing and Community Services,20200,Housing Needs - HB (Housing Benefit),D2514,Accommodation Costs,262.5,Specialist Care UK Group Ltd,,2016332,202001
Rother District Council,29/03/2020,091HOUSING,Housing and Community Services,20200,Housing Needs - HB (Housing Benefit),D2514,Accommodation Costs,50,Specialist Care UK Group Ltd,,2016333,202001
Rother District Council,29/03/2020,091HOUSING,Housing and Community Services,20200,Housing Needs - HB (Housing Benefit),D2514,Accommodation Costs,175,Specialist Care UK Group Ltd,,2016334,202001
Rother District Council,29/03/2020,091HOUSING,Housing and Community Services,20200,Housing Needs - HB (Housing Benefit),D2514,Accommodation Costs,262.5,Specialist Care UK Group Ltd,,2016336,202001
Rother District Council,29/03/2020,091HOUSING,Housing and Community Services,20200,Housing Needs - HB (Housing Benefit),D2514,Accommodation Costs,"1,875.00",Specialist Care UK Group Ltd,,2016338,202001
Rother District Council,30/03/2020,999NOREPORT,Not included in reporting,70725,Capital - Blackfriars,D2513,Hired and Contracted services,"4,249.50",Bevan Brittan LLP,,2016989,202002
Rother District Council,30/03/2020,999NOREPORT,Not included in reporting,70725,Capital - Blackfriars,D2513,Hired and Contracted services,3,Bevan Brittan LLP,,2016989,202002
Rother District Council,30/03/2020,999NOREPORT,Not included in reporting,70706,Capital - Disable Facilities Grant,N1012,Capital Advances,"7,344.00",DW Services,Capital Advances Disabled Facilities Grant,2016304,202001
Rother District Council,30/03/2020,999NOREPORT,Not included in reporting,70706,Capital - Disable Facilities Grant,N1012,Capital Advances,"10,616.93",DW Services,Capital Advances Disabled Facilities Grant,2016303,202001
Rother District Council,30/03/2020,999NOREPORT,Not included in reporting,70706,Capital - Disable Facilities Grant,N1012,Capital Advances,"1,155.92",Peabody South East Ltd,Capital Advances Disabled Facilities Grant,2016313,202001
Rother District Council,30/03/2020,999NOREPORT,Not included in reporting,70706,Capital - Disable Facilities Grant,N1012,Capital Advances,"1,765.00",Prestige Stairlifts Ltd,Capital Advances Disabled Facilities Grant,2016316,202001
Rother District Council,30/03/2020,999NOREPORT,Not included in reporting,70706,Capital - Disable Facilities Grant,N1012,Capital Advances,"1,480.00",Southern Mobility Centres Ltd,Capital Advances Disabled Facilities Grant,2016317,202001
Rother District Council,30/03/2020,999NOREPORT,Not included in reporting,70742,Capital - New Website Development,N1010,Software Purchase,"1,494.00",GOSS Interactive Ltd,Software Purchase,2016300,202001
Rother District Council,30/03/2020,091HOUSING,Housing and Community Services,20137,Car Parks,B1100,Repairs to Premises,380,B and G Environmental Services Limited,Repairs to Premises - Drainage Clearance,2016326,202001
Rother District Council,30/03/2020,101RESOURCES,Resources,20216,Cost Of Collection,D2513,Hired and Contracted services,841.33,DSI Billing Services Ltd,Postages - DSI Billing,2016350,202001
Rother District Council,30/03/2020,041ENVIRON,Environmental Services,20130,Crime and Disorder Initiatives,D2923,Grants made,"1,895.00",Sedlescombe Parish Council,Grants made - Crime Prevention Initiative (JAG),2016327,202001
Rother District Council,30/03/2020,031RESOURCES,Executive Directors & Corporate Core,20162,Electoral Registration,D2626,Postages,121,Royal Mail Group Ltd,Postages - Response Service-Royal Mail Chg,2016478,202001
Rother District Council,30/03/2020,041ENVIRON,Environmental Services,32140,EN Wealden Training (WEALDEN ONLY) R + W Partnership,D2513,Hired and Contracted services,"4,090.20",Michael Hills Associates,Hired and contracted services - Service fee paid,2016600,202001
Rother District Council,30/03/2020,091HOUSING,Housing and Community Services,20200,Housing Needs - HB (Housing Benefit),D2514,Accommodation Costs,385,Lets 2 Share Limited,,2016342,202001
Rother District Council,30/03/2020,091HOUSING,Housing and Community Services,20200,Housing Needs - HB (Housing Benefit),D2514,Accommodation Costs,385,Lets 2 Share Limited,,2016342,202001
Rother District Council,30/03/2020,091HOUSING,Housing and Community Services,20200,Housing Needs - HB (Housing Benefit),D2514,Accommodation Costs,385,Lets 2 Share Limited,,2016342,202001
Rother District Council,30/03/2020,091HOUSING,Housing and Community Services,20200,Housing Needs - HB (Housing Benefit),D2514,Accommodation Costs,360,Lets 2 Share Limited,,2016343,202001
Rother District Council,30/03/2020,091HOUSING,Housing and Community Services,20200,Housing Needs - HB (Housing Benefit),D2514,Accommodation Costs,385,Lets 2 Share Limited,,2016344,202001
Rother District Council,30/03/2020,091HOUSING,Housing and Community Services,20200,Housing Needs - HB (Housing Benefit),D2514,Accommodation Costs,260,Lets 2 Share Limited,,2016345,202001
Rother District Council,30/03/2020,091HOUSING,Housing and Community Services,20200,Housing Needs - HB (Housing Benefit),D2514,Accommodation Costs,260,Lets 2 Share Limited,,2016345,202001
Rother District Council,30/03/2020,091HOUSING,Housing and Community Services,20200,Housing Needs - HB (Housing Benefit),D2514,Accommodation Costs,360,Lets 2 Share Limited,,2016345,202001
Rother District Council,30/03/2020,091HOUSING,Housing and Community Services,20200,Housing Needs - HB (Housing Benefit),D2514,Accommodation Costs,260,Lets 2 Share Limited,,2016345,202001
Rother District Council,30/03/2020,091HOUSING,Housing and Community Services,20200,Housing Needs - HB (Housing Benefit),D2514,Accommodation Costs,315,High Weald Property Investments,,2016301,202001
Rother District Council,30/03/2020,091HOUSING,Housing and Community Services,20200,Housing Needs - HB (Housing Benefit),D2514,Accommodation Costs,315,High Weald Property Investments,,2016301,202001
Rother District Council,30/03/2020,091HOUSING,Housing and Community Services,20200,Housing Needs - HB (Housing Benefit),D2514,Accommodation Costs,390,PADA Hanlon Ltd,,2016299,202001
Rother District Council,30/03/2020,091HOUSING,Housing and Community Services,20200,Housing Needs - HB (Housing Benefit),D2514,Accommodation Costs,390,PADA Hanlon Ltd,,2016299,202001
Rother District Council,30/03/2020,091HOUSING,Housing and Community Services,20200,Housing Needs - HB (Housing Benefit),D2514,Accommodation Costs,390,Roost People Ltd,,2016348,202001
Rother District Council,30/03/2020,091HOUSING,Housing and Community Services,20200,Housing Needs - HB (Housing Benefit),D2514,Accommodation Costs,390,Roost People Ltd,,2016349,202001
Rother District Council,30/03/2020,091HOUSING,Housing and Community Services,20200,Housing Needs - HB (Housing Benefit),D2514,Accommodation Costs,390,Roost People Ltd,,2016347,202001
Rother District Council,30/03/2020,091HOUSING,Housing and Community Services,20200,Housing Needs - HB (Housing Benefit),D2514,Accommodation Costs,390,Roost People Ltd,,2016347,202001
Rother District Council,30/03/2020,091HOUSING,Housing and Community Services,20200,Housing Needs - HB (Housing Benefit),D2514,Accommodation Costs,175,Savoy Court Ltd,,2016353,202001
Rother District Council,30/03/2020,091HOUSING,Housing and Community Services,20200,Housing Needs - HB (Housing Benefit),D2514,Accommodation Costs,271.6,South Down Residential Ltd,Accommodation Costs - Homelessness services Temp Accom - No VAT,2016339,202001
Rother District Council,30/03/2020,091HOUSING,Housing and Community Services,20200,Housing Needs - HB (Housing Benefit),D2514,Accommodation Costs,67.9,South Down Residential Ltd,Accommodation Costs - Homelessness services Temp Accom-plus VAT,2016339,202001
Rother District Council,30/03/2020,091HOUSING,Housing and Community Services,20200,Housing Needs - HB (Housing Benefit),D2514,Accommodation Costs,336,South Down Residential Ltd,Accommodation Costs - Homelessness services Temp Accom - No VAT,2016339,202001
Rother District Council,30/03/2020,091HOUSING,Housing and Community Services,20200,Housing Needs - HB (Housing Benefit),D2514,Accommodation Costs,84,South Down Residential Ltd,Accommodation Costs - Homelessness services Temp Accom-plus VAT,2016339,202001
Rother District Council,30/03/2020,091HOUSING,Housing and Community Services,20200,Housing Needs - HB (Housing Benefit),D2514,Accommodation Costs,336,South Down Residential Ltd,Accommodation Costs - Homelessness services Temp Accom - No VAT,2016339,202001
Rother District Council,30/03/2020,091HOUSING,Housing and Community Services,20200,Housing Needs - HB (Housing Benefit),D2514,Accommodation Costs,84,South Down Residential Ltd,Accommodation Costs - Homelessness services Temp Accom-plus VAT,2016339,202001
Rother District Council,30/03/2020,091HOUSING,Housing and Community Services,20200,Housing Needs - HB (Housing Benefit),D2514,Accommodation Costs,302.4,South Down Residential Ltd,Accommodation Costs - Homelessness services Temp Accom - No VAT,2016339,202001
Rother District Council,30/03/2020,091HOUSING,Housing and Community Services,20200,Housing Needs - HB (Housing Benefit),D2514,Accommodation Costs,75.6,South Down Residential Ltd,Accommodation Costs - Homelessness services Temp Accom-plus VAT,2016339,202001
Rother District Council,30/03/2020,091HOUSING,Housing and Community Services,20200,Housing Needs - HB (Housing Benefit),D2514,Accommodation Costs,420,South Down Residential Ltd,Accommodation Costs - Homelessness services Temp Accom-plus VAT,2016339,202001
Rother District Council,30/03/2020,091HOUSING,Housing and Community Services,20200,Housing Needs - HB (Housing Benefit),D2514,Accommodation Costs,420,South Down Residential Ltd,Accommodation Costs - Homelessness services Temp Accom-plus VAT,2016339,202001
Rother District Council,30/03/2020,091HOUSING,Housing and Community Services,20200,Housing Needs - HB (Housing Benefit),D2514,Accommodation Costs,97,South Down Residential Ltd,Accommodation Costs - Homelessness services Temp Accom-plus VAT,2016339,202001
Rother District Council,30/03/2020,091HOUSING,Housing and Community Services,20200,Housing Needs - HB (Housing Benefit),D2514,Accommodation Costs,300,South Down Residential Ltd,Accommodation Costs - Homelessness services Temp Accom-plus VAT,2016339,202001
Rother District Council,30/03/2020,091HOUSING,Housing and Community Services,20200,Housing Needs - HB (Housing Benefit),D2514,Accommodation Costs,182,South Down Residential Ltd,Accommodation Costs - Homelessness services Temp Accom-plus VAT,2016339,202001
Rother District Council,30/03/2020,091HOUSING,Housing and Community Services,20200,Housing Needs - HB (Housing Benefit),D2514,Accommodation Costs,194,South Down Residential Ltd,Accommodation Costs - Homelessness services Temp Accom-plus VAT,2016339,202001
Rother District Council,30/03/2020,091HOUSING,Housing and Community Services,20200,Housing Needs - HB (Housing Benefit),D2514,Accommodation Costs,402.5,South Down Residential Ltd,Accommodation Costs - Homelessness services Temp Accom-plus VAT,2016339,202001
Rother District Council,30/03/2020,091HOUSING,Housing and Community Services,20200,Housing Needs - HB (Housing Benefit),D2514,Accommodation Costs,402.5,South Down Residential Ltd,Accommodation Costs - Homelessness services Temp Accom-plus VAT,2016339,202001
Rother District Council,30/03/2020,091HOUSING,Housing and Community Services,20200,Housing Needs - HB (Housing Benefit),D2514,Accommodation Costs,441,South Down Residential Ltd,Accommodation Costs - Homelessness services Temp Accom-plus VAT,2016339,202001
Rother District Council,30/03/2020,091HOUSING,Housing and Community Services,20200,Housing Needs - HB (Housing Benefit),D2514,Accommodation Costs,411.6,South Down Residential Ltd,Accommodation Costs - Homelessness services Temp Accom - No VAT,2016339,202001
Rother District Council,30/03/2020,091HOUSING,Housing and Community Services,20200,Housing Needs - HB (Housing Benefit),D2514,Accommodation Costs,102.9,South Down Residential Ltd,Accommodation Costs - Homelessness services Temp Accom-plus VAT,2016339,202001
Rother District Council,30/03/2020,091HOUSING,Housing and Community Services,20200,Housing Needs - HB (Housing Benefit),D2514,Accommodation Costs,302.4,South Down Residential Ltd,Accommodation Costs - Homelessness services Temp Accom - No VAT,2016339,202001
Rother District Council,30/03/2020,091HOUSING,Housing and Community Services,20200,Housing Needs - HB (Housing Benefit),D2514,Accommodation Costs,75.6,South Down Residential Ltd,Accommodation Costs - Homelessness services Temp Accom-plus VAT,2016339,202001
Rother District Council,30/03/2020,091HOUSING,Housing and Community Services,20200,Housing Needs - HB (Housing Benefit),D2514,Accommodation Costs,302.4,South Down Residential Ltd,Accommodation Costs - Homelessness services Temp Accom - No VAT,2016339,202001
Rother District Council,30/03/2020,091HOUSING,Housing and Community Services,20200,Housing Needs - HB (Housing Benefit),D2514,Accommodation Costs,75.6,South Down Residential Ltd,Accommodation Costs - Homelessness services Temp Accom-plus VAT,2016339,202001
Rother District Council,30/03/2020,091HOUSING,Housing and Community Services,20200,Housing Needs - HB (Housing Benefit),D2514,Accommodation Costs,302.4,South Down Residential Ltd,Accommodation Costs - Homelessness services Temp Accom - No VAT,2016339,202001
Rother District Council,30/03/2020,091HOUSING,Housing and Community Services,20200,Housing Needs - HB (Housing Benefit),D2514,Accommodation Costs,75.6,South Down Residential Ltd,Accommodation Costs - Homelessness services Temp Accom-plus VAT,2016339,202001
Rother District Council,30/03/2020,031RESOURCES,Executive Directors & Corporate Core,20171,Human Resources,D2922,Subscriptions,84.78,Agora Business Publications LLP,Subscriptions - Subscription to Organisations,2016715,202001
Rother District Council,31/03/2020,101RESOURCES,Resources,20222,Accountancy,D2513,Hired and Contracted services,"6,175.00",Embridge Consulting (UK) Ltd,Hired and contracted services - Consultancy Service per Contract,2016366,202001
Rother District Council,31/03/2020,101RESOURCES,Resources,20222,Accountancy,D2513,Hired and Contracted services,"1,787.55",Embridge Consulting (UK) Ltd,Hired and contracted services - Consultancy Service per Contract,2016367,202001
Rother District Council,31/03/2020,031RESOURCES,Executive Directors & Corporate Core,20173,Administrative Offices - Town Hall,B2611,Contract cleaning,204,Abacus Main Ltd,Contract cleaning - Office Cleaning,2016481,202001
Rother District Council,31/03/2020,031RESOURCES,Executive Directors & Corporate Core,20173,Administrative Offices - Town Hall,D2513,Hired and Contracted services,45.6,Data Shredding Services Ltd,Hired and contracted services - Charges-Confidential Office Waste,2016764,202003
Rother District Council,31/03/2020,031RESOURCES,Executive Directors & Corporate Core,20173,Administrative Offices - Town Hall,B1100,Repairs to Premises,487,Hastings Locksmiths and Key Service,Repairs to Premises - Specified Repairs and Works listed,2016712,202001
Rother District Council,31/03/2020,091HOUSING,Housing and Community Services,20114,Bexhill Parks & Open Spaces,B1100,Repairs to Premises,378,Hailsham Roadway Construction Ltd,Repairs to Premises - Parks- Fencing Installation,2016649,202001
Rother District Council,31/03/2020,091HOUSING,Housing and Community Services,20108,Bexhill Promenade & Foreshore,B2611,Contract cleaning,126,Abacus Main Ltd,Contract cleaning - Office Cleaning,2016480,202002
Rother District Council,31/03/2020,999NOREPORT,Not included in reporting,70725,Capital - Blackfriars,N1004,Architects & Consultant Fees,"2,072.50",Ecology Consultancy Ltd,Architects & Consultant Fees Capital-Architect and Conslt Fees,2016429,202001
Rother District Council,31/03/2020,999NOREPORT,Not included in reporting,70725,Capital - Blackfriars,N1004,Architects & Consultant Fees,"1,250.00",GTA Civils Ltd,Architects & Consultant Fees Capital-Architect and Conslt Fees,2017419,202002
Rother District Council,31/03/2020,999NOREPORT,Not included in reporting,70706,Capital - Disable Facilities Grant,N1012,Capital Advances,979.27,Peabody South East Ltd,Capital Advances Disabled Facilities Grant,2016312,202001
Rother District Council,31/03/2020,999NOREPORT,Not included in reporting,70706,Capital - Disable Facilities Grant,N1012,Capital Advances,3.89,Peabody South East Ltd,Capital Advances Disabled Facilities Grant,2016311,202001
Rother District Council,31/03/2020,999NOREPORT,Not included in reporting,70706,Capital - Disable Facilities Grant,N1012,Capital Advances,"1,613.64",Peabody South East Ltd,Capital Advances Disabled Facilities Grant,2016314,202001
Rother District Council,31/03/2020,999NOREPORT,Not included in reporting,70706,Capital - Disable Facilities Grant,N1012,Capital Advances,"2,574.56",The Build Works,Capital Advances Disabled Facilities Grant,2016318,202001
Rother District Council,31/03/2020,999NOREPORT,Not included in reporting,70705,Capital - Fairlight Coastal Protection Scheme (Preservational Trust),N1004,Architects & Consultant Fees,"9,507.00",Canterbury City Council,Architects & Consultant Fees Capital-Architect and Conslt Fees,2016374,202001
Rother District Council,31/03/2020,999NOREPORT,Not included in reporting,70705,Capital - Fairlight Coastal Protection Scheme (Preservational Trust),N1004,Architects & Consultant Fees,"4,984.93",Canterbury City Council,Architects & Consultant Fees Capital-Architect and Conslt Fees,2016375,202001
Rother District Council,31/03/2020,999NOREPORT,Not included in reporting,70718,Capital - Sidley Recreation Ground,N1004,Architects & Consultant Fees,"2,000.00",IWA Consulting Engineers Ltd,Architects & Consultant Fees Capital-Architect and Conslt Fees,2016369,202001
Rother District Council,31/03/2020,999NOREPORT,Not included in reporting,70735,Capital - Wainwright Road Development,N1004,Architects & Consultant Fees,"6,000.00",ECE Architecture Ltd,Architects & Consultant Fees Capital-Architect and Conslt Fees,2016400,202001
Rother District Council,31/03/2020,091HOUSING,Housing and Community Services,20137,Car Parks,I3439,Parking Chgs Off Street,"16,785.79",Freedom Leisure,Parking Chgs - Off Street Car Park Income Refund,2016360,202001
Rother District Council,31/03/2020,091HOUSING,Housing and Community Services,20137,Car Parks,D2513,Hired and Contracted services,"1,428.00",Jade Security Services Ltd,Hired and contracted services - Cash Security Fees-Car Parks,2016431,202001
Rother District Council,31/03/2020,091HOUSING,Housing and Community Services,20137,Car Parks,D2513,Hired and Contracted services,180,William Cooke and Son (Farmers) Ltd,,2016477,202001
Rother District Council,31/03/2020,091HOUSING,Housing and Community Services,20123,Cemeteries,B1100,Repairs to Premises,"2,160.00",Gristwood and Toms Limited,Repairs to Premises - Parks - Tree Works,2016638,202001
Rother District Council,31/03/2020,081ACQUISIT,"Acquisitions, Transformation and Regeneration",20154,Committee Property Account,D2513,Hired and Contracted services,320,R French and  Son Ltd,Hired and contracted services - Service fee paid,2016709,202001
Rother District Council,31/03/2020,031RESOURCES,Executive Directors & Corporate Core,20179,Communications,E1101,Third party payment other LAs,"3,600.00",East Sussex County Council,Third party payment other LAs - Communications-Officer costs,2016483,202001
Rother District Council,31/03/2020,031RESOURCES,Executive Directors & Corporate Core,20170,Communications-Postages,C1104,Derv,32.05,Allstar Business Solutions,,2017164,202002
Rother District Council,31/03/2020,101RESOURCES,Resources,20239,Computer Services,D2513,Hired and Contracted services,4.99,UK Computer Group Ltd T/A  Misco,Hired and contracted services - Delivery and/or Packaging of Equipm,2016380,202001
Rother District Council,31/03/2020,101RESOURCES,Resources,20239,Computer Services,D2633,Computer Equipment,519.8,UK Computer Group Ltd T/A  Misco,Computer Equipment - Computer peripherals,2016380,202001
Rother District Council,31/03/2020,101RESOURCES,Resources,20209,Corporate management,D2513,Hired and Contracted services,629.68,allpay.net Ltd,Hired and contracted services - Allpay Card/Rep/Let Chrg - Vatable,2017302,202002
Rother District Council,31/03/2020,101RESOURCES,Resources,20209,Corporate management,D2513,Hired and Contracted services,25.12,allpay.net Ltd,Hired and contracted services - Allpay Card/Rep/Let Chrg - Vatable,2017303,202002
Rother District Council,31/03/2020,101RESOURCES,Resources,20209,Corporate management,D2513,Hired and Contracted services,13.71,allpay.net Ltd,Hired and contracted services - Allpay Card/Rep/Let Chrg - Vatable,2017304,202002
Rother District Council,31/03/2020,101RESOURCES,Resources,20209,Corporate management,D2513,Hired and Contracted services,24.74,allpay.net Ltd,Hired and contracted services - Allpay Card/Rep/Let Chrg - Vatable,2017305,202002
Rother District Council,31/03/2020,101RESOURCES,Resources,20209,Corporate management,D2513,Hired and Contracted services,157.5,Jade Security Services Ltd,Hired and contracted services - Service fee paid,2016431,202001
Rother District Council,31/03/2020,101RESOURCES,Resources,20216,Cost Of Collection,D2509,Consultants and Other Services,"2,961.00",Capita Business Services Ltd,Consultants and other services - Consultants Fees,2016386,202001
Rother District Council,31/03/2020,101RESOURCES,Resources,20216,Cost Of Collection,D2513,Hired and Contracted services,87.5,DSI Billing Services Ltd,Postages - DSI Billing,2016502,202001
Rother District Council,31/03/2020,101RESOURCES,Resources,20216,Cost Of Collection,D2513,Hired and Contracted services,395.19,DSI Billing Services Ltd,Hired and contracted services - DSI Billing Printing,2016503,202001
Rother District Council,31/03/2020,101RESOURCES,Resources,20216,Cost Of Collection,D2509,Consultants and Other Services,148.73,Northgate Public Services (UK) Ltd,Consultants and other services - Consultants Fees,2016363,202001
Rother District Council,31/03/2020,101RESOURCES,Resources,20216,Cost Of Collection,D2509,Consultants and Other Services,61.94,Wilson�s Express Hastings Ltd,Consultants and other services - Consultants Fees,2016624,202001
Rother District Council,31/03/2020,101RESOURCES,Resources,20216,Cost Of Collection,D2509,Consultants and Other Services,51.5,Wilson�s Express Hastings Ltd,Consultants and other services - Consultants Fees,2016630,202001
Rother District Council,31/03/2020,031RESOURCES,Executive Directors & Corporate Core,20276,COVID19 RDC expenditure,D2514,Accommodation Costs,28.9,Town Taxis,Hired and Contracted Services - Housing Misc Costs relating to Covid 19,2016906,202002
Rother District Council,31/03/2020,041ENVIRON,Environmental Services,32136,EH Pest Control R + W Partnership,C1104,Derv,46.67,Allstar Business Solutions,,2017164,202002
Rother District Council,31/03/2020,041ENVIRON,Environmental Services,32136,EH Pest Control R + W Partnership,C1104,Derv,37.51,Allstar Business Solutions,,2017164,202002
Rother District Council,31/03/2020,041ENVIRON,Environmental Services,32136,EH Pest Control R + W Partnership,C1104,Derv,40.83,Allstar Business Solutions,,2017164,202002
Rother District Council,31/03/2020,041ENVIRON,Environmental Services,32136,EH Pest Control R + W Partnership,C1104,Derv,39.17,Allstar Business Solutions,,2017164,202002
Rother District Council,31/03/2020,041ENVIRON,Environmental Services,32136,EH Pest Control R + W Partnership,C1104,Derv,7.6,Allstar Business Solutions,Derv - Fuel Service fee payable on fuel cards,2017164,202002
Rother District Council,31/03/2020,031RESOURCES,Executive Directors & Corporate Core,20162,Electoral Registration,D2415,Printing by external suppliers,514.47,Civica Election Services Ltd,Printing by external suppliers - Printing (Not from RDC Print Room),2017534,202003
Rother District Council,31/03/2020,091HOUSING,Housing and Community Services,20200,Housing Needs - HB (Housing Benefit),D2514,Accommodation Costs,154.04,247 Transport Solutions Ltd,Hired and contracted services - BandB Taxi/Travel Costs,2016410,202001
Rother District Council,31/03/2020,091HOUSING,Housing and Community Services,20200,Housing Needs - HB (Housing Benefit),D2513,Hired and Contracted services,"2,625.00",LHS Locata (Housing Services) Ltd,Hired and contracted services - Service fee paid,2017043,202002
Rother District Council,31/03/2020,091HOUSING,Housing and Community Services,20200,Housing Needs - HB (Housing Benefit),D2513,Hired and Contracted services,135,NowMedical,,2017696,202003
Rother District Council,31/03/2020,091HOUSING,Housing and Community Services,20200,Housing Needs - HB (Housing Benefit),D2513,Hired and Contracted services,35,NowMedical,,2017721,202003
Rother District Council,31/03/2020,091HOUSING,Housing and Community Services,20200,Housing Needs - HB (Housing Benefit),D2514,Accommodation Costs,310,Solutions Accommodation Providers Ltd,Accommodation Costs - Homelessness services Temp Accom-plus VAT,2016414,202001
Rother District Council,31/03/2020,091HOUSING,Housing and Community Services,20200,Housing Needs - HB (Housing Benefit),D2514,Accommodation Costs,"1,240.00",Solutions Accommodation Providers Ltd,Accommodation Costs - Homelessness services Temp Accom - No VAT,2016414,202001
Rother District Council,31/03/2020,091HOUSING,Housing and Community Services,20200,Housing Needs - HB (Housing Benefit),D2514,Accommodation Costs,825,Solutions Accommodation Providers Ltd,Accommodation Costs - Homelessness services Temp Accom-plus VAT,2016415,202001
Rother District Council,31/03/2020,091HOUSING,Housing and Community Services,20200,Housing Needs - HB (Housing Benefit),D2514,Accommodation Costs,300,Solutions Accommodation Providers Ltd,Accommodation Costs - Homelessness services Temp Accom-plus VAT,2016416,202001
Rother District Council,31/03/2020,091HOUSING,Housing and Community Services,20200,Housing Needs - HB (Housing Benefit),D2514,Accommodation Costs,"1,200.00",Solutions Accommodation Providers Ltd,Accommodation Costs - Homelessness services Temp Accom - No VAT,2016416,202001
Rother District Council,31/03/2020,091HOUSING,Housing and Community Services,20200,Housing Needs - HB (Housing Benefit),D2514,Accommodation Costs,364,Solutions Accommodation Providers Ltd,Accommodation Costs - Homelessness services Temp Accom-plus VAT,2016417,202001
Rother District Council,31/03/2020,091HOUSING,Housing and Community Services,20200,Housing Needs - HB (Housing Benefit),D2514,Accommodation Costs,"1,456.00",Solutions Accommodation Providers Ltd,Accommodation Costs - Homelessness services Temp Accom - No VAT,2016417,202001
Rother District Council,31/03/2020,091HOUSING,Housing and Community Services,20200,Housing Needs - HB (Housing Benefit),D2514,Accommodation Costs,70,Town Taxis,Hired and contracted services - BandB Taxi/Travel Costs,2016906,202002
Rother District Council,31/03/2020,091HOUSING,Housing and Community Services,20200,Housing Needs - HB (Housing Benefit),D2514,Accommodation Costs,5.5,Town Taxis,Accommodation Costs - Homelessness services Temp Accom - No VAT,2016906,202002
Rother District Council,31/03/2020,091HOUSING,Housing and Community Services,20200,Housing Needs - HB (Housing Benefit),D2514,Accommodation Costs,17,Town Taxis,Hired and contracted services - BandB Taxi/Travel Costs,2016906,202002
Rother District Council,31/03/2020,091HOUSING,Housing and Community Services,20200,Housing Needs - HB (Housing Benefit),D2514,Accommodation Costs,13,Town Taxis,Hired and contracted services - BandB Taxi/Travel Costs,2016906,202002
Rother District Council,31/03/2020,091HOUSING,Housing and Community Services,20200,Housing Needs - HB (Housing Benefit),D2514,Accommodation Costs,10,Town Taxis,Hired and contracted services - BandB Taxi/Travel Costs,2016906,202002
Rother District Council,31/03/2020,031RESOURCES,Executive Directors & Corporate Core,20171,Human Resources,D2922,Subscriptions,"5,070.00",South East Employers,Subscriptions - Subscription to Organisations,2016473,202001
Rother District Council,31/03/2020,091HOUSING,Housing and Community Services,20145,Maintenance Services,C1104,Derv,55.83,Allstar Business Solutions,,2017164,202002
Rother District Council,31/03/2020,091HOUSING,Housing and Community Services,20145,Maintenance Services,C1104,Derv,36.85,Allstar Business Solutions,,2017164,202002
Rother District Council,31/03/2020,091HOUSING,Housing and Community Services,20145,Maintenance Services,D1201,Equipment & Materials,16.35,C Brewer and Sons Ltd,Equipment & Materials - Purchase of Tools,2016484,202001
Rother District Council,31/03/2020,091HOUSING,Housing and Community Services,20145,Maintenance Services,D1201,Equipment & Materials,4.6,C Brewer and Sons Ltd,Equipment & Materials - Purchase of Tools,2016485,202001
Rother District Council,31/03/2020,091HOUSING,Housing and Community Services,20145,Maintenance Services,D1201,Equipment & Materials,113.47,E O Culverwell Ltd,Equipment & Materials - Purchase of Tools,2016479,202001
Rother District Council,31/03/2020,071STRAT,Strategy and Planning,20246,Planning Applications,D2513,Hired and Contracted services,250,Rural Planning Ltd,Consultants and other services - Consultants Fees,2016385,202001
Rother District Council,31/03/2020,101RESOURCES,Resources,20240,Printing Services,D2417,Photocopy Paper by external suppliers,211.08,Premier Paper Group Ltd,Photocopy Paper by external suppliers - White,2016364,202001
Rother District Council,31/03/2020,081ACQUISIT,"Acquisitions, Transformation and Regeneration",20267,Property Investment Strategy - 18-40 Beeching Road ( Land and Buildings),D2507,Security Services,"1,081.50",Clearway Environmental Services (UK) Ltd,,2016462,202002
Rother District Council,31/03/2020,091HOUSING,Housing and Community Services,20128,Public Conveniences,B1100,Repairs to Premises,569,Hastings Locksmiths and Key Service,Repairs to Premises - Specified Repairs and Works listed,2016711,202001
Rother District Council,31/03/2020,091HOUSING,Housing and Community Services,20133,Refuse Collection,E2302,Third party payment private contractors,349.91,Biffa Waste Services Ltd,Third party payment private contractors - Commercial Waste Collection Contract,2016371,202001
Rother District Council,31/03/2020,091HOUSING,Housing and Community Services,20102,Rother Museum Services,D2923,Grants made,"2,125.00",Bexhill Museum Ltd,Grants made - Rother Museum Services  - Annual Support Grant,2016359,202001
Rother District Council,31/03/2020,091HOUSING,Housing and Community Services,20116,Rural Open Spaces & Amenities,B1100,Repairs to Premises,"1,320.00",Gristwood and Toms Limited,Repairs to Premises - Parks - Tree Works,2017313,202002
Rother District Council,31/03/2020,091HOUSING,Housing and Community Services,20116,Rural Open Spaces & Amenities,B1100,Repairs to Premises,"2,870.00",Gristwood and Toms Limited,Repairs to Premises - Parks - Tree Works,2016885,202002
Rother District Council,31/03/2020,091HOUSING,Housing and Community Services,20109,Sports Development,D2923,Grants made,189,The 1066 Specials FC,Grants made - Active Sussex Project workforce dev.,2017207,202002
Rother District Council,31/03/2020,101RESOURCES,Resources,20241,Stationery,D2420,General office supplies (Stationery purchased from ext suppliers),18.9,Lyreco UK Limited,General office supplies - Stationery (Stationery Services to buy ONLY),2016717,202002
Rother District Council,31/03/2020,101RESOURCES,Resources,20241,Stationery,D2420,General office supplies (Stationery purchased from ext suppliers),16.68,Lyreco UK Limited,General office supplies - Stationery (Stationery Services to buy ONLY),2016720,202002
Rother District Council,31/03/2020,101RESOURCES,Resources,20241,Stationery,D2420,General office supplies (Stationery purchased from ext suppliers),558.4,Lyreco UK Limited,General office supplies - Stationery (Stationery Services to buy ONLY),2016703,202001
Rother District Council,31/03/2020,101RESOURCES,Resources,20241,Stationery,D2420,General office supplies (Stationery purchased from ext suppliers),70.4,Lyreco UK Limited,General office supplies - Stationery (Stationery Services to buy ONLY),2016718,202001
Rother District Council,31/03/2020,101RESOURCES,Resources,20241,Stationery,D2420,General office supplies (Stationery purchased from ext suppliers),27.27,Lyreco UK Limited,General office supplies - Stationery (Stationery Services to buy ONLY),2016719,202001
Rother District Council,31/03/2020,091HOUSING,Housing and Community Services,20206,Syrians,D2513,Hired and Contracted services,321.3,247 Transport Solutions Ltd,Hired and contracted services - Syrian Resettlement Programme-Rent,2016358,202001
Rother District Council,31/03/2020,081ACQUISIT,"Acquisitions, Transformation and Regeneration",20146,West Trading Estate,D2507,Security Services,120,Clearway Environmental Services (UK) Ltd,,2016463,202001
Rother District Council,31/03/2020,081ACQUISIT,"Acquisitions, Transformation and Regeneration",20146,West Trading Estate,D2513,Hired and Contracted services,57,Coppard Giles,Hired and contracted services - Cost of Survey,2016515,202001
Rother District Council,31/03/2020,081ACQUISIT,"Acquisitions, Transformation and Regeneration",20146,West Trading Estate,D2513,Hired and Contracted services,920,R French and  Son Ltd,Hired and contracted services - Service fee paid,2016710,202001
Rother District Council,01/04/2020,031RESOURCES,Executive Directors & Corporate Core,20173,Administrative Offices - Town Hall,D2513,Hired and Contracted services,226.59,Wealden and Eastbourne Lifeline,Equipment & Materials - Purchase of Tools,2016346,202001
Rother District Council,01/04/2020,031RESOURCES,Executive Directors & Corporate Core,20173,Administrative Offices - Town Hall,B2611,Contract cleaning,105.3,Wightman and Parrish Ltd,Contract cleaning - Office Cleaning,2016390,202001
Rother District Council,01/04/2020,091HOUSING,Housing and Community Services,20108,Bexhill Promenade & Foreshore,D1201,Equipment & Materials,534,Robin G Randall,Equipment & Materials - Marker Buoys and Signs,2016384,202001
Rother District Council,01/04/2020,091HOUSING,Housing and Community Services,20107,Camber Beach & Foreshore,D2621,Telephones,29.73,Daisy Communications PLC,,2017038,202002
Rother District Council,01/04/2020,091HOUSING,Housing and Community Services,20107,Camber Beach & Foreshore,D2623,Radios and licences,11.92,Radio Relay,,2017031,202002
Rother District Council,01/04/2020,091HOUSING,Housing and Community Services,20137,Car Parks,D2513,Hired and Contracted services,"14,561.40",Flowbird Smart City UK Ltd,Hired and contracted services - Car Parks-CALE Online Software Service for ticket machines,2016388,202001
Rother District Council,01/04/2020,091HOUSING,Housing and Community Services,20137,Car Parks,D2513,Hired and Contracted services,"1,612.16",Park Now Ltd,Hired and contracted services - Car Parks-RingGo service charges,2016493,202001
Rother District Council,01/04/2020,091HOUSING,Housing and Community Services,20123,Cemeteries,D2922,Subscriptions,455,Institute of Cemetery and Crematorium  Management,Subscriptions - Parks- Subscriptions,2017788,202003
Rother District Council,01/04/2020,091HOUSING,Housing and Community Services,20125,Coast Protection,E2302,Third party payment private contractors,400,Laurence Beetham,Third party payment private contractors - Fairlight Compressor Maintenance Contract,2016482,202001
Rother District Council,01/04/2020,101RESOURCES,Resources,20242,Communications-Phones,D2621,Telephones,63.87,Daisy Communications PLC,,2017038,202002
Rother District Council,01/04/2020,101RESOURCES,Resources,20242,Communications-Phones,D2621,Telephones,41.44,Daisy Communications PLC,,2017038,202002
Rother District Council,01/04/2020,101RESOURCES,Resources,20242,Communications-Phones,D2621,Telephones,"9,916.14",KCOM Group Plc,Telephones - KCOM Smartnumber Charges,2016456,202002
Rother District Council,01/04/2020,101RESOURCES,Resources,20242,Communications-Phones,D2621,Telephones,712.59,KCOM Group Plc,Telephones - KCOM Smartnumber Charges,2016452,202002
Rother District Council,01/04/2020,101RESOURCES,Resources,20242,Communications-Phones,D2621,Telephones,26,KCOM Group Plc,Telephones - KCOM Smartnumber Charges,2016453,202002
Rother District Council,01/04/2020,101RESOURCES,Resources,20239,Computer Services,D2635,Computer Licences,"14,819.00",Centerprise International Limited,Computer Licences - Computer Licence Renewal,2016743,202001
Rother District Council,01/04/2020,101RESOURCES,Resources,20239,Computer Services,D2621,Telephones,29.47,Daisy Communications PLC,,2017038,202002
Rother District Council,01/04/2020,101RESOURCES,Resources,20209,Corporate management,D2513,Hired and Contracted services,187,Her Majestys Court Service,Hired and contracted services - Court Costs/Fees,2017176,202002
Rother District Council,01/04/2020,081ACQUISIT,"Acquisitions, Transformation and Regeneration",20278,COVID19 Community Hub Point,D1201,Equipment & Materials,207.79,Kite Packaging Ltd,Equipment & materials - Miscellaneous,2016469,202001
Rother District Council,01/04/2020,041ENVIRON,Environmental Services,32134,EH Pollution R + W Partnership,D2621,Telephones,14.74,Daisy Communications PLC,,2017038,202002
Rother District Council,01/04/2020,041ENVIRON,Environmental Services,32134,EH Pollution R + W Partnership,D2923,Grants made,"2,100.00",Hastings and Rother Mediation Service,Grants made - Hastings+Rother Mediation Service,2016455,202001
Rother District Council,01/04/2020,081ACQUISIT,"Acquisitions, Transformation and Regeneration",20153,"Elva Business Centre, Bexhill",B1100,Repairs to Premises,109.54,Alfa Electric Ltd,Repairs to Premises - Repairs - Electrical Works,2017139,202002
Rother District Council,01/04/2020,031RESOURCES,Executive Directors & Corporate Core,20180,Emergency Planning,D2621,Telephones,14.74,Daisy Communications PLC,,2017038,202002
Rother District Council,01/04/2020,091HOUSING,Housing and Community Services,20200,Housing Needs - HB (Housing Benefit),D2514,Accommodation Costs,"1,782.50",Imperial Portfolios Ltd,Accommodation Costs - Homelessness services Temp Accom-plus VAT,2016412,202001
Rother District Council,01/04/2020,091HOUSING,Housing and Community Services,20200,Housing Needs - HB (Housing Benefit),D2514,Accommodation Costs,"1,782.50",Imperial Portfolios Ltd,Accommodation Costs - Homelessness services Temp Accom-plus VAT,2016412,202001
Rother District Council,01/04/2020,091HOUSING,Housing and Community Services,20200,Housing Needs - HB (Housing Benefit),D2514,Accommodation Costs,"1,957.50",Imperial Portfolios Ltd,Accommodation Costs - Homelessness services Temp Accom-plus VAT,2016412,202001
Rother District Council,01/04/2020,091HOUSING,Housing and Community Services,20200,Housing Needs - HB (Housing Benefit),D2514,Accommodation Costs,"1,667.50",Imperial Portfolios Ltd,Accommodation Costs - Homelessness services Temp Accom-plus VAT,2016412,202001
Rother District Council,01/04/2020,091HOUSING,Housing and Community Services,20200,Housing Needs - HB (Housing Benefit),D2514,Accommodation Costs,"2,015.00",Paramount Independent Property Services LLP,Accommodation Costs - Homelessness services Temp Accom - No VAT,2016409,202001
Rother District Council,01/04/2020,091HOUSING,Housing and Community Services,20200,Housing Needs - HB (Housing Benefit),D2514,Accommodation Costs,"1,705.00",Paramount Independent Property Services LLP,Accommodation Costs - Homelessness services Temp Accom - No VAT,2016409,202001
Rother District Council,01/04/2020,091HOUSING,Housing and Community Services,20200,Housing Needs - HB (Housing Benefit),D2514,Accommodation Costs,560,Paramount Independent Property Services LLP,Accommodation Costs - Homelessness services Temp Accom - No VAT,2016409,202001
Rother District Council,01/04/2020,091HOUSING,Housing and Community Services,20200,Housing Needs - HB (Housing Benefit),D2514,Accommodation Costs,"2,015.00",Paramount Independent Property Services LLP,Accommodation Costs - Homelessness services Temp Accom - No VAT,2016409,202001
Rother District Council,01/04/2020,091HOUSING,Housing and Community Services,20200,Housing Needs - HB (Housing Benefit),D2514,Accommodation Costs,"1,755.00",Paramount Independent Property Services LLP,Accommodation Costs - Homelessness services Temp Accom - No VAT,2016409,202001
Rother District Council,01/04/2020,091HOUSING,Housing and Community Services,20200,Housing Needs - HB (Housing Benefit),D2514,Accommodation Costs,720,Paramount Independent Property Services LLP,Accommodation Costs - Homelessness services Temp Accom - No VAT,2016409,202001
Rother District Council,01/04/2020,091HOUSING,Housing and Community Services,20200,Housing Needs - HB (Housing Benefit),D2514,Accommodation Costs,320,Paramount Independent Property Services LLP,Accommodation Costs - Homelessness services Temp Accom - No VAT,2016409,202001
Rother District Council,01/04/2020,091HOUSING,Housing and Community Services,20200,Housing Needs - HB (Housing Benefit),D2514,Accommodation Costs,288,Paramount Independent Property Services LLP,Accommodation Costs - Homelessness services Temp Accom - No VAT,2016409,202001
Rother District Council,01/04/2020,091HOUSING,Housing and Community Services,20200,Housing Needs - HB (Housing Benefit),D2514,Accommodation Costs,256,Paramount Independent Property Services LLP,Accommodation Costs - Homelessness services Temp Accom - No VAT,2016409,202001
Rother District Council,01/04/2020,091HOUSING,Housing and Community Services,20200,Housing Needs - HB (Housing Benefit),D2514,Accommodation Costs,224,Paramount Independent Property Services LLP,Accommodation Costs - Homelessness services Temp Accom - No VAT,2016409,202001
Rother District Council,01/04/2020,031RESOURCES,Executive Directors & Corporate Core,20171,Human Resources,D2922,Subscriptions,751.9,Croner-I,Subscriptions - Subscription to Organisations,2017041,202002
Rother District Council,01/04/2020,031RESOURCES,Executive Directors & Corporate Core,32132,Joint Waste Contract Client Unit,E2302,Third party payment private contractors,"53,476.87",Biffa Municipal Limited,Third party payment private contractors - VARIABLE CORE Joint Waste Cost,2016378,202001
Rother District Council,01/04/2020,121PRECEPTS,Precepts,42203,Parish Precepts,F1201,Parish precepts,"6,303.50",Ashburnham and  Penhurst Parish Council,Parish precepts,2017218,202002
Rother District Council,01/04/2020,121PRECEPTS,Precepts,42203,Parish Precepts,F1201,Parish precepts,"187,322.00",Battle Town Council,Parish precepts,2017219,202002
Rother District Council,01/04/2020,121PRECEPTS,Precepts,42203,Parish Precepts,F1201,Parish precepts,"11,500.00",Beckley Parish Council,Parish precepts,2017220,202002
Rother District Council,01/04/2020,121PRECEPTS,Precepts,42203,Parish Precepts,F1201,Parish precepts,"6,825.00",Bexhill Charter Trustees,Parish precepts,2017221,202002
Rother District Council,01/04/2020,121PRECEPTS,Precepts,42203,Parish Precepts,F1201,Parish precepts,"5,150.00",Bodiam Parish Council,Parish precepts,2017222,202002
Rother District Council,01/04/2020,121PRECEPTS,Precepts,42203,Parish Precepts,F1201,Parish precepts,"18,915.00",Brede Parish Council,Parish precepts,2017223,202002
Rother District Council,01/04/2020,121PRECEPTS,Precepts,42203,Parish Precepts,F1201,Parish precepts,"3,727.00",Brightling Parish Council,Parish precepts,2017224,202002
Rother District Council,01/04/2020,121PRECEPTS,Precepts,42203,Parish Precepts,F1201,Parish precepts,"41,981.00",Burwash Parish Council,Parish precepts,2017225,202002
Rother District Council,01/04/2020,121PRECEPTS,Precepts,42203,Parish Precepts,F1201,Parish precepts,"34,817.50",Camber Parish Council,Parish precepts,2017226,202002
Rother District Council,01/04/2020,121PRECEPTS,Precepts,42203,Parish Precepts,F1201,Parish precepts,"11,216.50",Catsfield Parish Council,Parish precepts,2017227,202002
Rother District Council,01/04/2020,121PRECEPTS,Precepts,42203,Parish Precepts,F1201,Parish precepts,"14,169.00",Crowhurst Parish Council,Parish precepts,2017228,202002
Rother District Council,01/04/2020,121PRECEPTS,Precepts,42203,Parish Precepts,F1201,Parish precepts,"4,217.50",Dallington Parish Council,Parish precepts,2017229,202002
Rother District Council,01/04/2020,121PRECEPTS,Precepts,42203,Parish Precepts,F1201,Parish precepts,"27,500.00",Etchingham Parish Council,Parish precepts,2017230,202002
Rother District Council,01/04/2020,121PRECEPTS,Precepts,42203,Parish Precepts,F1201,Parish precepts,"34,211.50",Ewhurst Parish Council,Parish precepts,2017231,202002
Rother District Council,01/04/2020,121PRECEPTS,Precepts,42203,Parish Precepts,F1201,Parish precepts,"31,500.00",Fairlight Parish Council,Parish precepts,2017232,202002
Rother District Council,01/04/2020,121PRECEPTS,Precepts,42203,Parish Precepts,F1201,Parish precepts,"23,175.00",Hurst Green Parish Council,Parish precepts,2017233,202002
Rother District Council,01/04/2020,121PRECEPTS,Precepts,42203,Parish Precepts,F1201,Parish precepts,"56,737.00",Icklesham Parish Council,Parish precepts,2017234,202002
Rother District Council,01/04/2020,121PRECEPTS,Precepts,42203,Parish Precepts,F1201,Parish precepts,"8,000.00",Iden Parish Council,Parish precepts,2017235,202002
Rother District Council,01/04/2020,121PRECEPTS,Precepts,42203,Parish Precepts,F1201,Parish precepts,"6,550.00",Mountfield Parish Council,Parish precepts,2017236,202002
Rother District Council,01/04/2020,121PRECEPTS,Precepts,42203,Parish Precepts,F1201,Parish precepts,"50,000.00",Northiam Parish Council,Parish precepts,2017237,202002
Rother District Council,01/04/2020,121PRECEPTS,Precepts,42203,Parish Precepts,F1201,Parish precepts,"18,500.00",Peasmarsh Parish Council,Parish precepts,2017241,202002
Rother District Council,01/04/2020,121PRECEPTS,Precepts,42203,Parish Precepts,F1201,Parish precepts,"11,500.00",Pett Parish Council,Parish precepts,2017242,202002
Rother District Council,01/04/2020,121PRECEPTS,Precepts,42203,Parish Precepts,F1201,Parish precepts,"2,500.00",Playden Parish Council,Parish precepts,2017243,202002
Rother District Council,01/04/2020,121PRECEPTS,Precepts,42203,Parish Precepts,F1201,Parish precepts,"1,000.00",Rye Foreign Parish Council,Parish precepts,2017238,202002
Rother District Council,01/04/2020,121PRECEPTS,Precepts,42203,Parish Precepts,F1201,Parish precepts,"88,673.50",Rye Town Council,Parish precepts,2017239,202002
Rother District Council,01/04/2020,121PRECEPTS,Precepts,42203,Parish Precepts,F1201,Parish precepts,"48,303.00",Salehurst and Robertsbridge Parish Council,Parish precepts,2017240,202002
Rother District Council,01/04/2020,121PRECEPTS,Precepts,42203,Parish Precepts,F1201,Parish precepts,"28,592.00",Sedlescombe Parish Council,Parish precepts,2017244,202002
Rother District Council,01/04/2020,121PRECEPTS,Precepts,42203,Parish Precepts,F1201,Parish precepts,"73,200.00",Ticehurst Parish Council,Parish precepts,2017245,202002
Rother District Council,01/04/2020,121PRECEPTS,Precepts,42203,Parish Precepts,F1201,Parish precepts,"2,100.00",Udimore Parish Council,Parish precepts,2017246,202002
Rother District Council,01/04/2020,121PRECEPTS,Precepts,42203,Parish Precepts,F1201,Parish precepts,"21,187.50",Westfield Parish Council,Parish precepts,2017247,202002
Rother District Council,01/04/2020,121PRECEPTS,Precepts,42203,Parish Precepts,F1201,Parish precepts,"3,550.00",Whatlington Parish Council,Parish precepts,2017248,202002
Rother District Council,01/04/2020,101RESOURCES,Resources,20240,Printing Services,D2417,Photocopy Paper by external suppliers,306.84,Premier Paper Group Ltd,Photocopy Paper by external suppliers - White,2016365,202001
Rother District Council,01/04/2020,101RESOURCES,Resources,20217,Reliefs & Benefits-Council Tax Benefit,D2513,Hired and Contracted services,"4,750.00",Hastings Advice and  Representation Centre (HARC),Grants made - SLA Contribution,2017148,202002
Rother District Council,01/04/2020,091HOUSING,Housing and Community Services,20102,Rother Museum Services,D2621,Telephones,14.74,Daisy Communications PLC,,2017038,202002
Rother District Council,01/04/2020,091HOUSING,Housing and Community Services,20235,Rye Community Help Point,J1234,RDC Support charge Rye Community Help Point,50.95,Beaming Ltd,,2017160,202003
Rother District Council,01/04/2020,091HOUSING,Housing and Community Services,20235,Rye Community Help Point,J1234,RDC Support charge Rye Community Help Point,136.11,Beaming Ltd,,2017160,202003
Rother District Council,01/04/2020,091HOUSING,Housing and Community Services,20109,Sports Development,D2927,Services Facilitated by External Grants,150,University of Chichester,Services Facilitated by External - Grants-Active Sussex Project workforce dev.,2016362,202001
Rother District Council,01/04/2020,091HOUSING,Housing and Community Services,20206,Syrians,D2513,Hired and Contracted services,"1,347.00",Felicity Stephen,Hired and contracted services - Syrian-Education-Exempt VAT,2016609,202001
Rother District Council,02/04/2020,091HOUSING,Housing and Community Services,20114,Bexhill Parks & Open Spaces,D1201,Equipment & Materials,337.44,Eco Pond Ltd,Equipment & Materials - Parks - Horticultural Sundries,2017030,202002
Rother District Council,02/04/2020,091HOUSING,Housing and Community Services,20114,Bexhill Parks & Open Spaces,D1201,Equipment & Materials,17.07,Eco Pond Ltd,Equipment & Materials - Carriage/Handling Charge,2017030,202002
Rother District Council,02/04/2020,091HOUSING,Housing and Community Services,20114,Bexhill Parks & Open Spaces,B1100,Repairs to Premises,200,Highwoods Preservation Society,Repairs to Premises - Parks- Fencing Installation,2016548,202001
Rother District Council,02/04/2020,091HOUSING,Housing and Community Services,20107,Camber Beach & Foreshore,D2623,Radios and licences,75,Ofcom - Radio Licence Fees,Radios and licences - Radio/Transmitter Licences,2017934,202003
Rother District Council,02/04/2020,031RESOURCES,Executive Directors & Corporate Core,20159,Corporate Policy Making,D2922,Subscriptions,"2,312.00",West Devon Borough Council,Subscriptions - Mem-Sparsity Partnrship Rural Servs,2016578,202001
Rother District Council,02/04/2020,041ENVIRON,Environmental Services,20130,Crime and Disorder Initiatives,D2923,Grants made,"1,000.00",Hastings and Rother Mediation Service,Grants made - Crime Prevention Initiative (JAG),2016387,202001
Rother District Council,02/04/2020,041ENVIRON,Environmental Services,32134,EH Pollution R + W Partnership,D2513,Hired and Contracted services,13.3,Wealden and Eastbourne Lifeline,Hired and contracted services - Out Of Hours Call Answering Service,2016602,202001
Rother District Council,02/04/2020,041ENVIRON,Environmental Services,32134,EH Pollution R + W Partnership,D2513,Hired and Contracted services,8.06,Wealden and Eastbourne Lifeline,Hired and contracted services - Out Of Hours Call Answering Service,2016603,202001
Rother District Council,02/04/2020,091HOUSING,Housing and Community Services,20200,Housing Needs - HB (Housing Benefit),D2513,Hired and Contracted services,137.5,Wealden and Eastbourne Lifeline,Hired and contracted services - Out Of Hours Call Answering Service,2016381,202001
Rother District Council,02/04/2020,071STRAT,Strategy and Planning,20246,Planning Applications,D2513,Hired and Contracted services,"7,383.00",East Sussex County Council,Hired and contracted services - Plan-Ecological Advice,2016488,202001
Rother District Council,02/04/2020,091HOUSING,Housing and Community Services,20206,Syrians,D2513,Hired and Contracted services,-115.29,Amberley Nursery Ltd,Hired and contracted services - Syrian-Education-Exempt VAT,2016399,202001
Rother District Council,02/04/2020,031RESOURCES,Executive Directors & Corporate Core,20277,COVID19 Business Support Grants,D2923,Grants made,"10,000.00",REDACTED PERSONAL DATA,,2016319,202001
Rother District Council,02/04/2020,031RESOURCES,Executive Directors & Corporate Core,20277,COVID19 Business Support Grants,D2923,Grants made,"10,000.00",L Forrester Ltd,,2016319,202001
Rother District Council,02/04/2020,031RESOURCES,Executive Directors & Corporate Core,20277,COVID19 Business Support Grants,D2923,Grants made,"10,000.00",REDACTED PERSONAL DATA,,2016319,202001
Rother District Council,02/04/2020,031RESOURCES,Executive Directors & Corporate Core,20277,COVID19 Business Support Grants,D2923,Grants made,"10,000.00",REDACTED PERSONAL DATA,,2016319,202001
Rother District Council,02/04/2020,031RESOURCES,Executive Directors & Corporate Core,20277,COVID19 Business Support Grants,D2923,Grants made,"10,000.00",REDACTED PERSONAL DATA,,2016319,202001
Rother District Council,02/04/2020,031RESOURCES,Executive Directors & Corporate Core,20277,COVID19 Business Support Grants,D2923,Grants made,"10,000.00",REDACTED PERSONAL DATA,,2016319,202001
Rother District Council,02/04/2020,031RESOURCES,Executive Directors & Corporate Core,20277,COVID19 Business Support Grants,D2923,Grants made,"10,000.00",Revived Inns LTD,,2016319,202001
Rother District Council,02/04/2020,031RESOURCES,Executive Directors & Corporate Core,20277,COVID19 Business Support Grants,D2923,Grants made,"10,000.00",REDACTED PERSONAL DATA,,2016319,202001
Rother District Council,02/04/2020,031RESOURCES,Executive Directors & Corporate Core,20277,COVID19 Business Support Grants,D2923,Grants made,"25,000.00",Sunshine Party Limited,,2016319,202001
Rother District Council,02/04/2020,031RESOURCES,Executive Directors & Corporate Core,20277,COVID19 Business Support Grants,D2923,Grants made,"10,000.00",REDACTED PERSONAL DATA,,2016319,202001
Rother District Council,03/04/2020,101RESOURCES,Resources,20222,Accountancy,A1110,Agency Staff,"11,725.00",Penna PLC,Agency Staff,2016379,202001
Rother District Council,03/04/2020,071STRAT,Strategy and Planning,20258,BC Dangerous Structures H+R Partnership,D2513,Hired and Contracted services,3,H M Land Registry,Hired and contracted services - Env H-Land Registry,2017298,202002
Rother District Council,03/04/2020,091HOUSING,Housing and Community Services,20112,Bexhill Leisure Centre,B1100,Repairs to Premises,"10,500.00",Airtemp A.C. Ltd,Repairs to Premises - Heating Maintenance,2016370,202001
Rother District Council,03/04/2020,091HOUSING,Housing and Community Services,20114,Bexhill Parks & Open Spaces,B2731,Grounds maintenance routine,"71,416.57",Idverde Limited,Grounds maintenance routine - Parks-Grounds Maintenance Contracts,2016470,202001
Rother District Council,03/04/2020,101RESOURCES,Resources,20216,Cost Of Collection,D2513,Hired and Contracted services,349.08,DSI Billing Services Ltd,Postages - DSI Billing,2016457,202001
Rother District Council,03/04/2020,101RESOURCES,Resources,20216,Cost Of Collection,D2513,Hired and Contracted services,6,H M Land Registry,Hired and contracted services - Council Tax-Land Registry Enquiries,2017298,202002
Rother District Council,03/04/2020,081ACQUISIT,"Acquisitions, Transformation and Regeneration",20278,COVID19 Community Hub Point,D1201,Equipment & Materials,72.85,Booker Ltd,Equipment & materials - Miscellaneous,2017166,202002
Rother District Council,03/04/2020,081ACQUISIT,"Acquisitions, Transformation and Regeneration",20278,COVID19 Community Hub Point,D1201,Equipment & Materials,370.55,Booker Ltd,Equipment & materials - Miscellaneous,2017166,202002
Rother District Council,03/04/2020,041ENVIRON,Environmental Services,32144,EH Environmental Services Admin R + W Partnership,D2513,Hired and Contracted services,3,H M Land Registry,Hired and contracted services - Env H-Land Registry,2017298,202002
Rother District Council,03/04/2020,041ENVIRON,Environmental Services,32134,EH Pollution R + W Partnership,D2513,Hired and Contracted services,9,H M Land Registry,Hired and contracted services - Env H-Land Registry,2017298,202002
Rother District Council,03/04/2020,091HOUSING,Housing and Community Services,20200,Housing Needs - HB (Housing Benefit),D2514,Accommodation Costs,430,Arrow Waste Ltd,Accommodation Costs - Homelessness services BandB Removals,2016464,202001
Rother District Council,03/04/2020,091HOUSING,Housing and Community Services,20200,Housing Needs - HB (Housing Benefit),D2513,Hired and Contracted services,9,H M Land Registry,Hired and contracted services - Housing-Land Registry,2017298,202002
Rother District Council,03/04/2020,091HOUSING,Housing and Community Services,20200,Housing Needs - HB (Housing Benefit),D2514,Accommodation Costs,413,Lillybank Homes Ltd,Accommodation Costs - Homelessness services Temp Accom - No VAT,2016408,202001
Rother District Council,03/04/2020,091HOUSING,Housing and Community Services,20200,Housing Needs - HB (Housing Benefit),D2514,Accommodation Costs,343,Lillybank Homes Ltd,Accommodation Costs - Homelessness services Temp Accom - No VAT,2016408,202001
Rother District Council,03/04/2020,091HOUSING,Housing and Community Services,20200,Housing Needs - HB (Housing Benefit),D2514,Accommodation Costs,295,Lillybank Homes Ltd,Accommodation Costs - Homelessness services Temp Accom - No VAT,2016408,202001
Rother District Council,03/04/2020,091HOUSING,Housing and Community Services,20200,Housing Needs - HB (Housing Benefit),D2514,Accommodation Costs,118,Lillybank Homes Ltd,Accommodation Costs - Homelessness services Temp Accom - No VAT,2016408,202001
Rother District Council,03/04/2020,091HOUSING,Housing and Community Services,20200,Housing Needs - HB (Housing Benefit),D2514,Accommodation Costs,7.14,Lillybank Homes Ltd,Accommodation Costs - Homelessness services Temp Accom - No VAT,2016408,202001
Rother District Council,03/04/2020,091HOUSING,Housing and Community Services,20200,Housing Needs - HB (Housing Benefit),D2514,Accommodation Costs,525,Lillybank Homes Ltd,Accommodation Costs - Homelessness services Temp Accom - No VAT,2016408,202001
Rother District Council,03/04/2020,091HOUSING,Housing and Community Services,20200,Housing Needs - HB (Housing Benefit),D2514,Accommodation Costs,24.99,Lillybank Homes Ltd,Accommodation Costs - Homelessness services Temp Accom - No VAT,2016408,202001
Rother District Council,03/04/2020,071STRAT,Strategy and Planning,20246,Planning Applications,D2513,Hired and Contracted services,12,H M Land Registry,Hired and contracted services - Land Registry-Planning,2017298,202002
Rother District Council,03/04/2020,091HOUSING,Housing and Community Services,20102,Rother Museum Services,D2923,Grants made,600,Battle Museum Of Local History,Grants made - Rother Museum Services  - Annual Support Grant,2016382,202001
Rother District Council,03/04/2020,091HOUSING,Housing and Community Services,20102,Rother Museum Services,D2923,Grants made,600,Rye Museum Association,Grants made - Rother Museum Services  - Annual Support Grant,2016361,202001
Rother District Council,03/04/2020,091HOUSING,Housing and Community Services,20102,Rother Museum Services,D2923,Grants made,600,Winchelsea Court Hall Museum,Grants made - Rother Museum Services  - Annual Support Grant,2016383,202001
Rother District Council,04/04/2020,081ACQUISIT,"Acquisitions, Transformation and Regeneration",20278,COVID19 Community Hub Point,D1201,Equipment & Materials,162.42,Booker Ltd,Equipement & materials - Covid 19 food parcels,2017167,202002
Rother District Council,04/04/2020,081ACQUISIT,"Acquisitions, Transformation and Regeneration",20278,COVID19 Community Hub Point,D1201,Equipment & Materials,52.73,Booker Ltd,Equipement & materials - Covid 19 food parcels,2017167,202002
Rother District Council,04/04/2020,091HOUSING,Housing and Community Services,20200,Housing Needs - HB (Housing Benefit),D2514,Accommodation Costs,"7,500.00",Paramount Independent Property Services LLP,Accommodation Costs - Homelessness services Temp Accom - No VAT,2016413,202001
Rother District Council,05/04/2020,041ENVIRON,Environmental Services,32142,EH Taxi and Private Hire Licenses R + W Partnership,D2513,Hired and Contracted services,40,uCheck,Hired and contracted services - Service fee paid,2017172,202002
Rother District Council,05/04/2020,041ENVIRON,Environmental Services,32142,EH Taxi and Private Hire Licenses R + W Partnership,D2513,Hired and Contracted services,8.67,uCheck,Hired and contracted services - Service fee paid,2017172,202002
Rother District Council,05/04/2020,091HOUSING,Housing and Community Services,20200,Housing Needs - HB (Housing Benefit),D2514,Accommodation Costs,262.5,Specialist Care UK Group Ltd,Accommodation Costs - Homelessness services Temp Accom-plus VAT,2016433,202001
Rother District Council,05/04/2020,091HOUSING,Housing and Community Services,20200,Housing Needs - HB (Housing Benefit),D2514,Accommodation Costs,171.4,Specialist Care UK Group Ltd,Accommodation Costs - Homelessness services Temp Accom-plus VAT,2016432,202001
Rother District Council,05/04/2020,091HOUSING,Housing and Community Services,20200,Housing Needs - HB (Housing Benefit),D2514,Accommodation Costs,262.5,Specialist Care UK Group Ltd,Accommodation Costs - Homelessness services Temp Accom-plus VAT,2016437,202001
Rother District Council,05/04/2020,091HOUSING,Housing and Community Services,20200,Housing Needs - HB (Housing Benefit),D2514,Accommodation Costs,350,Specialist Care UK Group Ltd,Accommodation Costs - Homelessness services Temp Accom-plus VAT,2016435,202001
Rother District Council,05/04/2020,091HOUSING,Housing and Community Services,20200,Housing Needs - HB (Housing Benefit),D2514,Accommodation Costs,262.5,Specialist Care UK Group Ltd,Accommodation Costs - Homelessness services Temp Accom-plus VAT,2016436,202001
Rother District Council,05/04/2020,091HOUSING,Housing and Community Services,20200,Housing Needs - HB (Housing Benefit),D2514,Accommodation Costs,262.5,Specialist Care UK Group Ltd,Accommodation Costs - Homelessness services Temp Accom-plus VAT,2016438,202001
Rother District Council,05/04/2020,091HOUSING,Housing and Community Services,20200,Housing Needs - HB (Housing Benefit),D2514,Accommodation Costs,25,Specialist Care UK Group Ltd,Accommodation Costs - Homelessness services Temp Accom-plus VAT,2016434,202001
Rother District Council,05/04/2020,091HOUSING,Housing and Community Services,20200,Housing Needs - HB (Housing Benefit),D2514,Accommodation Costs,"2,103.55",Specialist Care UK Group Ltd,Accommodation Costs - Homelessness services Temp Accom-plus VAT,2016440,202001
Rother District Council,05/04/2020,091HOUSING,Housing and Community Services,20102,Rother Museum Services,B1100,Repairs to Premises,125.13,Stannah Lift Services Ltd,Repairs to Premises - Specified Repairs and Works listed,2016713,202001
Rother District Council,06/04/2020,031RESOURCES,Executive Directors & Corporate Core,20176,Administrative Offices - Print Room,B2201,Electricity,88,Laser Energy Buying Group (Kent County Council Commercial Services),Gas - Gas Charges,2017250,202002
Rother District Council,06/04/2020,031RESOURCES,Executive Directors & Corporate Core,20175,Administrative Offices - T.H. Annex (NOT CHP),B2201,Electricity,421.36,Laser Energy Buying Group (Kent County Council Commercial Services),Gas - Gas Charges,2017250,202002
Rother District Council,06/04/2020,031RESOURCES,Executive Directors & Corporate Core,20173,Administrative Offices - Town Hall,B2201,Electricity,783.79,Laser Energy Buying Group (Kent County Council Commercial Services),Gas - Gas Charges,2017250,202002
Rother District Council,06/04/2020,999NOREPORT,Not included in reporting,70706,Capital - Disable Facilities Grant,N1012,Capital Advances,406.5,Peabody South East Ltd,Capital Advances Disabled Facilities Grant,2016495,202001
Rother District Council,06/04/2020,999NOREPORT,Not included in reporting,70706,Capital - Disable Facilities Grant,N1012,Capital Advances,841.18,Peabody South East Ltd,Capital Advances Disabled Facilities Grant,2016496,202001
Rother District Council,06/04/2020,999NOREPORT,Not included in reporting,70718,Capital - Sidley Recreation Ground,N1004,Architects & Consultant Fees,250,Dirtworks BMX,Architects & Consultant Fees Capital-Architect and Conslt Fees,2016419,202001
Rother District Council,06/04/2020,999NOREPORT,Not included in reporting,70718,Capital - Sidley Recreation Ground,N1004,Architects & Consultant Fees,250,Dirtworks BMX,Architects & Consultant Fees Capital-Architect and Conslt Fees,2016420,202001
Rother District Council,06/04/2020,081ACQUISIT,"Acquisitions, Transformation and Regeneration",20154,Committee Property Account,B2201,Electricity,9.57,Laser Energy Buying Group (Kent County Council Commercial Services),Gas - Gas Charges,2017250,202002
Rother District Council,06/04/2020,101RESOURCES,Resources,20242,Communications-Phones,D2621,Telephones,"2,130.95",KCOM Group Plc,Telephones - KCOM Smartnumber Charges,2016454,202002
Rother District Council,06/04/2020,031RESOURCES,Executive Directors & Corporate Core,20170,Communications-Postages,D2626,Postages,"4,150.69",Pitney Bowes Purchase Power,Hired and contracted services - Postages franking machine costs,2016471,202001
Rother District Council,06/04/2020,081ACQUISIT,"Acquisitions, Transformation and Regeneration",20278,COVID19 Community Hub Point,D1201,Equipment & Materials,"5,880.46",Thomas Ridley & Son Ltd,Equipement & materials - Covid 19 food parcels,2016569,202001
Rother District Council,06/04/2020,081ACQUISIT,"Acquisitions, Transformation and Regeneration",20278,COVID19 Community Hub Point,D1201,Equipment & Materials,348.87,Thomas Ridley & Son Ltd,Equipement & materials - Covid 19 food parcels,2016569,202001
Rother District Council,06/04/2020,031RESOURCES,Executive Directors & Corporate Core,20276,COVID19 RDC expenditure,D2513,Hired and Contracted services,100,Phoenix Medical Services Ltd,Hired and contracted services - BandB Taxi/Travel Costs,2016625,202001
Rother District Council,06/04/2020,041ENVIRON,Environmental Services,32134,EH Pollution R + W Partnership,D1201,Equipment & Materials,-5.16,Gradko International Ltd,Equipment & Materials - EnvH- Air Quality Maintenance Contr,2016755,202001
Rother District Council,06/04/2020,041ENVIRON,Environmental Services,32134,EH Pollution R + W Partnership,D1201,Equipment & Materials,-4.5,Gradko International Ltd,Equipment & Materials - Carriage/Handling Charge,2016755,202001
Rother District Council,06/04/2020,091HOUSING,Housing and Community Services,20200,Housing Needs - HB (Housing Benefit),D2514,Accommodation Costs,415,47-48 Havelock Road Ltd,Accommodation Costs - Homelessness services Temp Accom - No VAT,2016466,202001
Rother District Council,06/04/2020,091HOUSING,Housing and Community Services,20200,Housing Needs - HB (Housing Benefit),D2514,Accommodation Costs,147.5,Chapmans of Hastings,Accommodation Costs - Homelessness services BandB Removals,2016491,202001
Rother District Council,06/04/2020,091HOUSING,Housing and Community Services,20200,Housing Needs - HB (Housing Benefit),D2514,Accommodation Costs,415,Coast Holiday Lettings Ltd,Accommodation Costs - Homelessness services Temp Accom - No VAT,2016465,202001
Rother District Council,06/04/2020,091HOUSING,Housing and Community Services,20200,Housing Needs - HB (Housing Benefit),D2514,Accommodation Costs,415,Coast Holiday Lettings Ltd,Accommodation Costs - Homelessness services Temp Accom - No VAT,2016465,202001
Rother District Council,06/04/2020,091HOUSING,Housing and Community Services,20200,Housing Needs - HB (Housing Benefit),D2514,Accommodation Costs,260,Lets 2 Share Limited,Accommodation Costs - Homelessness services Temp Accom - No VAT,2016446,202001
Rother District Council,06/04/2020,091HOUSING,Housing and Community Services,20200,Housing Needs - HB (Housing Benefit),D2514,Accommodation Costs,260,Lets 2 Share Limited,Accommodation Costs - Homelessness services Temp Accom - No VAT,2016446,202001
Rother District Council,06/04/2020,091HOUSING,Housing and Community Services,20200,Housing Needs - HB (Housing Benefit),D2514,Accommodation Costs,360,Lets 2 Share Limited,Accommodation Costs - Homelessness services Temp Accom - No VAT,2016446,202001
Rother District Council,06/04/2020,091HOUSING,Housing and Community Services,20200,Housing Needs - HB (Housing Benefit),D2514,Accommodation Costs,260,Lets 2 Share Limited,Accommodation Costs - Homelessness services Temp Accom - No VAT,2016446,202001
Rother District Council,06/04/2020,091HOUSING,Housing and Community Services,20200,Housing Needs - HB (Housing Benefit),D2514,Accommodation Costs,385,Lets 2 Share Limited,Accommodation Costs - Homelessness services Temp Accom - No VAT,2016443,202001
Rother District Council,06/04/2020,091HOUSING,Housing and Community Services,20200,Housing Needs - HB (Housing Benefit),D2514,Accommodation Costs,385,Lets 2 Share Limited,Accommodation Costs - Homelessness services Temp Accom - No VAT,2016443,202001
Rother District Council,06/04/2020,091HOUSING,Housing and Community Services,20200,Housing Needs - HB (Housing Benefit),D2514,Accommodation Costs,385,Lets 2 Share Limited,Accommodation Costs - Homelessness services Temp Accom - No VAT,2016443,202001
Rother District Council,06/04/2020,091HOUSING,Housing and Community Services,20200,Housing Needs - HB (Housing Benefit),D2514,Accommodation Costs,360,Lets 2 Share Limited,Accommodation Costs - Homelessness services Temp Accom - No VAT,2016444,202001
Rother District Council,06/04/2020,091HOUSING,Housing and Community Services,20200,Housing Needs - HB (Housing Benefit),D2514,Accommodation Costs,385,Lets 2 Share Limited,Accommodation Costs - Homelessness services Temp Accom - No VAT,2016445,202001
Rother District Council,06/04/2020,091HOUSING,Housing and Community Services,20200,Housing Needs - HB (Housing Benefit),D2514,Accommodation Costs,315,High Weald Property Investments,Accommodation Costs - Homelessness services Temp Accom - No VAT,2016427,202001
Rother District Council,06/04/2020,091HOUSING,Housing and Community Services,20200,Housing Needs - HB (Housing Benefit),D2514,Accommodation Costs,315,High Weald Property Investments,Accommodation Costs - Homelessness services Temp Accom - No VAT,2016427,202001
Rother District Council,06/04/2020,091HOUSING,Housing and Community Services,20200,Housing Needs - HB (Housing Benefit),D2514,Accommodation Costs,780,PADA Hanlon Ltd,,2016426,202001
Rother District Council,06/04/2020,091HOUSING,Housing and Community Services,20200,Housing Needs - HB (Housing Benefit),D2514,Accommodation Costs,315,PADA Hanlon Ltd,,2016442,202001
Rother District Council,06/04/2020,091HOUSING,Housing and Community Services,20200,Housing Needs - HB (Housing Benefit),D2514,Accommodation Costs,25,PADA Hanlon Ltd,,2016442,202001
Rother District Council,06/04/2020,091HOUSING,Housing and Community Services,20200,Housing Needs - HB (Housing Benefit),D2514,Accommodation Costs,780,Roost People Ltd,,2016450,202001
Rother District Council,06/04/2020,091HOUSING,Housing and Community Services,20200,Housing Needs - HB (Housing Benefit),D2514,Accommodation Costs,315,Roost People Ltd,,2017190,202002
Rother District Council,06/04/2020,091HOUSING,Housing and Community Services,20200,Housing Needs - HB (Housing Benefit),D2514,Accommodation Costs,25,Roost People Ltd,,2017190,202002
Rother District Council,06/04/2020,091HOUSING,Housing and Community Services,20200,Housing Needs - HB (Housing Benefit),D2514,Accommodation Costs,390,Roost People Ltd,,2017190,202002
Rother District Council,06/04/2020,091HOUSING,Housing and Community Services,20200,Housing Needs - HB (Housing Benefit),D2514,Accommodation Costs,390,Roost People Ltd,,2017190,202002
Rother District Council,06/04/2020,091HOUSING,Housing and Community Services,20200,Housing Needs - HB (Housing Benefit),D2514,Accommodation Costs,510,Savoy Court Ltd,Accommodation Costs - Homelessness services Temp Accom-plus VAT,2016499,202001
Rother District Council,06/04/2020,091HOUSING,Housing and Community Services,20200,Housing Needs - HB (Housing Benefit),D2514,Accommodation Costs,192,South Down Residential Ltd,Accommodation Costs - Homelessness services Temp Accom - No VAT,2016451,202001
Rother District Council,06/04/2020,091HOUSING,Housing and Community Services,20200,Housing Needs - HB (Housing Benefit),D2514,Accommodation Costs,48,South Down Residential Ltd,Accommodation Costs - Homelessness services Temp Accom-plus VAT,2016451,202001
Rother District Council,06/04/2020,091HOUSING,Housing and Community Services,20200,Housing Needs - HB (Housing Benefit),D2514,Accommodation Costs,336,South Down Residential Ltd,Accommodation Costs - Homelessness services Temp Accom - No VAT,2016451,202001
Rother District Council,06/04/2020,091HOUSING,Housing and Community Services,20200,Housing Needs - HB (Housing Benefit),D2514,Accommodation Costs,84,South Down Residential Ltd,Accommodation Costs - Homelessness services Temp Accom-plus VAT,2016451,202001
Rother District Council,06/04/2020,091HOUSING,Housing and Community Services,20200,Housing Needs - HB (Housing Benefit),D2514,Accommodation Costs,302.4,South Down Residential Ltd,Accommodation Costs - Homelessness services Temp Accom - No VAT,2016451,202001
Rother District Council,06/04/2020,091HOUSING,Housing and Community Services,20200,Housing Needs - HB (Housing Benefit),D2514,Accommodation Costs,75.6,South Down Residential Ltd,Accommodation Costs - Homelessness services Temp Accom-plus VAT,2016451,202001
Rother District Council,06/04/2020,091HOUSING,Housing and Community Services,20200,Housing Needs - HB (Housing Benefit),D2514,Accommodation Costs,420,South Down Residential Ltd,Accommodation Costs - Homelessness services Temp Accom-plus VAT,2016451,202001
Rother District Council,06/04/2020,091HOUSING,Housing and Community Services,20200,Housing Needs - HB (Housing Benefit),D2514,Accommodation Costs,302.4,South Down Residential Ltd,Accommodation Costs - Homelessness services Temp Accom - No VAT,2016451,202001
Rother District Council,06/04/2020,091HOUSING,Housing and Community Services,20200,Housing Needs - HB (Housing Benefit),D2514,Accommodation Costs,75.6,South Down Residential Ltd,Accommodation Costs - Homelessness services Temp Accom-plus VAT,2016451,202001
Rother District Council,06/04/2020,091HOUSING,Housing and Community Services,20200,Housing Needs - HB (Housing Benefit),D2514,Accommodation Costs,302.4,South Down Residential Ltd,Accommodation Costs - Homelessness services Temp Accom - No VAT,2016451,202001
Rother District Council,06/04/2020,091HOUSING,Housing and Community Services,20200,Housing Needs - HB (Housing Benefit),D2514,Accommodation Costs,75.6,South Down Residential Ltd,Accommodation Costs - Homelessness services Temp Accom-plus VAT,2016451,202001
Rother District Council,06/04/2020,091HOUSING,Housing and Community Services,20200,Housing Needs - HB (Housing Benefit),D2514,Accommodation Costs,302.4,South Down Residential Ltd,Accommodation Costs - Homelessness services Temp Accom - No VAT,2016451,202001
Rother District Council,06/04/2020,091HOUSING,Housing and Community Services,20200,Housing Needs - HB (Housing Benefit),D2514,Accommodation Costs,75.6,South Down Residential Ltd,Accommodation Costs - Homelessness services Temp Accom-plus VAT,2016451,202001
